Transaction Date,Local Authority Department,Beneficiary,Purpose of Expenditure,Amount (excluding VAT),Non Recoverable VAT,Merchant Category
 01-08-2022,Adults,Marlow,Residential Placements - Private Contractors Payment,6360.56,0.00,COMMERCIAL SUPPLIER 
 01-08-2022,Adults,Marlow,Residential Placements - Private Contractors Payment,2018.48,0.00,COMMERCIAL SUPPLIER 
 01-08-2022,Adults,Romford Private Hire Ltd,Client Transport,1400.00,0.00,COMMERCIAL SUPPLIER 
 01-08-2022,Adults,Romford Private Hire Ltd,Client Transport,3255.00,0.00,COMMERCIAL SUPPLIER 
 01-08-2022,Adults,Romford Private Hire Ltd,Client Transport,720.00,0.00,COMMERCIAL SUPPLIER 
 01-08-2022,Adults,Eastway Care Ltd_a,Daycare - Private Contractors Payment,685.71,0.00,COMMERCIAL SUPPLIER 
 01-08-2022,Adults,Eastway Care Ltd_a,Daycare - Private Contractors Payment,4800.00,0.00,COMMERCIAL SUPPLIER 
 01-08-2022,Adults,Eastway Care Ltd_a,Daycare - Private Contractors Payment,4800.00,0.00,COMMERCIAL SUPPLIER 
 01-08-2022,Adults,Eastway Care Ltd_a,Daycare - Private Contractors Payment,4800.00,0.00,COMMERCIAL SUPPLIER 
 01-08-2022,Adults,Eastway Care Ltd_a,Daycare - Private Contractors Payment,2914.29,0.00,COMMERCIAL SUPPLIER 
 01-08-2022,Adults,Eastway Care Ltd_a,Daycare - Private Contractors Payment,4800.00,0.00,COMMERCIAL SUPPLIER 
 01-08-2022,Adults,Eastway Care Ltd_a,Daycare - Private Contractors Payment,4800.00,0.00,COMMERCIAL SUPPLIER 
 01-08-2022,Adults,Eastway Care Ltd_a,Daycare - Private Contractors Payment,4800.00,0.00,COMMERCIAL SUPPLIER 
 01-08-2022,Adults,Eastway Care Ltd_a,Daycare - Private Contractors Payment,1200.00,0.00,COMMERCIAL SUPPLIER 
 01-08-2022,Adults,Eastway Care Ltd_a,Daycare - Private Contractors Payment,4800.00,0.00,COMMERCIAL SUPPLIER 
 01-08-2022,Adults,Eastway Care Ltd_a,Daycare - Private Contractors Payment,4800.00,0.00,COMMERCIAL SUPPLIER 
 01-08-2022,Adults,Eastway Care Ltd_a,Daycare - Private Contractors Payment,4800.00,0.00,COMMERCIAL SUPPLIER 
 01-08-2022,Adults,Eastway Care Ltd_a,Daycare - Private Contractors Payment,2400.00,0.00,COMMERCIAL SUPPLIER 
 01-08-2022,Adults,Bluebird Care Havering,Home Care - Private Contractors Payment,2450.00,0.00,COMMERCIAL SUPPLIER 
 01-08-2022,Adults,Bluebird Care Havering,Home Care - Private Contractors Payment,2450.00,0.00,COMMERCIAL SUPPLIER 
 01-08-2022,Adults,Bluebird Care Havering,Home Care - Private Contractors Payment,762.60,0.00,COMMERCIAL SUPPLIER 
 01-08-2022,Adults,Bluebird Care Havering,Home Care - Private Contractors Payment,1245.20,0.00,COMMERCIAL SUPPLIER 
 01-08-2022,Adults,All Therapy Solutions Ltd,Occupational Health,1320.00,0.00,COMMERCIAL SUPPLIER 
 01-08-2022,Adults,Consensus Support Services Ltd - Rowan House,Residential Placements - Private Contractors Payment,8540.92,0.00,COMMERCIAL SUPPLIER 
 02-08-2022,Adults,Flex360 Limited,Private Contractors Payment - Other,700.00,0.00,COMMERCIAL SUPPLIER 
 02-08-2022,Adults,R G Care Ltd ,Daycare - Private Contractors Payment,800.00,0.00,COMMERCIAL SUPPLIER 
 02-08-2022,Adults,R G Care Ltd ,Daycare - Private Contractors Payment,864.00,0.00,COMMERCIAL SUPPLIER 
 02-08-2022,Adults,R G Care Ltd ,Daycare - Private Contractors Payment,740.58,0.00,COMMERCIAL SUPPLIER 
 02-08-2022,Adults,R G Care Ltd ,Daycare - Private Contractors Payment,864.00,0.00,COMMERCIAL SUPPLIER 
 02-08-2022,Adults,R G Care Ltd ,Daycare - Private Contractors Payment,800.00,0.00,COMMERCIAL SUPPLIER 
 02-08-2022,Adults,Independent People Homecare Services,Home Care - Private Contractors Payment,4743.00,0.00,NON COMMERCIAL SUPPLIER 
 02-08-2022,Adults,Mayflower Travel,Client Transport,1032.00,0.00,COMMERCIAL SUPPLIER 
 02-08-2022,Adults,Prior Care Ltd_a,Home Care - Private Contractors Payment,879.04,0.00,COMMERCIAL SUPPLIER 
 02-08-2022,Adults,Prior Care Ltd_a,Home Care - Private Contractors Payment,829.18,0.00,COMMERCIAL SUPPLIER 
 02-08-2022,Adults,Prior Care Ltd_a,Home Care - Private Contractors Payment,1175.88,0.00,COMMERCIAL SUPPLIER 
 02-08-2022,Adults,Prior Care Ltd_a,Home Care - Private Contractors Payment,590.40,0.00,COMMERCIAL SUPPLIER 
 02-08-2022,Adults,Prior Care Ltd_a,Home Care - Private Contractors Payment,1072.56,0.00,COMMERCIAL SUPPLIER 
 02-08-2022,Adults,Prior Care Ltd_a,Home Care - Private Contractors Payment,569.74,0.00,COMMERCIAL SUPPLIER 
 02-08-2022,Adults,Prior Care Ltd_a,Home Care - Private Contractors Payment,1110.94,0.00,COMMERCIAL SUPPLIER 
 02-08-2022,Adults,Prior Care Ltd_a,Home Care - Private Contractors Payment,1111.59,0.00,COMMERCIAL SUPPLIER 
 02-08-2022,Adults,Prior Care Ltd_a,Home Care - Private Contractors Payment,532.02,0.00,COMMERCIAL SUPPLIER 
 02-08-2022,Adults,Prior Care Ltd_a,Home Care - Private Contractors Payment,1327.42,0.00,COMMERCIAL SUPPLIER 
 02-08-2022,Adults,Prior Care Ltd_a,Home Care - Private Contractors Payment,541.20,0.00,COMMERCIAL SUPPLIER 
 02-08-2022,Adults,Prior Care Ltd_a,Home Care - Private Contractors Payment,1110.61,0.00,COMMERCIAL SUPPLIER 
 02-08-2022,Adults,Prior Care Ltd_a,Home Care - Private Contractors Payment,1111.26,0.00,COMMERCIAL SUPPLIER 
 02-08-2022,Adults,Prior Care Ltd_a,Home Care - Private Contractors Payment,591.71,0.00,COMMERCIAL SUPPLIER 
 02-08-2022,Adults,Prior Care Ltd_a,Home Care - Private Contractors Payment,1316.59,0.00,COMMERCIAL SUPPLIER 
 02-08-2022,Adults,Prior Care Ltd_a,Home Care - Private Contractors Payment,687.82,0.00,COMMERCIAL SUPPLIER 
 02-08-2022,Adults,Prior Care Ltd_a,Home Care - Private Contractors Payment,607.46,0.00,COMMERCIAL SUPPLIER 
 02-08-2022,Adults,Prior Care Ltd_a,Home Care - Private Contractors Payment,778.02,0.00,COMMERCIAL SUPPLIER 
 02-08-2022,Adults,Prior Care Ltd_a,Home Care - Private Contractors Payment,1072.56,0.00,COMMERCIAL SUPPLIER 
 02-08-2022,Adults,Prior Care Ltd_a,Home Care - Private Contractors Payment,1131.60,0.00,COMMERCIAL SUPPLIER 
 02-08-2022,Adults,Prior Care Ltd_a,Home Care - Private Contractors Payment,1108.31,0.00,COMMERCIAL SUPPLIER 
 02-08-2022,Adults,Prior Care Ltd_a,Home Care - Private Contractors Payment,817.05,0.00,COMMERCIAL SUPPLIER 
 02-08-2022,Adults,Prior Care Ltd_a,Home Care - Private Contractors Payment,1102.08,0.00,COMMERCIAL SUPPLIER 
 02-08-2022,Adults,Prior Care Ltd_a,Home Care - Private Contractors Payment,1102.08,0.00,COMMERCIAL SUPPLIER 
 02-08-2022,Adults,Prior Care Ltd_a,Home Care - Private Contractors Payment,1134.55,0.00,COMMERCIAL SUPPLIER 
 02-08-2022,Adults,Prior Care Ltd_a,Home Care - Private Contractors Payment,1135.21,0.00,COMMERCIAL SUPPLIER 
 02-08-2022,Adults,Prior Care Ltd_a,Home Care - Private Contractors Payment,1122.42,0.00,COMMERCIAL SUPPLIER 
 02-08-2022,Adults,Prior Care Ltd_a,Home Care - Private Contractors Payment,1103.72,0.00,COMMERCIAL SUPPLIER 
 02-08-2022,Adults,Prior Care Ltd_a,Home Care - Private Contractors Payment,1103.72,0.00,COMMERCIAL SUPPLIER 
 02-08-2022,Adults,Prior Care Ltd_a,Home Care - Private Contractors Payment,557.27,0.00,COMMERCIAL SUPPLIER 
 02-08-2022,Adults,Prior Care Ltd_a,Home Care - Private Contractors Payment,590.07,0.00,COMMERCIAL SUPPLIER 
 02-08-2022,Adults,Prior Care Ltd_a,Home Care - Private Contractors Payment,985.31,0.00,COMMERCIAL SUPPLIER 
 02-08-2022,Adults,Prior Care Ltd_a,Home Care - Private Contractors Payment,1224.75,0.00,COMMERCIAL SUPPLIER 
 02-08-2022,Adults,Prior Care Ltd_a,Home Care - Private Contractors Payment,1102.08,0.00,COMMERCIAL SUPPLIER 
 02-08-2022,Adults,Prior Care Ltd_a,Home Care - Private Contractors Payment,1102.08,0.00,COMMERCIAL SUPPLIER 
 02-08-2022,Adults,Lodge Lane Care Home Limited,Residential Placements - Private Contractors Payment,893.57,0.00,COMMERCIAL SUPPLIER 
 02-08-2022,Adults,Pristine Care London Ltd ,Daycare - Private Contractors Payment,1155.00,0.00,COMMERCIAL SUPPLIER 
 02-08-2022,Adults,Pristine Care London Ltd ,Daycare - Private Contractors Payment,660.00,0.00,COMMERCIAL SUPPLIER 
 03-08-2022,Adults,Quality Healthcare Solutions Ltd t/a Kare Plus Romford,Home Care - Private Contractors Payment,1137.83,0.00,COMMERCIAL SUPPLIER 
 03-08-2022,Adults,Quality Healthcare Solutions Ltd t/a Kare Plus Romford,Home Care - Private Contractors Payment,831.81,0.00,COMMERCIAL SUPPLIER 
 03-08-2022,Adults,Quality Healthcare Solutions Ltd t/a Kare Plus Romford,Home Care - Private Contractors Payment,789.82,0.00,COMMERCIAL SUPPLIER 
 03-08-2022,Adults,Quality Healthcare Solutions Ltd t/a Kare Plus Romford,Home Care - Private Contractors Payment,878.71,0.00,COMMERCIAL SUPPLIER 
 03-08-2022,Adults,Quality Healthcare Solutions Ltd t/a Kare Plus Romford,Home Care - Private Contractors Payment,1606.87,0.00,COMMERCIAL SUPPLIER 
 03-08-2022,Adults,Quality Healthcare Solutions Ltd t/a Kare Plus Romford,Home Care - Private Contractors Payment,739.64,0.00,COMMERCIAL SUPPLIER 
 03-08-2022,Adults,Quality Healthcare Solutions Ltd t/a Kare Plus Romford,Home Care - Private Contractors Payment,710.45,0.00,COMMERCIAL SUPPLIER 
 03-08-2022,Adults,Quality Healthcare Solutions Ltd t/a Kare Plus Romford,Home Care - Private Contractors Payment,565.80,0.00,COMMERCIAL SUPPLIER 
 03-08-2022,Adults,Quality Healthcare Solutions Ltd t/a Kare Plus Romford,Home Care - Private Contractors Payment,1085.35,0.00,COMMERCIAL SUPPLIER 
 03-08-2022,Adults,Quality Healthcare Solutions Ltd t/a Kare Plus Romford,Home Care - Private Contractors Payment,904.95,0.00,COMMERCIAL SUPPLIER 
 03-08-2022,Adults,Quality Healthcare Solutions Ltd t/a Kare Plus Romford,Home Care - Private Contractors Payment,551.04,0.00,COMMERCIAL SUPPLIER 
 03-08-2022,Adults,Quality Healthcare Solutions Ltd t/a Kare Plus Romford,Home Care - Private Contractors Payment,551.70,0.00,COMMERCIAL SUPPLIER 
 03-08-2022,Adults,Quality Healthcare Solutions Ltd t/a Kare Plus Romford,Home Care - Private Contractors Payment,1143.41,0.00,COMMERCIAL SUPPLIER 
 03-08-2022,Adults,Quality Healthcare Solutions Ltd t/a Kare Plus Romford,Home Care - Private Contractors Payment,517.58,0.00,COMMERCIAL SUPPLIER 
 03-08-2022,Adults,Quality Healthcare Solutions Ltd t/a Kare Plus Romford,Home Care - Private Contractors Payment,1137.83,0.00,COMMERCIAL SUPPLIER 
 03-08-2022,Adults,Quality Healthcare Solutions Ltd t/a Kare Plus Romford,Home Care - Private Contractors Payment,1141.77,0.00,COMMERCIAL SUPPLIER 
 03-08-2022,Adults,Quality Healthcare Solutions Ltd t/a Kare Plus Romford,Home Care - Private Contractors Payment,1160.14,0.00,COMMERCIAL SUPPLIER 
 03-08-2022,Adults,Quality Healthcare Solutions Ltd t/a Kare Plus Romford,Home Care - Private Contractors Payment,818.69,0.00,COMMERCIAL SUPPLIER 
 03-08-2022,Adults,Daws Heath Kennels & Cattery,Private Contractors Payment - Other,2100.00,0.00,NON COMMERCIAL SUPPLIER 
 03-08-2022,Adults,Wallace Kennels,Private Contractors Payment - Other,540.00,0.00,COMMERCIAL SUPPLIER 
 03-08-2022,Adults,Spring Consult UK Ltd,Home Care - Private Contractors Payment,5785.92,0.00,COMMERCIAL SUPPLIER 
 03-08-2022,Adults,Action First Assessments Ltd,Private Contractors Payment - Other,620.00,0.00,COMMERCIAL SUPPLIER 
 03-08-2022,Adults,Inclusive Care Support Limited,Supported Other Accommodation - Private Contractors Payment,700.84,0.00,COMMERCIAL SUPPLIER 
 03-08-2022,Adults,Inclusive Care Support Limited,Supported Other Accommodation - Private Contractors Payment,700.84,0.00,COMMERCIAL SUPPLIER 
 03-08-2022,Adults,Inclusive Care Support Limited,Long Term Support - Community: Supported Living,700.84,0.00,COMMERCIAL SUPPLIER 
 03-08-2022,Adults,Inclusive Care Support Limited,Supported Other Accommodation - Private Contractors Payment,700.84,0.00,COMMERCIAL SUPPLIER 
 03-08-2022,Adults,Inclusive Care Support Limited,Supported Other Accommodation - Private Contractors Payment,700.84,0.00,COMMERCIAL SUPPLIER 
 03-08-2022,Adults,Matrix SCM Ltd,Agency Staff,1207.46,0.00,COMMERCIAL SUPPLIER 
 03-08-2022,Adults,Matrix SCM Ltd,Agency Staff,1473.12,0.00,COMMERCIAL SUPPLIER 
 03-08-2022,Adults,Matrix SCM Ltd,Agency Staff,1533.82,0.00,COMMERCIAL SUPPLIER 
 03-08-2022,Adults,Matrix SCM Ltd,Agency Staff,1473.12,0.00,COMMERCIAL SUPPLIER 
 03-08-2022,Adults,Matrix SCM Ltd,Agency Staff,607.88,0.00,COMMERCIAL SUPPLIER 
 03-08-2022,Adults,Matrix SCM Ltd,Agency Staff,768.96,0.00,COMMERCIAL SUPPLIER 
 03-08-2022,Adults,Matrix SCM Ltd,Agency Staff,759.85,0.00,COMMERCIAL SUPPLIER 
 03-08-2022,Adults,Matrix SCM Ltd,Agency Staff,2777.70,0.00,COMMERCIAL SUPPLIER 
 03-08-2022,Adults,Matrix SCM Ltd,Agency Staff,831.76,0.00,COMMERCIAL SUPPLIER 
 03-08-2022,Adults,Matrix SCM Ltd,Agency Staff,774.55,0.00,COMMERCIAL SUPPLIER 
 03-08-2022,Adults,Matrix SCM Ltd,Agency Staff,679.72,0.00,COMMERCIAL SUPPLIER 
 03-08-2022,Adults,Matrix SCM Ltd,Agency Staff,2546.80,0.00,COMMERCIAL SUPPLIER 
 03-08-2022,Adults,Matrix SCM Ltd,Agency Staff,866.24,0.00,COMMERCIAL SUPPLIER 
 03-08-2022,Adults,Matrix SCM Ltd,Agency Staff,973.60,0.00,COMMERCIAL SUPPLIER 
 03-08-2022,Adults,Matrix SCM Ltd,Agency Staff,756.00,0.00,COMMERCIAL SUPPLIER 
 03-08-2022,Adults,Matrix SCM Ltd,Agency Staff,998.64,0.00,COMMERCIAL SUPPLIER 
 03-08-2022,Adults,Matrix SCM Ltd,Agency Staff,845.68,0.00,COMMERCIAL SUPPLIER 
 03-08-2022,Adults,Matrix SCM Ltd,Agency Staff,1282.34,0.00,COMMERCIAL SUPPLIER 
 03-08-2022,Adults,Matrix SCM Ltd,Agency Staff,1282.34,0.00,COMMERCIAL SUPPLIER 
 03-08-2022,Adults,Matrix SCM Ltd,Agency Staff,504.74,0.00,COMMERCIAL SUPPLIER 
 03-08-2022,Adults,Matrix SCM Ltd,Agency Staff,838.50,0.00,COMMERCIAL SUPPLIER 
 03-08-2022,Adults,Matrix SCM Ltd,Agency Staff,1077.12,0.00,COMMERCIAL SUPPLIER 
 03-08-2022,Adults,Matrix SCM Ltd,Agency Staff,1515.98,0.00,COMMERCIAL SUPPLIER 
 03-08-2022,Adults,Matrix SCM Ltd,Agency Staff,765.84,0.00,COMMERCIAL SUPPLIER 
 03-08-2022,Adults,Matrix SCM Ltd,Agency Staff,1181.15,0.00,COMMERCIAL SUPPLIER 
 03-08-2022,Adults,Matrix SCM Ltd,Agency Staff,528.50,0.00,COMMERCIAL SUPPLIER 
 03-08-2022,Adults,Matrix SCM Ltd,Agency Staff,632.90,0.00,COMMERCIAL SUPPLIER 
 03-08-2022,Adults,Matrix SCM Ltd,Agency Staff,611.65,0.00,COMMERCIAL SUPPLIER 
 03-08-2022,Adults,Matrix SCM Ltd,Agency Staff,611.65,0.00,COMMERCIAL SUPPLIER 
 03-08-2022,Adults,Matrix SCM Ltd,Agency Staff,612.35,0.00,COMMERCIAL SUPPLIER 
 03-08-2022,Adults,Matrix SCM Ltd,Agency Staff,657.73,0.00,COMMERCIAL SUPPLIER 
 03-08-2022,Adults,Matrix SCM Ltd,Agency Staff,1241.28,0.00,COMMERCIAL SUPPLIER 
 03-08-2022,Adults,Matrix SCM Ltd,Agency Staff,1357.57,0.00,COMMERCIAL SUPPLIER 
 03-08-2022,Adults,Matrix SCM Ltd,Agency Staff,1241.28,0.00,COMMERCIAL SUPPLIER 
 03-08-2022,Adults,Matrix SCM Ltd,Agency Staff,1288.45,0.00,COMMERCIAL SUPPLIER 
 03-08-2022,Adults,Matrix SCM Ltd,Agency Staff,1244.51,0.00,COMMERCIAL SUPPLIER 
 03-08-2022,Adults,Matrix SCM Ltd,Agency Staff,1400.77,0.00,COMMERCIAL SUPPLIER 
 03-08-2022,Adults,Matrix SCM Ltd,Agency Staff,1241.28,0.00,COMMERCIAL SUPPLIER 
 03-08-2022,Adults,Matrix SCM Ltd,Agency Staff,1241.28,0.00,COMMERCIAL SUPPLIER 
 03-08-2022,Adults,Matrix SCM Ltd,Agency Staff,1241.28,0.00,COMMERCIAL SUPPLIER 
 03-08-2022,Adults,Matrix SCM Ltd,Agency Staff,749.94,0.00,COMMERCIAL SUPPLIER 
 03-08-2022,Adults,Matrix SCM Ltd,Agency Staff,735.84,0.00,COMMERCIAL SUPPLIER 
 03-08-2022,Adults,Matrix SCM Ltd,Agency Staff,605.83,0.00,COMMERCIAL SUPPLIER 
 03-08-2022,Adults,Matrix SCM Ltd,Agency Staff,1284.13,0.00,COMMERCIAL SUPPLIER 
 03-08-2022,Adults,Matrix SCM Ltd,Agency Staff,912.34,0.00,COMMERCIAL SUPPLIER 
 03-08-2022,Adults,Matrix SCM Ltd,Agency Staff,1265.12,0.00,COMMERCIAL SUPPLIER 
 03-08-2022,Adults,Matrix SCM Ltd,Agency Staff,754.91,0.00,COMMERCIAL SUPPLIER 
 03-08-2022,Adults,Matrix SCM Ltd,Agency Staff,1285.92,0.00,COMMERCIAL SUPPLIER 
 03-08-2022,Adults,Matrix SCM Ltd,Agency Staff,1282.34,0.00,COMMERCIAL SUPPLIER 
 03-08-2022,Adults,Matrix SCM Ltd,Agency Staff,844.58,0.00,COMMERCIAL SUPPLIER 
 03-08-2022,Adults,Matrix SCM Ltd,Agency Staff,1601.28,0.00,COMMERCIAL SUPPLIER 
 03-08-2022,Adults,Matrix SCM Ltd,Agency Staff,824.56,0.00,COMMERCIAL SUPPLIER 
 03-08-2022,Adults,Matrix SCM Ltd,Agency Staff,1295.70,0.00,COMMERCIAL SUPPLIER 
 03-08-2022,Adults,Matrix SCM Ltd,Agency Staff,1295.70,0.00,COMMERCIAL SUPPLIER 
 03-08-2022,Adults,Matrix SCM Ltd,Agency Staff,1290.24,0.00,COMMERCIAL SUPPLIER 
 03-08-2022,Adults,Matrix SCM Ltd,Agency Staff,1282.34,0.00,COMMERCIAL SUPPLIER 
 03-08-2022,Adults,Matrix SCM Ltd,Agency Staff,520.66,0.00,COMMERCIAL SUPPLIER 
 03-08-2022,Adults,Matrix SCM Ltd,Agency Staff,1281.98,0.00,COMMERCIAL SUPPLIER 
 03-08-2022,Adults,North London Community Care Agency,Home Care - Private Contractors Payment,1102.08,0.00,COMMERCIAL SUPPLIER 
 03-08-2022,Adults,North London Community Care Agency,Home Care - Private Contractors Payment,1102.08,0.00,COMMERCIAL SUPPLIER 
 05-08-2022,Adults,Anytime Care 2020_a,Home Care - Private Contractors Payment,864.00,0.00,COMMERCIAL SUPPLIER 
 05-08-2022,Adults,Anytime Care 2020_a,Home Care - Private Contractors Payment,552.02,0.00,COMMERCIAL SUPPLIER 
 05-08-2022,Adults,Anytime Care 2020_a,Home Care - Private Contractors Payment,634.35,0.00,COMMERCIAL SUPPLIER 
 05-08-2022,Adults,Anytime Care 2020_a,Home Care - Private Contractors Payment,1109.62,0.00,COMMERCIAL SUPPLIER 
 05-08-2022,Adults,Anytime Care 2020_a,Home Care - Private Contractors Payment,637.30,0.00,COMMERCIAL SUPPLIER 
 05-08-2022,Adults,Anytime Care 2020_a,Home Care - Private Contractors Payment,1192.94,0.00,COMMERCIAL SUPPLIER 
 05-08-2022,Adults,Anytime Care 2020_a,Home Care - Private Contractors Payment,680.93,0.00,COMMERCIAL SUPPLIER 
 05-08-2022,Adults,Anytime Care 2020_a,Home Care - Private Contractors Payment,1111.59,0.00,COMMERCIAL SUPPLIER 
 05-08-2022,Adults,Anytime Care 2020_a,Home Care - Private Contractors Payment,826.89,0.00,COMMERCIAL SUPPLIER 
 05-08-2022,Adults,Anytime Care 2020_a,Home Care - Private Contractors Payment,657.31,0.00,COMMERCIAL SUPPLIER 
 05-08-2022,Adults,Anytime Care 2020_a,Home Care - Private Contractors Payment,822.30,0.00,COMMERCIAL SUPPLIER 
 05-08-2022,Adults,Anytime Care 2020_a,Home Care - Private Contractors Payment,1085.68,0.00,COMMERCIAL SUPPLIER 
 05-08-2022,Adults,Anytime Care 2020_a,Home Care - Private Contractors Payment,551.04,0.00,COMMERCIAL SUPPLIER 
 05-08-2022,Adults,Anytime Care 2020_a,Home Care - Private Contractors Payment,645.83,0.00,COMMERCIAL SUPPLIER 
 05-08-2022,Adults,Anytime Care 2020_a,Home Care - Private Contractors Payment,608.77,0.00,COMMERCIAL SUPPLIER 
 05-08-2022,Adults,Anytime Care 2020_a,Home Care - Private Contractors Payment,968.58,0.00,COMMERCIAL SUPPLIER 
 05-08-2022,Adults,Anytime Care 2020_a,Home Care - Private Contractors Payment,1092.24,0.00,COMMERCIAL SUPPLIER 
 05-08-2022,Adults,Anytime Care 2020_a,Home Care - Private Contractors Payment,1101.42,0.00,COMMERCIAL SUPPLIER 
 05-08-2022,Adults,Anytime Care 2020_a,Home Care - Private Contractors Payment,1436.64,0.00,COMMERCIAL SUPPLIER 
 05-08-2022,Adults,Anytime Care 2020_a,Home Care - Private Contractors Payment,627.79,0.00,COMMERCIAL SUPPLIER 
 05-08-2022,Adults,DMP Healthcare (Heatherbrook) Ltd,Nursing Homes - Private Contractors Payment,2976.00,0.00,NON COMMERCIAL SUPPLIER 
 05-08-2022,Adults,DMP Healthcare (Heatherbrook) Ltd,Nursing Homes - Private Contractors Payment,2232.00,0.00,NON COMMERCIAL SUPPLIER 
 05-08-2022,Adults,Dignified Homecare,Home Care - Private Contractors Payment,1312.00,0.00,COMMERCIAL SUPPLIER 
 07-08-2022,Adults,S J Builders,"Maintenance - Equipment, Furniture And Materials",640.00,0.00,COMMERCIAL SUPPLIER 
 08-08-2022,Adults,Trinity London Care Ltd,Daycare - Private Contractors Payment,2050.00,0.00,COMMERCIAL SUPPLIER 
 08-08-2022,Adults,Trinity London Care Ltd,Daycare - Private Contractors Payment,2050.00,0.00,COMMERCIAL SUPPLIER 
 08-08-2022,Adults,Trinity London Care Ltd,Daycare - Private Contractors Payment,1025.20,0.00,COMMERCIAL SUPPLIER 
 08-08-2022,Adults,Trinity London Care Ltd,Daycare - Private Contractors Payment,1025.20,0.00,COMMERCIAL SUPPLIER 
 08-08-2022,Adults,Trinity London Care Ltd,Daycare - Private Contractors Payment,2050.00,0.00,COMMERCIAL SUPPLIER 
 08-08-2022,Adults,Trinity London Care Ltd,Daycare - Private Contractors Payment,1025.20,0.00,COMMERCIAL SUPPLIER 
 08-08-2022,Adults,Lorablooms Care Services Ltd,Home Care - Private Contractors Payment,2365.44,0.00,NON COMMERCIAL SUPPLIER 
 08-08-2022,Adults,Lorablooms Care Services Ltd,Home Care - Private Contractors Payment,2365.44,0.00,NON COMMERCIAL SUPPLIER 
 08-08-2022,Adults,All Therapy Solutions Ltd,Occupational Health,2040.00,0.00,COMMERCIAL SUPPLIER 
 08-08-2022,Adults,ECL Person Centred Care,Daycare - Private Contractors Payment,4294.20,0.00,COMMERCIAL SUPPLIER 
 08-08-2022,Adults,ECL Person Centred Care,Daycare - Private Contractors Payment,858.84,0.00,COMMERCIAL SUPPLIER 
 08-08-2022,Adults,ECL Person Centred Care,Daycare - Private Contractors Payment,3000.00,0.00,COMMERCIAL SUPPLIER 
 08-08-2022,Adults,ECL Person Centred Care,Daycare - Private Contractors Payment,590.40,0.00,COMMERCIAL SUPPLIER 
 08-08-2022,Adults,Protecthand Care Ltd ,Supported Other Accommodation - Private Contractors Payment,18655.00,0.00,COMMERCIAL SUPPLIER 
 08-08-2022,Adults,Havering Association for People with Disabilities (H.A.D.),Payments To Voluntary Sector,3332.08,0.00,NON COMMERCIAL SUPPLIER 
 08-08-2022,Adults,Havering Association for People with Disabilities (H.A.D.),Payments To Voluntary Sector,3332.08,0.00,NON COMMERCIAL SUPPLIER 
 08-08-2022,Adults,"Age Uk Redbridge, Barking and Havering Limited",Payments To Voluntary Sector,3270.42,0.00,COMMERCIAL SUPPLIER 
 08-08-2022,Adults,"Age Uk Redbridge, Barking and Havering Limited",Payments To Voluntary Sector,3270.42,0.00,COMMERCIAL SUPPLIER 
 09-08-2022,Adults,Thurrock Lifestyle Solutions CIC,Daycare - Private Contractors Payment,1600.00,0.00,COMMERCIAL SUPPLIER 
 09-08-2022,Adults,Thurrock Lifestyle Solutions CIC,Daycare - Private Contractors Payment,2400.00,0.00,COMMERCIAL SUPPLIER 
 09-08-2022,Adults,Thurrock Lifestyle Solutions CIC,Daycare - Private Contractors Payment,1760.00,0.00,COMMERCIAL SUPPLIER 
 09-08-2022,Adults,Fisk Group,Catering And Vending Supplies,549.50,0.00,COMMERCIAL SUPPLIER 
 09-08-2022,Adults,Fisk Group,Catering And Vending Supplies,1806.00,0.00,COMMERCIAL SUPPLIER 
 09-08-2022,Adults,Crystalize Care Services,Home Care - Private Contractors Payment,1102.08,0.00,COMMERCIAL SUPPLIER 
 09-08-2022,Adults,Crystalize Care Services,Home Care - Private Contractors Payment,1102.08,0.00,COMMERCIAL SUPPLIER 
 09-08-2022,Adults,Crystalize Care Services,Home Care - Private Contractors Payment,1377.60,0.00,COMMERCIAL SUPPLIER 
 09-08-2022,Adults,Passion Tree Care Services Ltd,Home Care - Private Contractors Payment,1121.76,0.00,COMMERCIAL SUPPLIER 
 09-08-2022,Adults,Passion Tree Care Services Ltd,Home Care - Private Contractors Payment,551.04,0.00,COMMERCIAL SUPPLIER 
 09-08-2022,Adults,Passion Tree Care Services Ltd,Home Care - Private Contractors Payment,1554.72,0.00,COMMERCIAL SUPPLIER 
 09-08-2022,Adults,Passion Tree Care Services Ltd,Home Care - Private Contractors Payment,551.04,0.00,COMMERCIAL SUPPLIER 
 09-08-2022,Adults,Passion Tree Care Services Ltd,Home Care - Private Contractors Payment,551.04,0.00,COMMERCIAL SUPPLIER 
 09-08-2022,Adults,Passion Tree Care Services Ltd,Home Care - Private Contractors Payment,688.80,0.00,COMMERCIAL SUPPLIER 
 09-08-2022,Adults,Passion Tree Care Services Ltd,Home Care - Private Contractors Payment,1239.84,0.00,COMMERCIAL SUPPLIER 
 09-08-2022,Adults,Passion Tree Care Services Ltd,Home Care - Private Contractors Payment,1239.84,0.00,COMMERCIAL SUPPLIER 
 09-08-2022,Adults,Passion Tree Care Services Ltd,Home Care - Private Contractors Payment,1377.60,0.00,COMMERCIAL SUPPLIER 
 09-08-2022,Adults,Passion Tree Care Services Ltd,Home Care - Private Contractors Payment,551.04,0.00,COMMERCIAL SUPPLIER 
 09-08-2022,Adults,Passion Tree Care Services Ltd,Home Care - Private Contractors Payment,551.04,0.00,COMMERCIAL SUPPLIER 
 09-08-2022,Adults,Passion Tree Care Services Ltd,Home Care - Private Contractors Payment,1239.84,0.00,COMMERCIAL SUPPLIER 
 09-08-2022,Adults,Passion Tree Care Services Ltd,Home Care - Private Contractors Payment,944.64,0.00,COMMERCIAL SUPPLIER 
 09-08-2022,Adults,Passion Tree Care Services Ltd,Home Care - Private Contractors Payment,551.04,0.00,COMMERCIAL SUPPLIER 
 09-08-2022,Adults,Passion Tree Care Services Ltd,Home Care - Private Contractors Payment,1102.08,0.00,COMMERCIAL SUPPLIER 
 10-08-2022,Adults,The Sycamore Trust,Payments To Voluntary Sector,3333.34,0.00,COMMERCIAL SUPPLIER 
 10-08-2022,Adults,The Sycamore Trust,Payments To Voluntary Sector,3333.33,0.00,COMMERCIAL SUPPLIER 
 10-08-2022,Adults,Headway East London,Daycare - Private Contractors Payment,1008.00,0.00,COMMERCIAL SUPPLIER 
 10-08-2022,Adults,Harrich Builders Ltd,"Maintenance - Equipment, Furniture And Materials",980.00,0.00,CIS 
 10-08-2022,Adults,Harrich Builders Ltd,"Maintenance - Equipment, Furniture And Materials",968.00,0.00,CIS 
 10-08-2022,Adults,Harrich Builders Ltd,"Maintenance - Equipment, Furniture And Materials",530.00,0.00,CIS 
 10-08-2022,Adults,Harrich Builders Ltd,"Maintenance - Equipment, Furniture And Materials",1413.00,0.00,CIS 
 10-08-2022,Adults,Havering Women's Aid,Private Contractors Payment - Other,19433.20,0.00,NON COMMERCIAL SUPPLIER 
 10-08-2022,Adults,Matrix SCM Ltd,Agency Staff,520.66,0.00,COMMERCIAL SUPPLIER 
 10-08-2022,Adults,Matrix SCM Ltd,Agency Staff,537.75,0.00,COMMERCIAL SUPPLIER 
 10-08-2022,Adults,Matrix SCM Ltd,Agency Staff,991.30,0.00,COMMERCIAL SUPPLIER 
 10-08-2022,Adults,Matrix SCM Ltd,Agency Staff,735.84,0.00,COMMERCIAL SUPPLIER 
 10-08-2022,Adults,Matrix SCM Ltd,Agency Staff,1241.28,0.00,COMMERCIAL SUPPLIER 
 10-08-2022,Adults,Matrix SCM Ltd,Agency Staff,528.50,0.00,COMMERCIAL SUPPLIER 
 10-08-2022,Adults,Matrix SCM Ltd,Agency Staff,657.73,0.00,COMMERCIAL SUPPLIER 
 10-08-2022,Adults,Matrix SCM Ltd,Agency Staff,632.90,0.00,COMMERCIAL SUPPLIER 
 10-08-2022,Adults,Matrix SCM Ltd,Agency Staff,611.65,0.00,COMMERCIAL SUPPLIER 
 10-08-2022,Adults,Matrix SCM Ltd,Agency Staff,622.08,0.00,COMMERCIAL SUPPLIER 
 10-08-2022,Adults,Matrix SCM Ltd,Agency Staff,844.58,0.00,COMMERCIAL SUPPLIER 
 10-08-2022,Adults,Matrix SCM Ltd,Agency Staff,1214.48,0.00,COMMERCIAL SUPPLIER 
 10-08-2022,Adults,Matrix SCM Ltd,Agency Staff,1020.26,0.00,COMMERCIAL SUPPLIER 
 10-08-2022,Adults,Matrix SCM Ltd,Agency Staff,1181.18,0.00,COMMERCIAL SUPPLIER 
 10-08-2022,Adults,Matrix SCM Ltd,Agency Staff,752.06,0.00,COMMERCIAL SUPPLIER 
 10-08-2022,Adults,Matrix SCM Ltd,Agency Staff,754.91,0.00,COMMERCIAL SUPPLIER 
 10-08-2022,Adults,Matrix SCM Ltd,Agency Staff,1241.28,0.00,COMMERCIAL SUPPLIER 
 10-08-2022,Adults,Matrix SCM Ltd,Agency Staff,1357.57,0.00,COMMERCIAL SUPPLIER 
 10-08-2022,Adults,Matrix SCM Ltd,Agency Staff,1400.77,0.00,COMMERCIAL SUPPLIER 
 10-08-2022,Adults,Matrix SCM Ltd,Agency Staff,1241.28,0.00,COMMERCIAL SUPPLIER 
 10-08-2022,Adults,Matrix SCM Ltd,Agency Staff,777.42,0.00,COMMERCIAL SUPPLIER 
 10-08-2022,Adults,Matrix SCM Ltd,Agency Staff,1028.97,0.00,COMMERCIAL SUPPLIER 
 10-08-2022,Adults,Matrix SCM Ltd,Agency Staff,518.28,0.00,COMMERCIAL SUPPLIER 
 10-08-2022,Adults,Matrix SCM Ltd,Agency Staff,1244.51,0.00,COMMERCIAL SUPPLIER 
 10-08-2022,Adults,Matrix SCM Ltd,Agency Staff,1241.28,0.00,COMMERCIAL SUPPLIER 
 10-08-2022,Adults,Matrix SCM Ltd,Agency Staff,1241.28,0.00,COMMERCIAL SUPPLIER 
 10-08-2022,Adults,Matrix SCM Ltd,Agency Staff,813.25,0.00,COMMERCIAL SUPPLIER 
 10-08-2022,Adults,Matrix SCM Ltd,Agency Staff,541.25,0.00,COMMERCIAL SUPPLIER 
 10-08-2022,Adults,Matrix SCM Ltd,Agency Staff,798.35,0.00,COMMERCIAL SUPPLIER 
 10-08-2022,Adults,Matrix SCM Ltd,Agency Staff,824.98,0.00,COMMERCIAL SUPPLIER 
 10-08-2022,Adults,Matrix SCM Ltd,Agency Staff,998.64,0.00,COMMERCIAL SUPPLIER 
 10-08-2022,Adults,Matrix SCM Ltd,Agency Staff,820.52,0.00,COMMERCIAL SUPPLIER 
 10-08-2022,Adults,Matrix SCM Ltd,Agency Staff,2777.70,0.00,COMMERCIAL SUPPLIER 
 10-08-2022,Adults,Matrix SCM Ltd,Agency Staff,973.60,0.00,COMMERCIAL SUPPLIER 
 10-08-2022,Adults,Matrix SCM Ltd,Agency Staff,607.88,0.00,COMMERCIAL SUPPLIER 
 10-08-2022,Adults,Matrix SCM Ltd,Agency Staff,2039.16,0.00,COMMERCIAL SUPPLIER 
 10-08-2022,Adults,Matrix SCM Ltd,Agency Staff,796.68,0.00,COMMERCIAL SUPPLIER 
 10-08-2022,Adults,Matrix SCM Ltd,Agency Staff,736.92,0.00,COMMERCIAL SUPPLIER 
 10-08-2022,Adults,Matrix SCM Ltd,Agency Staff,1282.34,0.00,COMMERCIAL SUPPLIER 
 10-08-2022,Adults,Matrix SCM Ltd,Agency Staff,757.99,0.00,COMMERCIAL SUPPLIER 
 10-08-2022,Adults,Matrix SCM Ltd,Agency Staff,1473.12,0.00,COMMERCIAL SUPPLIER 
 10-08-2022,Adults,Matrix SCM Ltd,Agency Staff,1152.35,0.00,COMMERCIAL SUPPLIER 
 10-08-2022,Adults,Matrix SCM Ltd,Agency Staff,964.29,0.00,COMMERCIAL SUPPLIER 
 10-08-2022,Adults,Matrix SCM Ltd,Agency Staff,1034.44,0.00,COMMERCIAL SUPPLIER 
 10-08-2022,Adults,Matrix SCM Ltd,Agency Staff,1107.44,0.00,COMMERCIAL SUPPLIER 
 10-08-2022,Adults,Matrix SCM Ltd,Agency Staff,1175.04,0.00,COMMERCIAL SUPPLIER 
 10-08-2022,Adults,L & Q Living (SWIFT Payments),Private Contractors Payment - Other,3637.83,0.00,COMMERCIAL SUPPLIER 
 10-08-2022,Adults,L & Q Living (SWIFT Payments),Private Contractors Payment - Other,14521.66,0.00,COMMERCIAL SUPPLIER 
 11-08-2022,Adults,Mind in Tower Hamlets And Newham,Private Contractors Payment - Other,656.00,0.00,COMMERCIAL SUPPLIER 
 12-08-2022,Adults,Treal Care Limited,Home Care - Private Contractors Payment,1155.00,0.00,COMMERCIAL SUPPLIER 
 12-08-2022,Adults,Bloomscare Ltd,Home Care - Private Contractors Payment,1574.40,0.00,COMMERCIAL SUPPLIER 
 12-08-2022,Adults,Eastway Care Ltd_a,Daycare - Private Contractors Payment,3440.00,0.00,COMMERCIAL SUPPLIER 
 12-08-2022,Adults,Eastway Care Ltd_a,Daycare - Private Contractors Payment,2580.00,0.00,COMMERCIAL SUPPLIER 
 12-08-2022,Adults,Eastway Care Ltd_a,Daycare - Private Contractors Payment,4300.00,0.00,COMMERCIAL SUPPLIER 
 12-08-2022,Adults,Eastway Care Ltd_a,Daycare - Private Contractors Payment,2580.00,0.00,COMMERCIAL SUPPLIER 
 12-08-2022,Adults,Eastway Care Ltd_a,Daycare - Private Contractors Payment,860.00,0.00,COMMERCIAL SUPPLIER 
 12-08-2022,Adults,Eastway Care Ltd_a,Daycare - Private Contractors Payment,3100.00,0.00,COMMERCIAL SUPPLIER 
 12-08-2022,Adults,Eastway Care Ltd_a,Daycare - Private Contractors Payment,4300.00,0.00,COMMERCIAL SUPPLIER 
 12-08-2022,Adults,Eastway Care Ltd_a,Daycare - Private Contractors Payment,3850.00,0.00,COMMERCIAL SUPPLIER 
 12-08-2022,Adults,Eastway Care Ltd_a,Daycare - Private Contractors Payment,1380.00,0.00,COMMERCIAL SUPPLIER 
 12-08-2022,Adults,Eastway Care Ltd_a,Daycare - Private Contractors Payment,2400.00,0.00,COMMERCIAL SUPPLIER 
 12-08-2022,Adults,Eastway Care Ltd_a,Daycare - Private Contractors Payment,4300.00,0.00,COMMERCIAL SUPPLIER 
 12-08-2022,Adults,Eastway Care Ltd_a,Daycare - Private Contractors Payment,860.00,0.00,COMMERCIAL SUPPLIER 
 12-08-2022,Adults,Eastway Care Ltd_a,Daycare - Private Contractors Payment,3440.00,0.00,COMMERCIAL SUPPLIER 
 12-08-2022,Adults,Essex Cares Ltd,Private Contractors Payment - Other,3389.55,0.00,COMMERCIAL SUPPLIER 
 14-08-2022,Adults,Homestead Care Service,Home Care - Private Contractors Payment,771.46,0.00,COMMERCIAL SUPPLIER 
 14-08-2022,Adults,Homestead Care Service,Home Care - Private Contractors Payment,1125.04,0.00,COMMERCIAL SUPPLIER 
 14-08-2022,Adults,Homestead Care Service,Home Care - Private Contractors Payment,1126.68,0.00,COMMERCIAL SUPPLIER 
 14-08-2022,Adults,Homestead Care Service,Home Care - Private Contractors Payment,527.75,0.00,COMMERCIAL SUPPLIER 
 14-08-2022,Adults,Homestead Care Service,Home Care - Private Contractors Payment,1154.89,0.00,COMMERCIAL SUPPLIER 
 14-08-2022,Adults,Homestead Care Service,Home Care - Private Contractors Payment,611.06,0.00,COMMERCIAL SUPPLIER 
 14-08-2022,Adults,Homestead Care Service,Home Care - Private Contractors Payment,1161.45,0.00,COMMERCIAL SUPPLIER 
 14-08-2022,Adults,Homestead Care Service,Home Care - Private Contractors Payment,1003.02,0.00,COMMERCIAL SUPPLIER 
 14-08-2022,Adults,Homestead Care Service,Home Care - Private Contractors Payment,817.70,0.00,COMMERCIAL SUPPLIER 
 14-08-2022,Adults,Homestead Care Service,Home Care - Private Contractors Payment,1171.29,0.00,COMMERCIAL SUPPLIER 
 14-08-2022,Adults,Homestead Care Service,Home Care - Private Contractors Payment,910.86,0.00,COMMERCIAL SUPPLIER 
 14-08-2022,Adults,Homestead Care Service,Home Care - Private Contractors Payment,511.68,0.00,COMMERCIAL SUPPLIER 
 14-08-2022,Adults,Homestead Care Service,Home Care - Private Contractors Payment,1270.67,0.00,COMMERCIAL SUPPLIER 
 14-08-2022,Adults,Homestead Care Service,Home Care - Private Contractors Payment,718.65,0.00,COMMERCIAL SUPPLIER 
 14-08-2022,Adults,Homestead Care Service,Home Care - Private Contractors Payment,1110.61,0.00,COMMERCIAL SUPPLIER 
 14-08-2022,Adults,Homestead Care Service,Home Care - Private Contractors Payment,1020.08,0.00,COMMERCIAL SUPPLIER 
 14-08-2022,Adults,Homestead Care Service,Home Care - Private Contractors Payment,1020.41,0.00,COMMERCIAL SUPPLIER 
 14-08-2022,Adults,Homestead Care Service,Home Care - Private Contractors Payment,521.52,0.00,COMMERCIAL SUPPLIER 
 14-08-2022,Adults,Homestead Care Service,Home Care - Private Contractors Payment,1107.00,0.00,COMMERCIAL SUPPLIER 
 14-08-2022,Adults,Homestead Care Service,Home Care - Private Contractors Payment,1270.67,0.00,COMMERCIAL SUPPLIER 
 14-08-2022,Adults,Homestead Care Service,Home Care - Private Contractors Payment,831.48,0.00,COMMERCIAL SUPPLIER 
 14-08-2022,Adults,Homestead Care Service,Home Care - Private Contractors Payment,538.58,0.00,COMMERCIAL SUPPLIER 
 14-08-2022,Adults,Homestead Care Service,Home Care - Private Contractors Payment,860.34,0.00,COMMERCIAL SUPPLIER 
 14-08-2022,Adults,Homestead Care Service,Home Care - Private Contractors Payment,632.06,0.00,COMMERCIAL SUPPLIER 
 14-08-2022,Adults,Homestead Care Service,Home Care - Private Contractors Payment,710.45,0.00,COMMERCIAL SUPPLIER 
 14-08-2022,Adults,Homestead Care Service,Home Care - Private Contractors Payment,551.37,0.00,COMMERCIAL SUPPLIER 
 14-08-2022,Adults,Homestead Care Service,Home Care - Private Contractors Payment,1313.31,0.00,COMMERCIAL SUPPLIER 
 14-08-2022,Adults,Homestead Care Service,Home Care - Private Contractors Payment,933.16,0.00,COMMERCIAL SUPPLIER 
 14-08-2022,Adults,Homestead Care Service,Home Care - Private Contractors Payment,757.68,0.00,COMMERCIAL SUPPLIER 
 14-08-2022,Adults,Homestead Care Service,Home Care - Private Contractors Payment,1099.13,0.00,COMMERCIAL SUPPLIER 
 14-08-2022,Adults,Homestead Care Service,Home Care - Private Contractors Payment,1065.34,0.00,COMMERCIAL SUPPLIER 
 14-08-2022,Adults,Homestead Care Service,Home Care - Private Contractors Payment,700.94,0.00,COMMERCIAL SUPPLIER 
 14-08-2022,Adults,Homestead Care Service,Home Care - Private Contractors Payment,610.08,0.00,COMMERCIAL SUPPLIER 
 14-08-2022,Adults,Homestead Care Service,Home Care - Private Contractors Payment,807.54,0.00,COMMERCIAL SUPPLIER 
 14-08-2022,Adults,Homestead Care Service,Home Care - Private Contractors Payment,627.14,0.00,COMMERCIAL SUPPLIER 
 14-08-2022,Adults,Homestead Care Service,Home Care - Private Contractors Payment,829.18,0.00,COMMERCIAL SUPPLIER 
 14-08-2022,Adults,Homestead Care Service,Home Care - Private Contractors Payment,1073.54,0.00,COMMERCIAL SUPPLIER 
 14-08-2022,Adults,Homestead Care Service,Home Care - Private Contractors Payment,1152.59,0.00,COMMERCIAL SUPPLIER 
 14-08-2022,Adults,Homestead Care Service,Home Care - Private Contractors Payment,1122.09,0.00,COMMERCIAL SUPPLIER 
 14-08-2022,Adults,Homestead Care Service,Home Care - Private Contractors Payment,522.50,0.00,COMMERCIAL SUPPLIER 
 14-08-2022,Adults,Homestead Care Service,Home Care - Private Contractors Payment,1075.51,0.00,COMMERCIAL SUPPLIER 
 14-08-2022,Adults,Homestead Care Service,Home Care - Private Contractors Payment,1219.50,0.00,COMMERCIAL SUPPLIER 
 14-08-2022,Adults,Homestead Care Service,Home Care - Private Contractors Payment,1105.69,0.00,COMMERCIAL SUPPLIER 
 14-08-2022,Adults,Homestead Care Service,Home Care - Private Contractors Payment,1113.23,0.00,COMMERCIAL SUPPLIER 
 14-08-2022,Adults,Homestead Care Service,Home Care - Private Contractors Payment,628.12,0.00,COMMERCIAL SUPPLIER 
 14-08-2022,Adults,Homestead Care Service,Home Care - Private Contractors Payment,751.12,0.00,COMMERCIAL SUPPLIER 
 14-08-2022,Adults,Homestead Care Service,Home Care - Private Contractors Payment,1236.23,0.00,COMMERCIAL SUPPLIER 
 14-08-2022,Adults,Homestead Care Service,Home Care - Private Contractors Payment,1142.10,0.00,COMMERCIAL SUPPLIER 
 14-08-2022,Adults,Homestead Care Service,Home Care - Private Contractors Payment,1023.69,0.00,COMMERCIAL SUPPLIER 
 14-08-2022,Adults,Homestead Care Service,Home Care - Private Contractors Payment,929.88,0.00,COMMERCIAL SUPPLIER 
 14-08-2022,Adults,Homestead Care Service,Home Care - Private Contractors Payment,1032.22,0.00,COMMERCIAL SUPPLIER 
 14-08-2022,Adults,Homestead Care Service,Home Care - Private Contractors Payment,767.52,0.00,COMMERCIAL SUPPLIER 
 14-08-2022,Adults,Homestead Care Service,Home Care - Private Contractors Payment,1286.09,0.00,COMMERCIAL SUPPLIER 
 14-08-2022,Adults,Homestead Care Service,Home Care - Private Contractors Payment,1299.86,0.00,COMMERCIAL SUPPLIER 
 14-08-2022,Adults,Homestead Care Service,Home Care - Private Contractors Payment,1034.51,0.00,COMMERCIAL SUPPLIER 
 14-08-2022,Adults,Homestead Care Service,Home Care - Private Contractors Payment,583.84,0.00,COMMERCIAL SUPPLIER 
 14-08-2022,Adults,Homestead Care Service,Home Care - Private Contractors Payment,532.34,0.00,COMMERCIAL SUPPLIER 
 14-08-2022,Adults,Homestead Care Service,Home Care - Private Contractors Payment,1073.54,0.00,COMMERCIAL SUPPLIER 
 14-08-2022,Adults,Homestead Care Service,Home Care - Private Contractors Payment,1003.35,0.00,COMMERCIAL SUPPLIER 
 14-08-2022,Adults,Homestead Care Service,Home Care - Private Contractors Payment,1300.85,0.00,COMMERCIAL SUPPLIER 
 14-08-2022,Adults,Homestead Care Service,Home Care - Private Contractors Payment,1037.46,0.00,COMMERCIAL SUPPLIER 
 14-08-2022,Adults,Homestead Care Service,Home Care - Private Contractors Payment,993.84,0.00,COMMERCIAL SUPPLIER 
 14-08-2022,Adults,Homestead Care Service,Home Care - Private Contractors Payment,1003.68,0.00,COMMERCIAL SUPPLIER 
 14-08-2022,Adults,Homestead Care Service,Home Care - Private Contractors Payment,1034.84,0.00,COMMERCIAL SUPPLIER 
 14-08-2022,Adults,Homestead Care Service,Home Care - Private Contractors Payment,1079.78,0.00,COMMERCIAL SUPPLIER 
 14-08-2022,Adults,Homestead Care Service,Home Care - Private Contractors Payment,739.64,0.00,COMMERCIAL SUPPLIER 
 14-08-2022,Adults,Homestead Care Service,Home Care - Private Contractors Payment,755.38,0.00,COMMERCIAL SUPPLIER 
 14-08-2022,Adults,Homestead Care Service,Home Care - Private Contractors Payment,827.87,0.00,COMMERCIAL SUPPLIER 
 14-08-2022,Adults,Homestead Care Service,Home Care - Private Contractors Payment,1047.30,0.00,COMMERCIAL SUPPLIER 
 14-08-2022,Adults,Homestead Care Service,Home Care - Private Contractors Payment,1144.06,0.00,COMMERCIAL SUPPLIER 
 14-08-2022,Adults,Homestead Care Service,Home Care - Private Contractors Payment,1202.45,0.00,COMMERCIAL SUPPLIER 
 14-08-2022,Adults,Homestead Care Service,Home Care - Private Contractors Payment,858.70,0.00,COMMERCIAL SUPPLIER 
 14-08-2022,Adults,Homestead Care Service,Home Care - Private Contractors Payment,826.56,0.00,COMMERCIAL SUPPLIER 
 14-08-2022,Adults,Homestead Care Service,Home Care - Private Contractors Payment,511.68,0.00,COMMERCIAL SUPPLIER 
 14-08-2022,Adults,Homestead Care Service,Home Care - Private Contractors Payment,1092.24,0.00,COMMERCIAL SUPPLIER 
 14-08-2022,Adults,Homestead Care Service,Home Care - Private Contractors Payment,1145.38,0.00,COMMERCIAL SUPPLIER 
 14-08-2022,Adults,Homestead Care Service,Home Care - Private Contractors Payment,1155.22,0.00,COMMERCIAL SUPPLIER 
 14-08-2022,Adults,Homestead Care Service,Home Care - Private Contractors Payment,853.46,0.00,COMMERCIAL SUPPLIER 
 14-08-2022,Adults,Homestead Care Service,Home Care - Private Contractors Payment,912.82,0.00,COMMERCIAL SUPPLIER 
 14-08-2022,Adults,Homestead Care Service,Home Care - Private Contractors Payment,1098.80,0.00,COMMERCIAL SUPPLIER 
 14-08-2022,Adults,Homestead Care Service,Home Care - Private Contractors Payment,1088.63,0.00,COMMERCIAL SUPPLIER 
 14-08-2022,Adults,Homestead Care Service,Home Care - Private Contractors Payment,596.96,0.00,COMMERCIAL SUPPLIER 
 14-08-2022,Adults,Homestead Care Service,Home Care - Private Contractors Payment,522.83,0.00,COMMERCIAL SUPPLIER 
 14-08-2022,Adults,Homestead Care Service,Home Care - Private Contractors Payment,1364.81,0.00,COMMERCIAL SUPPLIER 
 14-08-2022,Adults,Homestead Care Service,Home Care - Private Contractors Payment,1096.18,0.00,COMMERCIAL SUPPLIER 
 14-08-2022,Adults,Homestead Care Service,Home Care - Private Contractors Payment,669.12,0.00,COMMERCIAL SUPPLIER 
 14-08-2022,Adults,Homestead Care Service,Home Care - Private Contractors Payment,1119.14,0.00,COMMERCIAL SUPPLIER 
 14-08-2022,Adults,Homestead Care Service,Home Care - Private Contractors Payment,1092.90,0.00,COMMERCIAL SUPPLIER 
 14-08-2022,Adults,Homestead Care Service,Home Care - Private Contractors Payment,1035.82,0.00,COMMERCIAL SUPPLIER 
 14-08-2022,Adults,Homestead Care Service,Home Care - Private Contractors Payment,1070.59,0.00,COMMERCIAL SUPPLIER 
 14-08-2022,Adults,Homestead Care Service,Home Care - Private Contractors Payment,620.58,0.00,COMMERCIAL SUPPLIER 
 14-08-2022,Adults,Homestead Care Service,Home Care - Private Contractors Payment,1150.95,0.00,COMMERCIAL SUPPLIER 
 14-08-2022,Adults,Homestead Care Service,Home Care - Private Contractors Payment,1153.90,0.00,COMMERCIAL SUPPLIER 
 14-08-2022,Adults,Homestead Care Service,Home Care - Private Contractors Payment,731.77,0.00,COMMERCIAL SUPPLIER 
 14-08-2022,Adults,Homestead Care Service,Home Care - Private Contractors Payment,1112.58,0.00,COMMERCIAL SUPPLIER 
 14-08-2022,Adults,Homestead Care Service,Home Care - Private Contractors Payment,1036.81,0.00,COMMERCIAL SUPPLIER 
 14-08-2022,Adults,Homestead Care Service,Home Care - Private Contractors Payment,955.14,0.00,COMMERCIAL SUPPLIER 
 14-08-2022,Adults,Homestead Care Service,Home Care - Private Contractors Payment,974.16,0.00,COMMERCIAL SUPPLIER 
 14-08-2022,Adults,Homestead Care Service,Home Care - Private Contractors Payment,701.92,0.00,COMMERCIAL SUPPLIER 
 14-08-2022,Adults,Homestead Care Service,Home Care - Private Contractors Payment,878.71,0.00,COMMERCIAL SUPPLIER 
 14-08-2022,Adults,Homestead Care Service,Home Care - Private Contractors Payment,621.23,0.00,COMMERCIAL SUPPLIER 
 14-08-2022,Adults,Homestead Care Service,Home Care - Private Contractors Payment,1081.42,0.00,COMMERCIAL SUPPLIER 
 14-08-2022,Adults,Homestead Care Service,Home Care - Private Contractors Payment,1150.95,0.00,COMMERCIAL SUPPLIER 
 14-08-2022,Adults,Homestead Care Service,Home Care - Private Contractors Payment,1179.16,0.00,COMMERCIAL SUPPLIER 
 14-08-2022,Adults,Homestead Care Service,Home Care - Private Contractors Payment,974.16,0.00,COMMERCIAL SUPPLIER 
 14-08-2022,Adults,Homestead Care Service,Home Care - Private Contractors Payment,940.38,0.00,COMMERCIAL SUPPLIER 
 14-08-2022,Adults,Homestead Care Service,Home Care - Private Contractors Payment,659.28,0.00,COMMERCIAL SUPPLIER 
 14-08-2022,Adults,Homestead Care Service,Home Care - Private Contractors Payment,659.28,0.00,COMMERCIAL SUPPLIER 
 14-08-2022,Adults,Homestead Care Service,Home Care - Private Contractors Payment,815.41,0.00,COMMERCIAL SUPPLIER 
 14-08-2022,Adults,Homestead Care Service,Home Care - Private Contractors Payment,1139.80,0.00,COMMERCIAL SUPPLIER 
 14-08-2022,Adults,Homestead Care Service,Home Care - Private Contractors Payment,1069.28,0.00,COMMERCIAL SUPPLIER 
 14-08-2022,Adults,Homestead Care Service,Home Care - Private Contractors Payment,940.70,0.00,COMMERCIAL SUPPLIER 
 14-08-2022,Adults,Homestead Care Service,Home Care - Private Contractors Payment,952.84,0.00,COMMERCIAL SUPPLIER 
 14-08-2022,Adults,Homestead Care Service,Home Care - Private Contractors Payment,967.93,0.00,COMMERCIAL SUPPLIER 
 14-08-2022,Adults,Homestead Care Service,Home Care - Private Contractors Payment,878.06,0.00,COMMERCIAL SUPPLIER 
 14-08-2022,Adults,Homestead Care Service,Home Care - Private Contractors Payment,592.37,0.00,COMMERCIAL SUPPLIER 
 14-08-2022,Adults,Homestead Care Service,Home Care - Private Contractors Payment,567.77,0.00,COMMERCIAL SUPPLIER 
 14-08-2022,Adults,Homestead Care Service,Home Care - Private Contractors Payment,1033.20,0.00,COMMERCIAL SUPPLIER 
 14-08-2022,Adults,Homestead Care Service,Home Care - Private Contractors Payment,1043.04,0.00,COMMERCIAL SUPPLIER 
 14-08-2022,Adults,Homestead Care Service,Home Care - Private Contractors Payment,1150.62,0.00,COMMERCIAL SUPPLIER 
 14-08-2022,Adults,Homestead Care Service,Home Care - Private Contractors Payment,1172.60,0.00,COMMERCIAL SUPPLIER 
 14-08-2022,Adults,Homestead Care Service,Home Care - Private Contractors Payment,660.59,0.00,COMMERCIAL SUPPLIER 
 14-08-2022,Adults,Homestead Care Service,Home Care - Private Contractors Payment,1471.08,0.00,COMMERCIAL SUPPLIER 
 14-08-2022,Adults,Homestead Care Service,Home Care - Private Contractors Payment,2812.60,0.00,COMMERCIAL SUPPLIER 
 14-08-2022,Adults,Homestead Care Service,Home Care - Private Contractors Payment,781.62,0.00,COMMERCIAL SUPPLIER 
 14-08-2022,Adults,Homestead Care Service,Home Care - Private Contractors Payment,641.90,0.00,COMMERCIAL SUPPLIER 
 14-08-2022,Adults,Homestead Care Service,Home Care - Private Contractors Payment,539.89,0.00,COMMERCIAL SUPPLIER 
 14-08-2022,Adults,Homestead Care Service,Home Care - Private Contractors Payment,652.39,0.00,COMMERCIAL SUPPLIER 
 14-08-2022,Adults,Homestead Care Service,Home Care - Private Contractors Payment,1114.54,0.00,COMMERCIAL SUPPLIER 
 14-08-2022,Adults,Homestead Care Service,Home Care - Private Contractors Payment,1179.49,0.00,COMMERCIAL SUPPLIER 
 14-08-2022,Adults,Homestead Care Service,Home Care - Private Contractors Payment,1070.92,0.00,COMMERCIAL SUPPLIER 
 14-08-2022,Adults,London Homecare Ltd,Home Care - Private Contractors Payment,836.40,0.00,COMMERCIAL SUPPLIER 
 14-08-2022,Adults,London Homecare Ltd,Home Care - Private Contractors Payment,610.08,0.00,COMMERCIAL SUPPLIER 
 14-08-2022,Adults,London Homecare Ltd,Home Care - Private Contractors Payment,1239.84,0.00,COMMERCIAL SUPPLIER 
 14-08-2022,Adults,London Homecare Ltd,Home Care - Private Contractors Payment,1239.84,0.00,COMMERCIAL SUPPLIER 
 14-08-2022,Adults,London Homecare Ltd,Home Care - Private Contractors Payment,1239.84,0.00,COMMERCIAL SUPPLIER 
 14-08-2022,Adults,London Homecare Ltd,Home Care - Private Contractors Payment,1239.84,0.00,COMMERCIAL SUPPLIER 
 14-08-2022,Adults,London Homecare Ltd,Home Care - Private Contractors Payment,1239.84,0.00,COMMERCIAL SUPPLIER 
 14-08-2022,Adults,London Homecare Ltd,Home Care - Private Contractors Payment,1102.08,0.00,COMMERCIAL SUPPLIER 
 14-08-2022,Adults,London Homecare Ltd,Home Care - Private Contractors Payment,2282.88,0.00,COMMERCIAL SUPPLIER 
 14-08-2022,Adults,London Homecare Ltd,Home Care - Private Contractors Payment,688.80,0.00,COMMERCIAL SUPPLIER 
 14-08-2022,Adults,London Homecare Ltd,Home Care - Private Contractors Payment,1102.08,0.00,COMMERCIAL SUPPLIER 
 14-08-2022,Adults,London Homecare Ltd,Home Care - Private Contractors Payment,1279.20,0.00,COMMERCIAL SUPPLIER 
 14-08-2022,Adults,London Homecare Ltd,Home Care - Private Contractors Payment,590.40,0.00,COMMERCIAL SUPPLIER 
 14-08-2022,Adults,London Homecare Ltd,Home Care - Private Contractors Payment,1397.28,0.00,COMMERCIAL SUPPLIER 
 14-08-2022,Adults,Westminster Homecare Ltd_a,Home Care - Private Contractors Payment,688.80,0.00,COMMERCIAL SUPPLIER 
 14-08-2022,Adults,Westminster Homecare Ltd_a,Home Care - Private Contractors Payment,1558.66,0.00,COMMERCIAL SUPPLIER 
 14-08-2022,Adults,Westminster Homecare Ltd_a,Home Care - Private Contractors Payment,544.48,0.00,COMMERCIAL SUPPLIER 
 14-08-2022,Adults,Westminster Homecare Ltd_a,Home Care - Private Contractors Payment,1431.72,0.00,COMMERCIAL SUPPLIER 
 14-08-2022,Adults,Westminster Homecare Ltd_a,Home Care - Private Contractors Payment,1216.55,0.00,COMMERCIAL SUPPLIER 
 14-08-2022,Adults,Westminster Homecare Ltd_a,Home Care - Private Contractors Payment,550.71,0.00,COMMERCIAL SUPPLIER 
 14-08-2022,Adults,Westminster Homecare Ltd_a,Home Care - Private Contractors Payment,1132.26,0.00,COMMERCIAL SUPPLIER 
 14-08-2022,Adults,Westminster Homecare Ltd_a,Home Care - Private Contractors Payment,1571.78,0.00,COMMERCIAL SUPPLIER 
 14-08-2022,Adults,Westminster Homecare Ltd_a,Home Care - Private Contractors Payment,1242.14,0.00,COMMERCIAL SUPPLIER 
 15-08-2022,Adults,Tapestry_a.,Daycare - Private Contractors Payment,627.00,0.00,COMMERCIAL SUPPLIER 
 15-08-2022,Adults,Tapestry_a.,Daycare - Private Contractors Payment,684.00,0.00,COMMERCIAL SUPPLIER 
 15-08-2022,Adults,Tapestry_a.,Daycare - Private Contractors Payment,684.00,0.00,COMMERCIAL SUPPLIER 
 15-08-2022,Adults,Tapestry_a.,Daycare - Private Contractors Payment,912.00,0.00,COMMERCIAL SUPPLIER 
 15-08-2022,Adults,Tapestry_a.,Daycare - Private Contractors Payment,1140.00,0.00,COMMERCIAL SUPPLIER 
 15-08-2022,Adults,Tapestry_a.,Daycare - Private Contractors Payment,684.00,0.00,COMMERCIAL SUPPLIER 
 15-08-2022,Adults,Tapestry_a.,Daycare - Private Contractors Payment,855.00,0.00,COMMERCIAL SUPPLIER 
 15-08-2022,Adults,Tapestry_a.,Daycare - Private Contractors Payment,627.00,0.00,COMMERCIAL SUPPLIER 
 15-08-2022,Adults,Tapestry_a.,Daycare - Private Contractors Payment,912.00,0.00,COMMERCIAL SUPPLIER 
 15-08-2022,Adults,Tapestry_a.,Daycare - Private Contractors Payment,684.00,0.00,COMMERCIAL SUPPLIER 
 15-08-2022,Adults,Tapestry_a.,Daycare - Private Contractors Payment,912.00,0.00,COMMERCIAL SUPPLIER 
 15-08-2022,Adults,Tapestry_a.,Daycare - Private Contractors Payment,912.00,0.00,COMMERCIAL SUPPLIER 
 15-08-2022,Adults,Tapestry_a.,Daycare - Private Contractors Payment,684.00,0.00,COMMERCIAL SUPPLIER 
 15-08-2022,Adults,Tapestry_a.,Daycare - Private Contractors Payment,1140.00,0.00,COMMERCIAL SUPPLIER 
 15-08-2022,Adults,Tapestry_a.,Daycare - Private Contractors Payment,1140.00,0.00,COMMERCIAL SUPPLIER 
 15-08-2022,Adults,Tapestry_a.,Daycare - Private Contractors Payment,1140.00,0.00,COMMERCIAL SUPPLIER 
 15-08-2022,Adults,Tapestry_a.,Daycare - Private Contractors Payment,684.00,0.00,COMMERCIAL SUPPLIER 
 15-08-2022,Adults,Bluebird Care Havering,Home Care - Private Contractors Payment,2450.00,0.00,COMMERCIAL SUPPLIER 
 15-08-2022,Adults,Bluebird Care Havering,Home Care - Private Contractors Payment,2450.00,0.00,COMMERCIAL SUPPLIER 
 15-08-2022,Adults,Bluebird Care Havering,Home Care - Private Contractors Payment,762.60,0.00,COMMERCIAL SUPPLIER 
 15-08-2022,Adults,Bluebird Care Havering,Home Care - Private Contractors Payment,1245.20,0.00,COMMERCIAL SUPPLIER 
 15-08-2022,Adults,Premier Carewaiting Ltd,Home Care - Private Contractors Payment,1259.52,0.00,COMMERCIAL SUPPLIER 
 15-08-2022,Adults,Premier Carewaiting Ltd,Home Care - Private Contractors Payment,560.88,0.00,COMMERCIAL SUPPLIER 
 15-08-2022,Adults,Premier Carewaiting Ltd,Home Care - Private Contractors Payment,944.64,0.00,COMMERCIAL SUPPLIER 
 15-08-2022,Adults,Premier Carewaiting Ltd,Home Care - Private Contractors Payment,1121.76,0.00,COMMERCIAL SUPPLIER 
 15-08-2022,Adults,Premier Carewaiting Ltd,Home Care - Private Contractors Payment,1239.84,0.00,COMMERCIAL SUPPLIER 
 15-08-2022,Adults,Premier Carewaiting Ltd,Home Care - Private Contractors Payment,1653.12,0.00,COMMERCIAL SUPPLIER 
 15-08-2022,Adults,Premier Carewaiting Ltd,Home Care - Private Contractors Payment,1653.12,0.00,COMMERCIAL SUPPLIER 
 15-08-2022,Adults,Premier Carewaiting Ltd,Home Care - Private Contractors Payment,1298.88,0.00,COMMERCIAL SUPPLIER 
 15-08-2022,Adults,Premier Carewaiting Ltd,Home Care - Private Contractors Payment,1298.88,0.00,COMMERCIAL SUPPLIER 
 15-08-2022,Adults,Premier Carewaiting Ltd,Home Care - Private Contractors Payment,560.88,0.00,COMMERCIAL SUPPLIER 
 15-08-2022,Adults,Alzheimer's Society.,Payments To Voluntary Sector,6445.07,0.00,COMMERCIAL SUPPLIER 
 15-08-2022,Adults,The Camden Society,Daycare - Private Contractors Payment,520.00,0.00,NON COMMERCIAL SUPPLIER 
 15-08-2022,Adults,Havering Care Provider Group Ltd,Other Short Term Support,10151.00,0.00,COMMERCIAL SUPPLIER 
 16-08-2022,Adults,Flex360 Limited,Private Contractors Payment - Other,700.00,0.00,COMMERCIAL SUPPLIER 
 16-08-2022,Adults,Carers Trust East Midlands,Home Care - Private Contractors Payment,806.88,0.00,COMMERCIAL SUPPLIER 
 16-08-2022,Adults,Carers Trust East Midlands,Home Care - Private Contractors Payment,1161.12,0.00,COMMERCIAL SUPPLIER 
 16-08-2022,Adults,Carers Trust East Midlands,Home Care - Private Contractors Payment,787.20,0.00,COMMERCIAL SUPPLIER 
 16-08-2022,Adults,KJD Care Limited,Home Care - Private Contractors Payment,964.32,0.00,INDIVIDUALS 
 16-08-2022,Adults,KJD Care Limited,Home Care - Private Contractors Payment,5598.32,0.00,INDIVIDUALS 
 16-08-2022,Adults,KJD Care Limited,Home Care - Private Contractors Payment,1102.08,0.00,INDIVIDUALS 
 16-08-2022,Adults,KJD Care Limited,Home Care - Private Contractors Payment,865.92,0.00,INDIVIDUALS 
 16-08-2022,Adults,KJD Care Limited,Home Care - Private Contractors Payment,6061.44,0.00,INDIVIDUALS 
 16-08-2022,Adults,KJD Care Limited,Home Care - Private Contractors Payment,934.80,0.00,INDIVIDUALS 
 16-08-2022,Adults,KJD Care Limited,Home Care - Private Contractors Payment,1102.08,0.00,INDIVIDUALS 
 16-08-2022,Adults,KJD Care Limited,Home Care - Private Contractors Payment,984.00,0.00,INDIVIDUALS 
 16-08-2022,Adults,KJD Care Limited,Home Care - Private Contractors Payment,949.56,0.00,INDIVIDUALS 
 16-08-2022,Adults,KJD Care Limited,Home Care - Private Contractors Payment,1023.36,0.00,INDIVIDUALS 
 16-08-2022,Adults,KJD Care Limited,Home Care - Private Contractors Payment,668.88,0.00,INDIVIDUALS 
 16-08-2022,Adults,KJD Care Limited,Home Care - Private Contractors Payment,1102.08,0.00,INDIVIDUALS 
 16-08-2022,Adults,KJD Care Limited,Home Care - Private Contractors Payment,787.22,0.00,INDIVIDUALS 
 16-08-2022,Adults,KJD Care Limited,Home Care - Private Contractors Payment,1766.28,0.00,INDIVIDUALS 
 16-08-2022,Adults,KJD Care Limited,Home Care - Private Contractors Payment,1766.28,0.00,INDIVIDUALS 
 16-08-2022,Adults,KJD Care Limited,Home Care - Private Contractors Payment,1397.28,0.00,INDIVIDUALS 
 16-08-2022,Adults,KJD Care Limited,Home Care - Private Contractors Payment,4959.36,0.00,INDIVIDUALS 
 16-08-2022,Adults,KJD Care Limited,Home Care - Private Contractors Payment,3227.52,0.00,INDIVIDUALS 
 16-08-2022,Adults,KJD Care Limited,Home Care - Private Contractors Payment,1239.84,0.00,INDIVIDUALS 
 16-08-2022,Adults,KJD Care Limited,Home Care - Private Contractors Payment,708.48,0.00,INDIVIDUALS 
 16-08-2022,Adults,KJD Care Limited,Home Care - Private Contractors Payment,708.48,0.00,INDIVIDUALS 
 16-08-2022,Adults,Outreach Support Services Ltd,Home Care - Private Contractors Payment,551.04,0.00,COMMERCIAL SUPPLIER 
 16-08-2022,Adults,Outreach Support Services Ltd,Home Care - Private Contractors Payment,551.04,0.00,COMMERCIAL SUPPLIER 
 16-08-2022,Adults,Outreach Support Services Ltd,Home Care - Private Contractors Payment,1416.96,0.00,COMMERCIAL SUPPLIER 
 16-08-2022,Adults,Outreach Support Services Ltd,Home Care - Private Contractors Payment,964.32,0.00,COMMERCIAL SUPPLIER 
 16-08-2022,Adults,Outreach Support Services Ltd,Home Care - Private Contractors Payment,1758.48,0.00,COMMERCIAL SUPPLIER 
 16-08-2022,Adults,Outreach Support Services Ltd,Home Care - Private Contractors Payment,1102.08,0.00,COMMERCIAL SUPPLIER 
 16-08-2022,Adults,Outreach Support Services Ltd,Home Care - Private Contractors Payment,826.56,0.00,COMMERCIAL SUPPLIER 
 16-08-2022,Adults,Outreach Support Services Ltd,Home Care - Private Contractors Payment,619.92,0.00,COMMERCIAL SUPPLIER 
 16-08-2022,Adults,Outreach Support Services Ltd,Home Care - Private Contractors Payment,1633.44,0.00,COMMERCIAL SUPPLIER 
 16-08-2022,Adults,Outreach Support Services Ltd,Home Care - Private Contractors Payment,1102.08,0.00,COMMERCIAL SUPPLIER 
 16-08-2022,Adults,Outreach Support Services Ltd,Home Care - Private Contractors Payment,1357.92,0.00,COMMERCIAL SUPPLIER 
 16-08-2022,Adults,Outreach Support Services Ltd,Home Care - Private Contractors Payment,551.04,0.00,COMMERCIAL SUPPLIER 
 16-08-2022,Adults,Outreach Support Services Ltd,Home Care - Private Contractors Payment,2046.72,0.00,COMMERCIAL SUPPLIER 
 16-08-2022,Adults,Outreach Support Services Ltd,Home Care - Private Contractors Payment,2046.72,0.00,COMMERCIAL SUPPLIER 
 16-08-2022,Adults,Outreach Support Services Ltd,Home Care - Private Contractors Payment,2046.72,0.00,COMMERCIAL SUPPLIER 
 16-08-2022,Adults,Outreach Support Services Ltd,Home Care - Private Contractors Payment,2046.72,0.00,COMMERCIAL SUPPLIER 
 16-08-2022,Adults,Outreach Support Services Ltd,Home Care - Private Contractors Payment,619.92,0.00,COMMERCIAL SUPPLIER 
 16-08-2022,Adults,Outreach Support Services Ltd,Home Care - Private Contractors Payment,619.92,0.00,COMMERCIAL SUPPLIER 
 16-08-2022,Adults,Outreach Support Services Ltd,Home Care - Private Contractors Payment,1239.84,0.00,COMMERCIAL SUPPLIER 
 16-08-2022,Adults,Outreach Support Services Ltd,Home Care - Private Contractors Payment,1239.84,0.00,COMMERCIAL SUPPLIER 
 16-08-2022,Adults,Outreach Support Services Ltd,Home Care - Private Contractors Payment,1758.48,0.00,COMMERCIAL SUPPLIER 
 16-08-2022,Adults,Outreach Support Services Ltd,Home Care - Private Contractors Payment,1928.64,0.00,COMMERCIAL SUPPLIER 
 16-08-2022,Adults,Outreach Support Services Ltd,Home Care - Private Contractors Payment,551.04,0.00,COMMERCIAL SUPPLIER 
 16-08-2022,Adults,Outreach Support Services Ltd,Home Care - Private Contractors Payment,826.56,0.00,COMMERCIAL SUPPLIER 
 16-08-2022,Adults,Outreach Support Services Ltd,Home Care - Private Contractors Payment,1102.08,0.00,COMMERCIAL SUPPLIER 
 16-08-2022,Adults,Outreach Support Services Ltd,Home Care - Private Contractors Payment,1102.08,0.00,COMMERCIAL SUPPLIER 
 16-08-2022,Adults,Outreach Support Services Ltd,Home Care - Private Contractors Payment,826.56,0.00,COMMERCIAL SUPPLIER 
 16-08-2022,Adults,Outreach Support Services Ltd,Home Care - Private Contractors Payment,1102.08,0.00,COMMERCIAL SUPPLIER 
 16-08-2022,Adults,Outreach Support Services Ltd,Home Care - Private Contractors Payment,1239.84,0.00,COMMERCIAL SUPPLIER 
 16-08-2022,Adults,Outreach Support Services Ltd,Home Care - Private Contractors Payment,1239.84,0.00,COMMERCIAL SUPPLIER 
 16-08-2022,Adults,Outreach Support Services Ltd,Home Care - Private Contractors Payment,1102.08,0.00,COMMERCIAL SUPPLIER 
 16-08-2022,Adults,Outreach Support Services Ltd,Home Care - Private Contractors Payment,708.48,0.00,COMMERCIAL SUPPLIER 
 16-08-2022,Adults,Agracare Ltd t/a Home Instead Senior Care,Home Care - Private Contractors Payment,1911.00,0.00,COMMERCIAL SUPPLIER 
 17-08-2022,Adults,IJB Healthcare Ltd,Home Care - Private Contractors Payment,1102.08,0.00,COMMERCIAL SUPPLIER 
 17-08-2022,Adults,IJB Healthcare Ltd,Home Care - Private Contractors Payment,1102.08,0.00,COMMERCIAL SUPPLIER 
 17-08-2022,Adults,IJB Healthcare Ltd,Home Care - Private Contractors Payment,1692.48,0.00,COMMERCIAL SUPPLIER 
 17-08-2022,Adults,IJB Healthcare Ltd,Home Care - Private Contractors Payment,1180.80,0.00,COMMERCIAL SUPPLIER 
 17-08-2022,Adults,HSL Compliance Ltd,Professional Services - General,832.98,0.00,CIS 
 17-08-2022,Adults,Care-Away Ltd T/A Care Support,Home Care - Private Contractors Payment,1048.32,0.00,COMMERCIAL SUPPLIER 
 17-08-2022,Adults,Care-Away Ltd T/A Care Support,Home Care - Private Contractors Payment,632.32,0.00,COMMERCIAL SUPPLIER 
 17-08-2022,Adults,Care-Away Ltd T/A Care Support,Home Care - Private Contractors Payment,965.12,0.00,COMMERCIAL SUPPLIER 
 17-08-2022,Adults,Care-Away Ltd T/A Care Support,Home Care - Private Contractors Payment,1048.32,0.00,COMMERCIAL SUPPLIER 
 17-08-2022,Adults,Care-Away Ltd T/A Care Support,Home Care - Private Contractors Payment,931.84,0.00,COMMERCIAL SUPPLIER 
 17-08-2022,Adults,Care-Away Ltd T/A Care Support,Home Care - Private Contractors Payment,582.40,0.00,COMMERCIAL SUPPLIER 
 17-08-2022,Adults,Care-Away Ltd T/A Care Support,Home Care - Private Contractors Payment,2096.64,0.00,COMMERCIAL SUPPLIER 
 17-08-2022,Adults,Care-Away Ltd T/A Care Support,Home Care - Private Contractors Payment,1164.80,0.00,COMMERCIAL SUPPLIER 
 17-08-2022,Adults,Care-Away Ltd T/A Care Support,Home Care - Private Contractors Payment,1164.80,0.00,COMMERCIAL SUPPLIER 
 17-08-2022,Adults,Care-Away Ltd T/A Care Support,Home Care - Private Contractors Payment,931.84,0.00,COMMERCIAL SUPPLIER 
 17-08-2022,Adults,Care-Away Ltd T/A Care Support,Home Care - Private Contractors Payment,1164.80,0.00,COMMERCIAL SUPPLIER 
 17-08-2022,Adults,Care-Away Ltd T/A Care Support,Home Care - Private Contractors Payment,2329.60,0.00,COMMERCIAL SUPPLIER 
 17-08-2022,Adults,Care-Away Ltd T/A Care Support,Home Care - Private Contractors Payment,2795.52,0.00,COMMERCIAL SUPPLIER 
 17-08-2022,Adults,Care-Away Ltd T/A Care Support,Home Care - Private Contractors Payment,1830.40,0.00,COMMERCIAL SUPPLIER 
 17-08-2022,Adults,Care-Away Ltd T/A Care Support,Home Care - Private Contractors Payment,1248.00,0.00,COMMERCIAL SUPPLIER 
 17-08-2022,Adults,Care-Away Ltd T/A Care Support,Home Care - Private Contractors Payment,582.40,0.00,COMMERCIAL SUPPLIER 
 17-08-2022,Adults,Care-Away Ltd T/A Care Support,Home Care - Private Contractors Payment,723.84,0.00,COMMERCIAL SUPPLIER 
 17-08-2022,Adults,Care-Away Ltd T/A Care Support,Home Care - Private Contractors Payment,1863.68,0.00,COMMERCIAL SUPPLIER 
 17-08-2022,Adults,Care-Away Ltd T/A Care Support,Home Care - Private Contractors Payment,698.88,0.00,COMMERCIAL SUPPLIER 
 17-08-2022,Adults,Care-Away Ltd T/A Care Support,Home Care - Private Contractors Payment,931.84,0.00,COMMERCIAL SUPPLIER 
 17-08-2022,Adults,Care-Away Ltd T/A Care Support,Home Care - Private Contractors Payment,931.84,0.00,COMMERCIAL SUPPLIER 
 17-08-2022,Adults,Care-Away Ltd T/A Care Support,Home Care - Private Contractors Payment,2562.56,0.00,COMMERCIAL SUPPLIER 
 17-08-2022,Adults,Care-Away Ltd T/A Care Support,Home Care - Private Contractors Payment,698.88,0.00,COMMERCIAL SUPPLIER 
 17-08-2022,Adults,Care-Away Ltd T/A Care Support,Private Contractors Payment - Other,20828.31,0.00,COMMERCIAL SUPPLIER 
 17-08-2022,Adults,Carers Centre SA Ltd ,Payments To Voluntary Sector,2740.87,0.00,COMMERCIAL SUPPLIER 
 17-08-2022,Adults,Carers Centre SA Ltd ,Payments To Voluntary Sector,2740.87,0.00,COMMERCIAL SUPPLIER 
 17-08-2022,Adults,Carers Centre SA Ltd ,Payments To Voluntary Sector,2740.87,0.00,COMMERCIAL SUPPLIER 
 17-08-2022,Adults,Carers Centre SA Ltd ,Payments To Voluntary Sector,2740.87,0.00,COMMERCIAL SUPPLIER 
 17-08-2022,Adults,Carers Centre SA Ltd ,Payments To Voluntary Sector,2740.87,0.00,COMMERCIAL SUPPLIER 
 17-08-2022,Adults,Optimal Care Services Ltd,Supported Other Accommodation - Private Contractors Payment,3853.28,0.00,COMMERCIAL SUPPLIER 
 17-08-2022,Adults,Optimal Care Services Ltd,Supported Other Accommodation - Private Contractors Payment,6191.84,0.00,COMMERCIAL SUPPLIER 
 17-08-2022,Adults,Optimal Care Services Ltd,Supported Other Accommodation - Private Contractors Payment,7532.48,0.00,COMMERCIAL SUPPLIER 
 17-08-2022,Adults,Matrix SCM Ltd,Agency Staff,866.24,0.00,COMMERCIAL SUPPLIER 
 17-08-2022,Adults,Matrix SCM Ltd,Agency Staff,1046.62,0.00,COMMERCIAL SUPPLIER 
 17-08-2022,Adults,Matrix SCM Ltd,Agency Staff,969.43,0.00,COMMERCIAL SUPPLIER 
 17-08-2022,Adults,Matrix SCM Ltd,Agency Staff,2777.70,0.00,COMMERCIAL SUPPLIER 
 17-08-2022,Adults,Matrix SCM Ltd,Agency Staff,756.00,0.00,COMMERCIAL SUPPLIER 
 17-08-2022,Adults,Matrix SCM Ltd,Agency Staff,756.00,0.00,COMMERCIAL SUPPLIER 
 17-08-2022,Adults,Matrix SCM Ltd,Agency Staff,759.85,0.00,COMMERCIAL SUPPLIER 
 17-08-2022,Adults,Matrix SCM Ltd,Agency Staff,998.64,0.00,COMMERCIAL SUPPLIER 
 17-08-2022,Adults,Matrix SCM Ltd,Agency Staff,607.88,0.00,COMMERCIAL SUPPLIER 
 17-08-2022,Adults,Matrix SCM Ltd,Agency Staff,2546.80,0.00,COMMERCIAL SUPPLIER 
 17-08-2022,Adults,Matrix SCM Ltd,Agency Staff,786.10,0.00,COMMERCIAL SUPPLIER 
 17-08-2022,Adults,Matrix SCM Ltd,Agency Staff,820.52,0.00,COMMERCIAL SUPPLIER 
 17-08-2022,Adults,Matrix SCM Ltd,Agency Staff,875.76,0.00,COMMERCIAL SUPPLIER 
 17-08-2022,Adults,Matrix SCM Ltd,Agency Staff,774.55,0.00,COMMERCIAL SUPPLIER 
 17-08-2022,Adults,Matrix SCM Ltd,Agency Staff,1104.24,0.00,COMMERCIAL SUPPLIER 
 17-08-2022,Adults,Matrix SCM Ltd,Agency Staff,1175.04,0.00,COMMERCIAL SUPPLIER 
 17-08-2022,Adults,Matrix SCM Ltd,Agency Staff,1181.15,0.00,COMMERCIAL SUPPLIER 
 17-08-2022,Adults,Matrix SCM Ltd,Agency Staff,1282.34,0.00,COMMERCIAL SUPPLIER 
 17-08-2022,Adults,Matrix SCM Ltd,Agency Staff,1282.34,0.00,COMMERCIAL SUPPLIER 
 17-08-2022,Adults,Matrix SCM Ltd,Agency Staff,705.41,0.00,COMMERCIAL SUPPLIER 
 17-08-2022,Adults,Matrix SCM Ltd,Agency Staff,1515.98,0.00,COMMERCIAL SUPPLIER 
 17-08-2022,Adults,Matrix SCM Ltd,Agency Staff,1284.13,0.00,COMMERCIAL SUPPLIER 
 17-08-2022,Adults,Matrix SCM Ltd,Agency Staff,1152.35,0.00,COMMERCIAL SUPPLIER 
 17-08-2022,Adults,Matrix SCM Ltd,Agency Staff,1207.46,0.00,COMMERCIAL SUPPLIER 
 17-08-2022,Adults,Matrix SCM Ltd,Agency Staff,1473.12,0.00,COMMERCIAL SUPPLIER 
 17-08-2022,Adults,Matrix SCM Ltd,Agency Staff,657.73,0.00,COMMERCIAL SUPPLIER 
 17-08-2022,Adults,Matrix SCM Ltd,Agency Staff,612.35,0.00,COMMERCIAL SUPPLIER 
 17-08-2022,Adults,Matrix SCM Ltd,Agency Staff,622.08,0.00,COMMERCIAL SUPPLIER 
 17-08-2022,Adults,Matrix SCM Ltd,Agency Staff,632.90,0.00,COMMERCIAL SUPPLIER 
 17-08-2022,Adults,Matrix SCM Ltd,Agency Staff,611.66,0.00,COMMERCIAL SUPPLIER 
 17-08-2022,Adults,Matrix SCM Ltd,Agency Staff,656.63,0.00,COMMERCIAL SUPPLIER 
 17-08-2022,Adults,Matrix SCM Ltd,Agency Staff,1241.28,0.00,COMMERCIAL SUPPLIER 
 17-08-2022,Adults,Matrix SCM Ltd,Agency Staff,1241.28,0.00,COMMERCIAL SUPPLIER 
 17-08-2022,Adults,Matrix SCM Ltd,Agency Staff,844.58,0.00,COMMERCIAL SUPPLIER 
 17-08-2022,Adults,Matrix SCM Ltd,Agency Staff,749.07,0.00,COMMERCIAL SUPPLIER 
 17-08-2022,Adults,Matrix SCM Ltd,Agency Staff,1034.44,0.00,COMMERCIAL SUPPLIER 
 17-08-2022,Adults,Matrix SCM Ltd,Agency Staff,1289.92,0.00,COMMERCIAL SUPPLIER 
 17-08-2022,Adults,Matrix SCM Ltd,Agency Staff,754.91,0.00,COMMERCIAL SUPPLIER 
 17-08-2022,Adults,Matrix SCM Ltd,Agency Staff,1132.56,0.00,COMMERCIAL SUPPLIER 
 17-08-2022,Adults,Matrix SCM Ltd,Agency Staff,1601.28,0.00,COMMERCIAL SUPPLIER 
 17-08-2022,Adults,Matrix SCM Ltd,Agency Staff,1035.88,0.00,COMMERCIAL SUPPLIER 
 17-08-2022,Adults,Matrix SCM Ltd,Agency Staff,1241.28,0.00,COMMERCIAL SUPPLIER 
 17-08-2022,Adults,Matrix SCM Ltd,Agency Staff,1288.45,0.00,COMMERCIAL SUPPLIER 
 17-08-2022,Adults,Matrix SCM Ltd,Agency Staff,1244.51,0.00,COMMERCIAL SUPPLIER 
 17-08-2022,Adults,Matrix SCM Ltd,Agency Staff,777.42,0.00,COMMERCIAL SUPPLIER 
 17-08-2022,Adults,Matrix SCM Ltd,Agency Staff,1357.57,0.00,COMMERCIAL SUPPLIER 
 17-08-2022,Adults,Matrix SCM Ltd,Agency Staff,1241.28,0.00,COMMERCIAL SUPPLIER 
 17-08-2022,Adults,Matrix SCM Ltd,Agency Staff,721.12,0.00,COMMERCIAL SUPPLIER 
 17-08-2022,Adults,Matrix SCM Ltd,Agency Staff,1241.28,0.00,COMMERCIAL SUPPLIER 
 17-08-2022,Adults,Matrix SCM Ltd,Agency Staff,735.84,0.00,COMMERCIAL SUPPLIER 
 17-08-2022,Adults,Matrix SCM Ltd,Agency Staff,1241.28,0.00,COMMERCIAL SUPPLIER 
 17-08-2022,Adults,Matrix SCM Ltd,Agency Staff,1036.56,0.00,COMMERCIAL SUPPLIER 
 17-08-2022,Adults,Matrix SCM Ltd,Agency Staff,1153.04,0.00,COMMERCIAL SUPPLIER 
 17-08-2022,Adults,Matrix SCM Ltd,Agency Staff,777.42,0.00,COMMERCIAL SUPPLIER 
 17-08-2022,Adults,Matrix SCM Ltd,Agency Staff,1169.28,0.00,COMMERCIAL SUPPLIER 
 17-08-2022,Adults,Matrix SCM Ltd,Agency Staff,1290.24,0.00,COMMERCIAL SUPPLIER 
 17-08-2022,Adults,Matrix SCM Ltd,Agency Staff,520.66,0.00,COMMERCIAL SUPPLIER 
 17-08-2022,Adults,Matrix SCM Ltd,Agency Staff,1068.32,0.00,COMMERCIAL SUPPLIER 
 17-08-2022,Adults,Ace Outreach Ltd,Home Care - Private Contractors Payment,1260.00,0.00,COMMERCIAL SUPPLIER 
 17-08-2022,Adults,Ace Outreach Ltd,Home Care - Private Contractors Payment,1260.00,0.00,COMMERCIAL SUPPLIER 
 17-08-2022,Adults,Ace Outreach Ltd,Home Care - Private Contractors Payment,1260.00,0.00,COMMERCIAL SUPPLIER 
 17-08-2022,Adults,Ace Outreach Ltd,Home Care - Private Contractors Payment,1260.00,0.00,COMMERCIAL SUPPLIER 
 17-08-2022,Adults,Ace Outreach Ltd,Home Care - Private Contractors Payment,1260.00,0.00,COMMERCIAL SUPPLIER 
 17-08-2022,Adults,Ace Outreach Ltd,Home Care - Private Contractors Payment,1080.01,0.00,COMMERCIAL SUPPLIER 
 17-08-2022,Adults,Ace Outreach Ltd,Home Care - Private Contractors Payment,1260.00,0.00,COMMERCIAL SUPPLIER 
 17-08-2022,Adults,Ace Outreach Ltd,Home Care - Private Contractors Payment,1260.00,0.00,COMMERCIAL SUPPLIER 
 17-08-2022,Adults,Ace Outreach Ltd,Home Care - Private Contractors Payment,3600.00,0.00,COMMERCIAL SUPPLIER 
 18-08-2022,Adults,London Care Plc_a,Home Care - Private Contractors Payment,1292.98,0.00,COMMERCIAL SUPPLIER 
 18-08-2022,Adults,London Care Plc_a,Home Care - Private Contractors Payment,1310.69,0.00,COMMERCIAL SUPPLIER 
 18-08-2022,Adults,London Care Plc_a,Home Care - Private Contractors Payment,1414.01,0.00,COMMERCIAL SUPPLIER 
 18-08-2022,Adults,London Care Plc_a,Home Care - Private Contractors Payment,1404.50,0.00,COMMERCIAL SUPPLIER 
 18-08-2022,Adults,London Care Plc_a,Home Care - Private Contractors Payment,592.04,0.00,COMMERCIAL SUPPLIER 
 18-08-2022,Adults,London Care Plc_a,Home Care - Private Contractors Payment,862.97,0.00,COMMERCIAL SUPPLIER 
 18-08-2022,Adults,London Care Plc_a,Home Care - Private Contractors Payment,1176.86,0.00,COMMERCIAL SUPPLIER 
 18-08-2022,Adults,London Care Plc_a,Home Care - Private Contractors Payment,1173.58,0.00,COMMERCIAL SUPPLIER 
 18-08-2022,Adults,London Care Plc_a,Home Care - Private Contractors Payment,1085.02,0.00,COMMERCIAL SUPPLIER 
 18-08-2022,Adults,Lodge Group Care UK Ltd,Home Care - Private Contractors Payment,3060.00,0.00,COMMERCIAL SUPPLIER 
 18-08-2022,Adults,Lodge Group Care UK Ltd,Home Care - Private Contractors Payment,3060.00,0.00,COMMERCIAL SUPPLIER 
 18-08-2022,Adults,Lodge Group Care UK Ltd,Home Care - Private Contractors Payment,3060.00,0.00,COMMERCIAL SUPPLIER 
 18-08-2022,Adults,Lodge Group Care UK Ltd,Home Care - Private Contractors Payment,3060.00,0.00,COMMERCIAL SUPPLIER 
 18-08-2022,Adults,Lodge Group Care UK Ltd,Home Care - Private Contractors Payment,3060.00,0.00,COMMERCIAL SUPPLIER 
 18-08-2022,Adults,Lodge Group Care UK Ltd,Home Care - Private Contractors Payment,3060.00,0.00,COMMERCIAL SUPPLIER 
 18-08-2022,Adults,Lodge Group Care UK Ltd,Home Care - Private Contractors Payment,3060.00,0.00,COMMERCIAL SUPPLIER 
 18-08-2022,Adults,Lodge Group Care UK Ltd,Home Care - Private Contractors Payment,3060.00,0.00,COMMERCIAL SUPPLIER 
 18-08-2022,Adults,Lodge Group Care UK Ltd,Home Care - Private Contractors Payment,3060.00,0.00,COMMERCIAL SUPPLIER 
 18-08-2022,Adults,Lodge Group Care UK Ltd,Home Care - Private Contractors Payment,3060.00,0.00,COMMERCIAL SUPPLIER 
 18-08-2022,Adults,Lodge Group Care UK Ltd,Home Care - Private Contractors Payment,3060.00,0.00,COMMERCIAL SUPPLIER 
 18-08-2022,Adults,Lodge Group Care UK Ltd,Home Care - Private Contractors Payment,3060.00,0.00,COMMERCIAL SUPPLIER 
 18-08-2022,Adults,Care-Away Ltd T/A Care Support,Home Care - Private Contractors Payment,698.88,0.00,COMMERCIAL SUPPLIER 
 18-08-2022,Adults,Care-Away Ltd T/A Care Support,Home Care - Private Contractors Payment,906.88,0.00,COMMERCIAL SUPPLIER 
 18-08-2022,Adults,Care-Away Ltd T/A Care Support,Home Care - Private Contractors Payment,1040.00,0.00,COMMERCIAL SUPPLIER 
 18-08-2022,Adults,Care-Away Ltd T/A Care Support,Home Care - Private Contractors Payment,931.84,0.00,COMMERCIAL SUPPLIER 
 18-08-2022,Adults,Care-Away Ltd T/A Care Support,Home Care - Private Contractors Payment,1231.36,0.00,COMMERCIAL SUPPLIER 
 18-08-2022,Adults,Care-Away Ltd T/A Care Support,Home Care - Private Contractors Payment,931.84,0.00,COMMERCIAL SUPPLIER 
 18-08-2022,Adults,Care-Away Ltd T/A Care Support,Home Care - Private Contractors Payment,698.88,0.00,COMMERCIAL SUPPLIER 
 18-08-2022,Adults,Care-Away Ltd T/A Care Support,Home Care - Private Contractors Payment,698.88,0.00,COMMERCIAL SUPPLIER 
 18-08-2022,Adults,Care-Away Ltd T/A Care Support,Home Care - Private Contractors Payment,1863.68,0.00,COMMERCIAL SUPPLIER 
 18-08-2022,Adults,Care-Away Ltd T/A Care Support,Home Care - Private Contractors Payment,582.40,0.00,COMMERCIAL SUPPLIER 
 18-08-2022,Adults,Care-Away Ltd T/A Care Support,Home Care - Private Contractors Payment,948.48,0.00,COMMERCIAL SUPPLIER 
 18-08-2022,Adults,Care-Away Ltd T/A Care Support,Home Care - Private Contractors Payment,715.52,0.00,COMMERCIAL SUPPLIER 
 18-08-2022,Adults,Care-Away Ltd T/A Care Support,Home Care - Private Contractors Payment,1164.80,0.00,COMMERCIAL SUPPLIER 
 18-08-2022,Adults,Care-Away Ltd T/A Care Support,Home Care - Private Contractors Payment,815.36,0.00,COMMERCIAL SUPPLIER 
 18-08-2022,Adults,Care-Away Ltd T/A Care Support,Home Care - Private Contractors Payment,1397.76,0.00,COMMERCIAL SUPPLIER 
 18-08-2022,Adults,Care-Away Ltd T/A Care Support,Home Care - Private Contractors Payment,715.52,0.00,COMMERCIAL SUPPLIER 
 18-08-2022,Adults,Care-Away Ltd T/A Care Support,Home Care - Private Contractors Payment,931.84,0.00,COMMERCIAL SUPPLIER 
 18-08-2022,Adults,Care-Away Ltd T/A Care Support,Home Care - Private Contractors Payment,1489.28,0.00,COMMERCIAL SUPPLIER 
 18-08-2022,Adults,Care-Away Ltd T/A Care Support,Home Care - Private Contractors Payment,931.84,0.00,COMMERCIAL SUPPLIER 
 18-08-2022,Adults,Care-Away Ltd T/A Care Support,Home Care - Private Contractors Payment,965.12,0.00,COMMERCIAL SUPPLIER 
 18-08-2022,Adults,Care-Away Ltd T/A Care Support,Home Care - Private Contractors Payment,965.12,0.00,COMMERCIAL SUPPLIER 
 18-08-2022,Adults,Care-Away Ltd T/A Care Support,Home Care - Private Contractors Payment,815.36,0.00,COMMERCIAL SUPPLIER 
 18-08-2022,Adults,Care-Away Ltd T/A Care Support,Home Care - Private Contractors Payment,1514.24,0.00,COMMERCIAL SUPPLIER 
 18-08-2022,Adults,Care-Away Ltd T/A Care Support,Home Care - Private Contractors Payment,1614.08,0.00,COMMERCIAL SUPPLIER 
 18-08-2022,Adults,Care-Away Ltd T/A Care Support,Home Care - Private Contractors Payment,657.28,0.00,COMMERCIAL SUPPLIER 
 18-08-2022,Adults,Care-Away Ltd T/A Care Support,Home Care - Private Contractors Payment,865.28,0.00,COMMERCIAL SUPPLIER 
 18-08-2022,Adults,Care-Away Ltd T/A Care Support,Home Care - Private Contractors Payment,2329.60,0.00,COMMERCIAL SUPPLIER 
 18-08-2022,Adults,Care-Away Ltd T/A Care Support,Home Care - Private Contractors Payment,1539.20,0.00,COMMERCIAL SUPPLIER 
 18-08-2022,Adults,Prosperity Hope ,Supported Other Accommodation - Private Contractors Payment,1925.00,0.00,COMMERCIAL SUPPLIER 
 18-08-2022,Adults,Pleasant Home Healthcare Ltd,Home Care - Private Contractors Payment,551.04,0.00,COMMERCIAL SUPPLIER 
 18-08-2022,Adults,Pleasant Home Healthcare Ltd,Home Care - Private Contractors Payment,767.52,0.00,COMMERCIAL SUPPLIER 
 18-08-2022,Adults,Pleasant Home Healthcare Ltd,Home Care - Private Contractors Payment,1387.44,0.00,COMMERCIAL SUPPLIER 
 19-08-2022,Adults,Prestige Care & Support Ltd,Home Care - Private Contractors Payment,551.70,0.00,COMMERCIAL SUPPLIER 
 19-08-2022,Adults,Prestige Care & Support Ltd,Home Care - Private Contractors Payment,592.70,0.00,COMMERCIAL SUPPLIER 
 19-08-2022,Adults,Prestige Care & Support Ltd,Home Care - Private Contractors Payment,551.04,0.00,COMMERCIAL SUPPLIER 
 19-08-2022,Adults,Prestige Care & Support Ltd,Home Care - Private Contractors Payment,1001.71,0.00,COMMERCIAL SUPPLIER 
 19-08-2022,Adults,Prestige Care & Support Ltd,Home Care - Private Contractors Payment,1021.39,0.00,COMMERCIAL SUPPLIER 
 19-08-2022,Adults,Prestige Care & Support Ltd,Home Care - Private Contractors Payment,1025.66,0.00,COMMERCIAL SUPPLIER 
 19-08-2022,Adults,Prestige Care & Support Ltd,Home Care - Private Contractors Payment,830.50,0.00,COMMERCIAL SUPPLIER 
 19-08-2022,Adults,Prestige Care & Support Ltd,Home Care - Private Contractors Payment,542.18,0.00,COMMERCIAL SUPPLIER 
 19-08-2022,Adults,Prestige Care & Support Ltd,Home Care - Private Contractors Payment,1130.29,0.00,COMMERCIAL SUPPLIER 
 19-08-2022,Adults,Prestige Care & Support Ltd,Home Care - Private Contractors Payment,560.88,0.00,COMMERCIAL SUPPLIER 
 19-08-2022,Adults,Prestige Care & Support Ltd,Home Care - Private Contractors Payment,637.63,0.00,COMMERCIAL SUPPLIER 
 19-08-2022,Adults,Prestige Care & Support Ltd,Home Care - Private Contractors Payment,927.26,0.00,COMMERCIAL SUPPLIER 
 19-08-2022,Adults,Prestige Care & Support Ltd,Home Care - Private Contractors Payment,816.72,0.00,COMMERCIAL SUPPLIER 
 19-08-2022,Adults,Prestige Care & Support Ltd,Home Care - Private Contractors Payment,511.68,0.00,COMMERCIAL SUPPLIER 
 19-08-2022,Adults,Prestige Care & Support Ltd,Home Care - Private Contractors Payment,1110.61,0.00,COMMERCIAL SUPPLIER 
 19-08-2022,Adults,Prestige Care & Support Ltd,Home Care - Private Contractors Payment,1110.61,0.00,COMMERCIAL SUPPLIER 
 19-08-2022,Adults,Prestige Care & Support Ltd,Home Care - Private Contractors Payment,826.56,0.00,COMMERCIAL SUPPLIER 
 19-08-2022,Adults,Prestige Care & Support Ltd,Home Care - Private Contractors Payment,519.88,0.00,COMMERCIAL SUPPLIER 
 19-08-2022,Adults,Prestige Care & Support Ltd,Home Care - Private Contractors Payment,913.15,0.00,COMMERCIAL SUPPLIER 
 19-08-2022,Adults,Prestige Care & Support Ltd,Home Care - Private Contractors Payment,591.71,0.00,COMMERCIAL SUPPLIER 
 19-08-2022,Adults,Prestige Care & Support Ltd,Home Care - Private Contractors Payment,551.04,0.00,COMMERCIAL SUPPLIER 
 19-08-2022,Adults,Prestige Care & Support Ltd,Home Care - Private Contractors Payment,826.56,0.00,COMMERCIAL SUPPLIER 
 19-08-2022,Adults,Prestige Care & Support Ltd,Home Care - Private Contractors Payment,1731.84,0.00,COMMERCIAL SUPPLIER 
 19-08-2022,Adults,Prestige Care & Support Ltd,Home Care - Private Contractors Payment,1092.24,0.00,COMMERCIAL SUPPLIER 
 19-08-2022,Adults,Prestige Care & Support Ltd,Home Care - Private Contractors Payment,1092.57,0.00,COMMERCIAL SUPPLIER 
 19-08-2022,Adults,Prestige Care & Support Ltd,Home Care - Private Contractors Payment,830.17,0.00,COMMERCIAL SUPPLIER 
 19-08-2022,Adults,Prestige Care & Support Ltd,Home Care - Private Contractors Payment,535.62,0.00,COMMERCIAL SUPPLIER 
 19-08-2022,Adults,Prestige Care & Support Ltd,Home Care - Private Contractors Payment,989.58,0.00,COMMERCIAL SUPPLIER 
 19-08-2022,Adults,Prestige Care & Support Ltd,Home Care - Private Contractors Payment,1024.34,0.00,COMMERCIAL SUPPLIER 
 19-08-2022,Adults,Prestige Care & Support Ltd,Home Care - Private Contractors Payment,659.28,0.00,COMMERCIAL SUPPLIER 
 19-08-2022,Adults,Prestige Care & Support Ltd,Home Care - Private Contractors Payment,659.28,0.00,COMMERCIAL SUPPLIER 
 19-08-2022,Adults,Prestige Care & Support Ltd,Home Care - Private Contractors Payment,1107.66,0.00,COMMERCIAL SUPPLIER 
 19-08-2022,Adults,Prestige Care & Support Ltd,Home Care - Private Contractors Payment,1107.66,0.00,COMMERCIAL SUPPLIER 
 19-08-2022,Adults,Prestige Care & Support Ltd,Home Care - Private Contractors Payment,1044.35,0.00,COMMERCIAL SUPPLIER 
 19-08-2022,Adults,Prestige Care & Support Ltd,Home Care - Private Contractors Payment,1036.48,0.00,COMMERCIAL SUPPLIER 
 19-08-2022,Adults,Prestige Care & Support Ltd,Home Care - Private Contractors Payment,1037.79,0.00,COMMERCIAL SUPPLIER 
 19-08-2022,Adults,Prestige Care & Support Ltd,Home Care - Private Contractors Payment,551.04,0.00,COMMERCIAL SUPPLIER 
 19-08-2022,Adults,Prestige Care & Support Ltd,Home Care - Private Contractors Payment,826.56,0.00,COMMERCIAL SUPPLIER 
 19-08-2022,Adults,Prestige Care & Support Ltd,Home Care - Private Contractors Payment,826.56,0.00,COMMERCIAL SUPPLIER 
 19-08-2022,Adults,Prestige Care & Support Ltd,Home Care - Private Contractors Payment,1950.62,0.00,COMMERCIAL SUPPLIER 
 19-08-2022,Adults,Prestige Care & Support Ltd,Home Care - Private Contractors Payment,914.46,0.00,COMMERCIAL SUPPLIER 
 19-08-2022,Adults,Prestige Care & Support Ltd,Home Care - Private Contractors Payment,630.09,0.00,COMMERCIAL SUPPLIER 
 19-08-2022,Adults,Prestige Care & Support Ltd,Home Care - Private Contractors Payment,840.99,0.00,COMMERCIAL SUPPLIER 
 19-08-2022,Adults,Prestige Care & Support Ltd,Home Care - Private Contractors Payment,1396.30,0.00,COMMERCIAL SUPPLIER 
 19-08-2022,Adults,Prestige Care & Support Ltd,Home Care - Private Contractors Payment,1104.05,0.00,COMMERCIAL SUPPLIER 
 19-08-2022,Adults,Prestige Care & Support Ltd,Home Care - Private Contractors Payment,1104.70,0.00,COMMERCIAL SUPPLIER 
 19-08-2022,Adults,Prestige Care & Support Ltd,Home Care - Private Contractors Payment,859.03,0.00,COMMERCIAL SUPPLIER 
 19-08-2022,Adults,Prestige Care & Support Ltd,Home Care - Private Contractors Payment,806.88,0.00,COMMERCIAL SUPPLIER 
 19-08-2022,Adults,Prestige Care & Support Ltd,Home Care - Private Contractors Payment,1056.49,0.00,COMMERCIAL SUPPLIER 
 19-08-2022,Adults,Prestige Care & Support Ltd,Home Care - Private Contractors Payment,1107.33,0.00,COMMERCIAL SUPPLIER 
 19-08-2022,Adults,Prestige Care & Support Ltd,Home Care - Private Contractors Payment,1107.33,0.00,COMMERCIAL SUPPLIER 
 19-08-2022,Adults,Prestige Care & Support Ltd,Home Care - Private Contractors Payment,916.76,0.00,COMMERCIAL SUPPLIER 
 19-08-2022,Adults,Prestige Care & Support Ltd,Home Care - Private Contractors Payment,928.57,0.00,COMMERCIAL SUPPLIER 
 19-08-2022,Adults,Prestige Care & Support Ltd,Home Care - Private Contractors Payment,1233.28,0.00,COMMERCIAL SUPPLIER 
 19-08-2022,Adults,Prestige Care & Support Ltd,Home Care - Private Contractors Payment,867.56,0.00,COMMERCIAL SUPPLIER 
 19-08-2022,Adults,Prestige Care & Support Ltd,Home Care - Private Contractors Payment,1128.65,0.00,COMMERCIAL SUPPLIER 
 19-08-2022,Adults,Prestige Care & Support Ltd,Home Care - Private Contractors Payment,589.42,0.00,COMMERCIAL SUPPLIER 
 19-08-2022,Adults,Prestige Care & Support Ltd,Home Care - Private Contractors Payment,674.37,0.00,COMMERCIAL SUPPLIER 
 19-08-2022,Adults,Prestige Care & Support Ltd,Home Care - Private Contractors Payment,1105.36,0.00,COMMERCIAL SUPPLIER 
 19-08-2022,Adults,Osborne Partnership,Daycare - Private Contractors Payment,1500.00,0.00,COMMERCIAL SUPPLIER 
 20-08-2022,Adults,Lakefield Enterprises Ltd t/a R J Bowyer Building Services,"Maintenance - Equipment, Furniture And Materials",575.00,0.00,COMMERCIAL SUPPLIER 
 21-08-2022,Adults,Lakefield Enterprises Ltd t/a R J Bowyer Building Services,"Maintenance - Equipment, Furniture And Materials",832.00,0.00,COMMERCIAL SUPPLIER 
 22-08-2022,Adults,John Stanleys Care Agency Ltd,Home Care - Private Contractors Payment,706.51,0.00,COMMERCIAL SUPPLIER 
 22-08-2022,Adults,John Stanleys Care Agency Ltd,Home Care - Private Contractors Payment,1242.14,0.00,COMMERCIAL SUPPLIER 
 22-08-2022,Adults,John Stanleys Care Agency Ltd,Home Care - Private Contractors Payment,1253.62,0.00,COMMERCIAL SUPPLIER 
 22-08-2022,Adults,John Stanleys Care Agency Ltd,Home Care - Private Contractors Payment,556.94,0.00,COMMERCIAL SUPPLIER 
 22-08-2022,Adults,John Stanleys Care Agency Ltd,Home Care - Private Contractors Payment,4066.54,0.00,COMMERCIAL SUPPLIER 
 22-08-2022,Adults,John Stanleys Care Agency Ltd,Home Care - Private Contractors Payment,550.06,0.00,COMMERCIAL SUPPLIER 
 22-08-2022,Adults,John Stanleys Care Agency Ltd,Home Care - Private Contractors Payment,954.81,0.00,COMMERCIAL SUPPLIER 
 22-08-2022,Adults,John Stanleys Care Agency Ltd,Home Care - Private Contractors Payment,709.46,0.00,COMMERCIAL SUPPLIER 
 22-08-2022,Adults,John Stanleys Care Agency Ltd,Home Care - Private Contractors Payment,922.34,0.00,COMMERCIAL SUPPLIER 
 22-08-2022,Adults,John Stanleys Care Agency Ltd,Home Care - Private Contractors Payment,950.87,0.00,COMMERCIAL SUPPLIER 
 22-08-2022,Adults,John Stanleys Care Agency Ltd,Home Care - Private Contractors Payment,573.02,0.00,COMMERCIAL SUPPLIER 
 22-08-2022,Adults,John Stanleys Care Agency Ltd,Home Care - Private Contractors Payment,587.45,0.00,COMMERCIAL SUPPLIER 
 22-08-2022,Adults,John Stanleys Care Agency Ltd,Home Care - Private Contractors Payment,522.50,0.00,COMMERCIAL SUPPLIER 
 22-08-2022,Adults,John Stanleys Care Agency Ltd,Home Care - Private Contractors Payment,822.62,0.00,COMMERCIAL SUPPLIER 
 22-08-2022,Adults,John Stanleys Care Agency Ltd,Home Care - Private Contractors Payment,1125.04,0.00,COMMERCIAL SUPPLIER 
 22-08-2022,Adults,John Stanleys Care Agency Ltd,Home Care - Private Contractors Payment,1244.43,0.00,COMMERCIAL SUPPLIER 
 22-08-2022,Adults,John Stanleys Care Agency Ltd,Home Care - Private Contractors Payment,1237.54,0.00,COMMERCIAL SUPPLIER 
 22-08-2022,Adults,John Stanleys Care Agency Ltd,Home Care - Private Contractors Payment,554.32,0.00,COMMERCIAL SUPPLIER 
 22-08-2022,Adults,John Stanleys Care Agency Ltd,Home Care - Private Contractors Payment,540.22,0.00,COMMERCIAL SUPPLIER 
 22-08-2022,Adults,John Stanleys Care Agency Ltd,Home Care - Private Contractors Payment,1121.76,0.00,COMMERCIAL SUPPLIER 
 22-08-2022,Adults,John Stanleys Care Agency Ltd,Home Care - Private Contractors Payment,614.34,0.00,COMMERCIAL SUPPLIER 
 22-08-2022,Adults,John Stanleys Care Agency Ltd,Home Care - Private Contractors Payment,1328.40,0.00,COMMERCIAL SUPPLIER 
 22-08-2022,Adults,John Stanleys Care Agency Ltd,Home Care - Private Contractors Payment,1104.70,0.00,COMMERCIAL SUPPLIER 
 22-08-2022,Adults,John Stanleys Care Agency Ltd,Home Care - Private Contractors Payment,1260.18,0.00,COMMERCIAL SUPPLIER 
 22-08-2022,Adults,Lodge Group Care UK Ltd,Home Care - Private Contractors Payment,3060.00,0.00,COMMERCIAL SUPPLIER 
 22-08-2022,Adults,Lodge Group Care UK Ltd,Home Care - Private Contractors Payment,3060.00,0.00,COMMERCIAL SUPPLIER 
 22-08-2022,Adults,Lodge Group Care UK Ltd,Home Care - Private Contractors Payment,3060.00,0.00,COMMERCIAL SUPPLIER 
 22-08-2022,Adults,Lodge Group Care UK Ltd,Home Care - Private Contractors Payment,3060.00,0.00,COMMERCIAL SUPPLIER 
 22-08-2022,Adults,All Therapy Solutions Ltd,Occupational Health,3610.00,0.00,COMMERCIAL SUPPLIER 
 22-08-2022,Adults,Positive Signs Ltd,Professional Services - General,675.00,0.00,COMMERCIAL SUPPLIER 
 22-08-2022,Adults,Headway East London,Daycare - Private Contractors Payment,1008.00,0.00,COMMERCIAL SUPPLIER 
 22-08-2022,Adults,Crystalize Care Services,Home Care - Private Contractors Payment,1416.96,0.00,COMMERCIAL SUPPLIER 
 22-08-2022,Adults,Crystalize Care Services,Home Care - Private Contractors Payment,1416.96,0.00,COMMERCIAL SUPPLIER 
 22-08-2022,Adults,Crystalize Care Services,Home Care - Private Contractors Payment,3382.34,0.00,COMMERCIAL SUPPLIER 
 22-08-2022,Adults,Crystalize Care Services,Home Care - Private Contractors Payment,2517.07,0.00,COMMERCIAL SUPPLIER 
 22-08-2022,Adults,Cera Care Operations Ltd,Home Care - Private Contractors Payment,1104.70,0.00,COMMERCIAL SUPPLIER 
 22-08-2022,Adults,Cera Care Operations Ltd,Home Care - Private Contractors Payment,905.28,0.00,COMMERCIAL SUPPLIER 
 22-08-2022,Adults,Cera Care Operations Ltd,Home Care - Private Contractors Payment,551.04,0.00,COMMERCIAL SUPPLIER 
 22-08-2022,Adults,Cera Care Operations Ltd,Home Care - Private Contractors Payment,816.72,0.00,COMMERCIAL SUPPLIER 
 22-08-2022,Adults,Cera Care Operations Ltd,Home Care - Private Contractors Payment,846.90,0.00,COMMERCIAL SUPPLIER 
 22-08-2022,Adults,Cera Care Operations Ltd,Home Care - Private Contractors Payment,819.34,0.00,COMMERCIAL SUPPLIER 
 22-08-2022,Adults,Cera Care Operations Ltd,Home Care - Private Contractors Payment,545.79,0.00,COMMERCIAL SUPPLIER 
 22-08-2022,Adults,Cera Care Operations Ltd,Home Care - Private Contractors Payment,1233.61,0.00,COMMERCIAL SUPPLIER 
 22-08-2022,Adults,Cera Care Operations Ltd,Home Care - Private Contractors Payment,592.70,0.00,COMMERCIAL SUPPLIER 
 22-08-2022,Adults,Cera Care Operations Ltd,Home Care - Private Contractors Payment,769.82,0.00,COMMERCIAL SUPPLIER 
 22-08-2022,Adults,Cera Care Operations Ltd,Home Care - Private Contractors Payment,829.84,0.00,COMMERCIAL SUPPLIER 
 22-08-2022,Adults,Cera Care Operations Ltd,Home Care - Private Contractors Payment,1167.35,0.00,COMMERCIAL SUPPLIER 
 22-08-2022,Adults,Cera Care Operations Ltd,Home Care - Private Contractors Payment,1183.10,0.00,COMMERCIAL SUPPLIER 
 22-08-2022,Adults,Cera Care Operations Ltd,Home Care - Private Contractors Payment,1141.11,0.00,COMMERCIAL SUPPLIER 
 22-08-2022,Adults,Cera Care Operations Ltd,Home Care - Private Contractors Payment,1131.27,0.00,COMMERCIAL SUPPLIER 
 22-08-2022,Adults,Cera Care Operations Ltd,Home Care - Private Contractors Payment,1141.44,0.00,COMMERCIAL SUPPLIER 
 22-08-2022,Adults,Cera Care Operations Ltd,Home Care - Private Contractors Payment,551.04,0.00,COMMERCIAL SUPPLIER 
 22-08-2022,Adults,Cera Care Operations Ltd,Home Care - Private Contractors Payment,801.30,0.00,COMMERCIAL SUPPLIER 
 22-08-2022,Adults,Cera Care Operations Ltd,Home Care - Private Contractors Payment,1125.04,0.00,COMMERCIAL SUPPLIER 
 22-08-2022,Adults,Cera Care Operations Ltd,Home Care - Private Contractors Payment,696.34,0.00,COMMERCIAL SUPPLIER 
 22-08-2022,Adults,Cera Care Operations Ltd,Home Care - Private Contractors Payment,696.67,0.00,COMMERCIAL SUPPLIER 
 22-08-2022,Adults,Cera Care Operations Ltd,Home Care - Private Contractors Payment,1085.35,0.00,COMMERCIAL SUPPLIER 
 22-08-2022,Adults,Cera Care Operations Ltd,Home Care - Private Contractors Payment,692.41,0.00,COMMERCIAL SUPPLIER 
 22-08-2022,Adults,Cera Care Operations Ltd,Home Care - Private Contractors Payment,807.21,0.00,COMMERCIAL SUPPLIER 
 22-08-2022,Adults,Cera Care Operations Ltd,Home Care - Private Contractors Payment,1783.99,0.00,COMMERCIAL SUPPLIER 
 22-08-2022,Adults,Cera Care Operations Ltd,Home Care - Private Contractors Payment,554.98,0.00,COMMERCIAL SUPPLIER 
 22-08-2022,Adults,Cera Care Operations Ltd,Home Care - Private Contractors Payment,827.87,0.00,COMMERCIAL SUPPLIER 
 22-08-2022,Adults,Cera Care Operations Ltd,Home Care - Private Contractors Payment,551.04,0.00,COMMERCIAL SUPPLIER 
 22-08-2022,Adults,Cera Care Operations Ltd,Home Care - Private Contractors Payment,1087.98,0.00,COMMERCIAL SUPPLIER 
 22-08-2022,Adults,Cera Care Operations Ltd,Home Care - Private Contractors Payment,1090.93,0.00,COMMERCIAL SUPPLIER 
 22-08-2022,Adults,Cera Care Operations Ltd,Home Care - Private Contractors Payment,551.04,0.00,COMMERCIAL SUPPLIER 
 22-08-2022,Adults,Cera Care Operations Ltd,Home Care - Private Contractors Payment,826.89,0.00,COMMERCIAL SUPPLIER 
 22-08-2022,Adults,Cera Care Operations Ltd,Home Care - Private Contractors Payment,551.70,0.00,COMMERCIAL SUPPLIER 
 22-08-2022,Adults,Cera Care Operations Ltd,Home Care - Private Contractors Payment,584.82,0.00,COMMERCIAL SUPPLIER 
 22-08-2022,Adults,Cera Care Operations Ltd,Home Care - Private Contractors Payment,531.36,0.00,COMMERCIAL SUPPLIER 
 22-08-2022,Adults,Cera Care Operations Ltd,Home Care - Private Contractors Payment,663.22,0.00,COMMERCIAL SUPPLIER 
 22-08-2022,Adults,Cera Care Operations Ltd,Home Care - Private Contractors Payment,883.63,0.00,COMMERCIAL SUPPLIER 
 22-08-2022,Adults,Cera Care Operations Ltd,Home Care - Private Contractors Payment,889.21,0.00,COMMERCIAL SUPPLIER 
 22-08-2022,Adults,Cera Care Operations Ltd,Home Care - Private Contractors Payment,738.66,0.00,COMMERCIAL SUPPLIER 
 22-08-2022,Adults,Cera Care Operations Ltd,Home Care - Private Contractors Payment,831.48,0.00,COMMERCIAL SUPPLIER 
 22-08-2022,Adults,Cera Care Operations Ltd,Home Care - Private Contractors Payment,1062.39,0.00,COMMERCIAL SUPPLIER 
 22-08-2022,Adults,Cera Care Operations Ltd,Home Care - Private Contractors Payment,976.13,0.00,COMMERCIAL SUPPLIER 
 22-08-2022,Adults,Cera Care Operations Ltd,Home Care - Private Contractors Payment,1216.55,0.00,COMMERCIAL SUPPLIER 
 22-08-2022,Adults,Cera Care Operations Ltd,Home Care - Private Contractors Payment,831.15,0.00,COMMERCIAL SUPPLIER 
 22-08-2022,Adults,Cera Care Operations Ltd,Home Care - Private Contractors Payment,1638.36,0.00,COMMERCIAL SUPPLIER 
 22-08-2022,Adults,Cera Care Operations Ltd,Home Care - Private Contractors Payment,723.90,0.00,COMMERCIAL SUPPLIER 
 22-08-2022,Adults,Cera Care Operations Ltd,Home Care - Private Contractors Payment,905.28,0.00,COMMERCIAL SUPPLIER 
 22-08-2022,Adults,Cera Care Operations Ltd,Home Care - Private Contractors Payment,806.88,0.00,COMMERCIAL SUPPLIER 
 22-08-2022,Adults,Cera Care Operations Ltd,Home Care - Private Contractors Payment,563.18,0.00,COMMERCIAL SUPPLIER 
 22-08-2022,Adults,Cera Care Operations Ltd,Home Care - Private Contractors Payment,563.50,0.00,COMMERCIAL SUPPLIER 
 22-08-2022,Adults,Cera Care Operations Ltd,Home Care - Private Contractors Payment,635.34,0.00,COMMERCIAL SUPPLIER 
 22-08-2022,Adults,Cera Care Operations Ltd,Home Care - Private Contractors Payment,783.92,0.00,COMMERCIAL SUPPLIER 
 22-08-2022,Adults,Cera Care Operations Ltd,Home Care - Private Contractors Payment,787.20,0.00,COMMERCIAL SUPPLIER 
 22-08-2022,Adults,Cera Care Operations Ltd,Home Care - Private Contractors Payment,1263.13,0.00,COMMERCIAL SUPPLIER 
 22-08-2022,Adults,MySense Ltd,Private Contractors Payment - Other,1440.00,0.00,COMMERCIAL SUPPLIER 
 23-08-2022,Adults,Flex360 Limited,Private Contractors Payment - Other,2800.00,0.00,COMMERCIAL SUPPLIER 
 23-08-2022,Adults,Quality Healthcare Solutions Ltd t/a Kare Plus Romford,Home Care - Private Contractors Payment,1255.91,0.00,COMMERCIAL SUPPLIER 
 23-08-2022,Adults,Quality Healthcare Solutions Ltd t/a Kare Plus Romford,Home Care - Private Contractors Payment,735.70,0.00,COMMERCIAL SUPPLIER 
 23-08-2022,Adults,Quality Healthcare Solutions Ltd t/a Kare Plus Romford,Home Care - Private Contractors Payment,759.32,0.00,COMMERCIAL SUPPLIER 
 23-08-2022,Adults,Quality Healthcare Solutions Ltd t/a Kare Plus Romford,Home Care - Private Contractors Payment,1445.50,0.00,COMMERCIAL SUPPLIER 
 23-08-2022,Adults,Quality Healthcare Solutions Ltd t/a Kare Plus Romford,Home Care - Private Contractors Payment,782.28,0.00,COMMERCIAL SUPPLIER 
 23-08-2022,Adults,Quality Healthcare Solutions Ltd t/a Kare Plus Romford,Home Care - Private Contractors Payment,759.98,0.00,COMMERCIAL SUPPLIER 
 23-08-2022,Adults,Quality Healthcare Solutions Ltd t/a Kare Plus Romford,Home Care - Private Contractors Payment,823.61,0.00,COMMERCIAL SUPPLIER 
 23-08-2022,Adults,Quality Healthcare Solutions Ltd t/a Kare Plus Romford,Home Care - Private Contractors Payment,647.14,0.00,COMMERCIAL SUPPLIER 
 23-08-2022,Adults,Quality Healthcare Solutions Ltd t/a Kare Plus Romford,Home Care - Private Contractors Payment,583.51,0.00,COMMERCIAL SUPPLIER 
 23-08-2022,Adults,Quality Healthcare Solutions Ltd t/a Kare Plus Romford,Home Care - Private Contractors Payment,1079.78,0.00,COMMERCIAL SUPPLIER 
 23-08-2022,Adults,Quality Healthcare Solutions Ltd t/a Kare Plus Romford,Home Care - Private Contractors Payment,885.60,0.00,COMMERCIAL SUPPLIER 
 23-08-2022,Adults,Quality Healthcare Solutions Ltd t/a Kare Plus Romford,Home Care - Private Contractors Payment,549.07,0.00,COMMERCIAL SUPPLIER 
 23-08-2022,Adults,Quality Healthcare Solutions Ltd t/a Kare Plus Romford,Home Care - Private Contractors Payment,1097.49,0.00,COMMERCIAL SUPPLIER 
 23-08-2022,Adults,Quality Healthcare Solutions Ltd t/a Kare Plus Romford,Home Care - Private Contractors Payment,1122.74,0.00,COMMERCIAL SUPPLIER 
 23-08-2022,Adults,Quality Healthcare Solutions Ltd t/a Kare Plus Romford,Home Care - Private Contractors Payment,1163.74,0.00,COMMERCIAL SUPPLIER 
 23-08-2022,Adults,Quality Healthcare Solutions Ltd t/a Kare Plus Romford,Home Care - Private Contractors Payment,1252.63,0.00,COMMERCIAL SUPPLIER 
 23-08-2022,Adults,Quality Healthcare Solutions Ltd t/a Kare Plus Romford,Home Care - Private Contractors Payment,543.50,0.00,COMMERCIAL SUPPLIER 
 23-08-2022,Adults,Quality Healthcare Solutions Ltd t/a Kare Plus Romford,Home Care - Private Contractors Payment,1129.30,0.00,COMMERCIAL SUPPLIER 
 23-08-2022,Adults,Havering Association for People with Disabilities (H.A.D.),Payments To Voluntary Sector,3332.08,0.00,NON COMMERCIAL SUPPLIER 
 23-08-2022,Adults,Havering Association for People with Disabilities (H.A.D.),Payments To Voluntary Sector,3332.08,0.00,NON COMMERCIAL SUPPLIER 
 24-08-2022,Adults,Anytime Care 2020_a,Home Care - Private Contractors Payment,938.74,0.00,COMMERCIAL SUPPLIER 
 24-08-2022,Adults,Anytime Care 2020_a,Home Care - Private Contractors Payment,1483.22,0.00,COMMERCIAL SUPPLIER 
 24-08-2022,Adults,Anytime Care 2020_a,Home Care - Private Contractors Payment,1152.26,0.00,COMMERCIAL SUPPLIER 
 24-08-2022,Adults,Anytime Care 2020_a,Home Care - Private Contractors Payment,923.98,0.00,COMMERCIAL SUPPLIER 
 24-08-2022,Adults,Anytime Care 2020_a,Home Care - Private Contractors Payment,925.29,0.00,COMMERCIAL SUPPLIER 
 24-08-2022,Adults,Anytime Care 2020_a,Home Care - Private Contractors Payment,546.78,0.00,COMMERCIAL SUPPLIER 
 24-08-2022,Adults,Anytime Care 2020_a,Home Care - Private Contractors Payment,829.18,0.00,COMMERCIAL SUPPLIER 
 24-08-2022,Adults,Anytime Care 2020_a,Home Care - Private Contractors Payment,630.42,0.00,COMMERCIAL SUPPLIER 
 24-08-2022,Adults,Anytime Care 2020_a,Home Care - Private Contractors Payment,610.08,0.00,COMMERCIAL SUPPLIER 
 24-08-2022,Adults,Anytime Care 2020_a,Home Care - Private Contractors Payment,552.02,0.00,COMMERCIAL SUPPLIER 
 24-08-2022,Adults,Anytime Care 2020_a,Home Care - Private Contractors Payment,1118.48,0.00,COMMERCIAL SUPPLIER 
 24-08-2022,Adults,Anytime Care 2020_a,Home Care - Private Contractors Payment,728.16,0.00,COMMERCIAL SUPPLIER 
 24-08-2022,Adults,Anytime Care 2020_a,Home Care - Private Contractors Payment,551.04,0.00,COMMERCIAL SUPPLIER 
 24-08-2022,Adults,Anytime Care 2020_a,Home Care - Private Contractors Payment,821.97,0.00,COMMERCIAL SUPPLIER 
 24-08-2022,Adults,Anytime Care 2020_a,Home Care - Private Contractors Payment,1093.88,0.00,COMMERCIAL SUPPLIER 
 24-08-2022,Adults,Anytime Care 2020_a,Home Care - Private Contractors Payment,549.07,0.00,COMMERCIAL SUPPLIER 
 24-08-2022,Adults,Anytime Care 2020_a,Home Care - Private Contractors Payment,943.98,0.00,COMMERCIAL SUPPLIER 
 24-08-2022,Adults,Anytime Care 2020_a,Home Care - Private Contractors Payment,659.61,0.00,COMMERCIAL SUPPLIER 
 24-08-2022,Adults,Action First Assessments Ltd,Private Contractors Payment - Other,2790.00,0.00,COMMERCIAL SUPPLIER 
 24-08-2022,Adults,Action First Assessments Ltd,Private Contractors Payment - Other,1550.00,0.00,COMMERCIAL SUPPLIER 
 24-08-2022,Adults,Matrix SCM Ltd,Agency Staff,520.66,0.00,COMMERCIAL SUPPLIER 
 24-08-2022,Adults,Matrix SCM Ltd,Agency Staff,1404.20,0.00,COMMERCIAL SUPPLIER 
 24-08-2022,Adults,Matrix SCM Ltd,Agency Staff,1281.98,0.00,COMMERCIAL SUPPLIER 
 24-08-2022,Adults,Matrix SCM Ltd,Agency Staff,537.75,0.00,COMMERCIAL SUPPLIER 
 24-08-2022,Adults,Matrix SCM Ltd,Agency Staff,1169.28,0.00,COMMERCIAL SUPPLIER 
 24-08-2022,Adults,Matrix SCM Ltd,Agency Staff,1290.24,0.00,COMMERCIAL SUPPLIER 
 24-08-2022,Adults,Matrix SCM Ltd,Agency Staff,1295.70,0.00,COMMERCIAL SUPPLIER 
 24-08-2022,Adults,Matrix SCM Ltd,Agency Staff,1290.24,0.00,COMMERCIAL SUPPLIER 
 24-08-2022,Adults,Matrix SCM Ltd,Agency Staff,1241.28,0.00,COMMERCIAL SUPPLIER 
 24-08-2022,Adults,Matrix SCM Ltd,Agency Staff,1400.77,0.00,COMMERCIAL SUPPLIER 
 24-08-2022,Adults,Matrix SCM Ltd,Agency Staff,1357.57,0.00,COMMERCIAL SUPPLIER 
 24-08-2022,Adults,Matrix SCM Ltd,Agency Staff,1207.46,0.00,COMMERCIAL SUPPLIER 
 24-08-2022,Adults,Matrix SCM Ltd,Agency Staff,1288.45,0.00,COMMERCIAL SUPPLIER 
 24-08-2022,Adults,Matrix SCM Ltd,Agency Staff,1400.77,0.00,COMMERCIAL SUPPLIER 
 24-08-2022,Adults,Matrix SCM Ltd,Agency Staff,777.42,0.00,COMMERCIAL SUPPLIER 
 24-08-2022,Adults,Matrix SCM Ltd,Agency Staff,1244.51,0.00,COMMERCIAL SUPPLIER 
 24-08-2022,Adults,Matrix SCM Ltd,Agency Staff,1241.28,0.00,COMMERCIAL SUPPLIER 
 24-08-2022,Adults,Matrix SCM Ltd,Agency Staff,1241.28,0.00,COMMERCIAL SUPPLIER 
 24-08-2022,Adults,Matrix SCM Ltd,Agency Staff,1241.28,0.00,COMMERCIAL SUPPLIER 
 24-08-2022,Adults,Matrix SCM Ltd,Agency Staff,1137.84,0.00,COMMERCIAL SUPPLIER 
 24-08-2022,Adults,Matrix SCM Ltd,Agency Staff,1241.28,0.00,COMMERCIAL SUPPLIER 
 24-08-2022,Adults,Matrix SCM Ltd,Agency Staff,735.84,0.00,COMMERCIAL SUPPLIER 
 24-08-2022,Adults,Matrix SCM Ltd,Agency Staff,1469.18,0.00,COMMERCIAL SUPPLIER 
 24-08-2022,Adults,Matrix SCM Ltd,Agency Staff,1132.58,0.00,COMMERCIAL SUPPLIER 
 24-08-2022,Adults,Matrix SCM Ltd,Agency Staff,1601.28,0.00,COMMERCIAL SUPPLIER 
 24-08-2022,Adults,Matrix SCM Ltd,Agency Staff,754.91,0.00,COMMERCIAL SUPPLIER 
 24-08-2022,Adults,Matrix SCM Ltd,Agency Staff,844.58,0.00,COMMERCIAL SUPPLIER 
 24-08-2022,Adults,Matrix SCM Ltd,Agency Staff,998.76,0.00,COMMERCIAL SUPPLIER 
 24-08-2022,Adults,Matrix SCM Ltd,Agency Staff,528.50,0.00,COMMERCIAL SUPPLIER 
 24-08-2022,Adults,Matrix SCM Ltd,Agency Staff,632.90,0.00,COMMERCIAL SUPPLIER 
 24-08-2022,Adults,Matrix SCM Ltd,Agency Staff,612.35,0.00,COMMERCIAL SUPPLIER 
 24-08-2022,Adults,Matrix SCM Ltd,Agency Staff,657.73,0.00,COMMERCIAL SUPPLIER 
 24-08-2022,Adults,Matrix SCM Ltd,Agency Staff,611.65,0.00,COMMERCIAL SUPPLIER 
 24-08-2022,Adults,Matrix SCM Ltd,Agency Staff,622.08,0.00,COMMERCIAL SUPPLIER 
 24-08-2022,Adults,Matrix SCM Ltd,Agency Staff,578.88,0.00,COMMERCIAL SUPPLIER 
 24-08-2022,Adults,Matrix SCM Ltd,Agency Staff,2546.80,0.00,COMMERCIAL SUPPLIER 
 24-08-2022,Adults,Matrix SCM Ltd,Agency Staff,876.24,0.00,COMMERCIAL SUPPLIER 
 24-08-2022,Adults,Matrix SCM Ltd,Agency Staff,871.10,0.00,COMMERCIAL SUPPLIER 
 24-08-2022,Adults,Matrix SCM Ltd,Agency Staff,998.64,0.00,COMMERCIAL SUPPLIER 
 24-08-2022,Adults,Matrix SCM Ltd,Agency Staff,691.20,0.00,COMMERCIAL SUPPLIER 
 24-08-2022,Adults,Matrix SCM Ltd,Agency Staff,2039.16,0.00,COMMERCIAL SUPPLIER 
 24-08-2022,Adults,Matrix SCM Ltd,Agency Staff,971.40,0.00,COMMERCIAL SUPPLIER 
 24-08-2022,Adults,Matrix SCM Ltd,Agency Staff,756.00,0.00,COMMERCIAL SUPPLIER 
 24-08-2022,Adults,Matrix SCM Ltd,Agency Staff,774.55,0.00,COMMERCIAL SUPPLIER 
 24-08-2022,Adults,Matrix SCM Ltd,Agency Staff,759.85,0.00,COMMERCIAL SUPPLIER 
 24-08-2022,Adults,Matrix SCM Ltd,Agency Staff,918.48,0.00,COMMERCIAL SUPPLIER 
 24-08-2022,Adults,Matrix SCM Ltd,Agency Staff,799.20,0.00,COMMERCIAL SUPPLIER 
 24-08-2022,Adults,Matrix SCM Ltd,Agency Staff,946.62,0.00,COMMERCIAL SUPPLIER 
 24-08-2022,Adults,Matrix SCM Ltd,Agency Staff,2777.70,0.00,COMMERCIAL SUPPLIER 
 24-08-2022,Adults,Matrix SCM Ltd,Agency Staff,2039.16,0.00,COMMERCIAL SUPPLIER 
 24-08-2022,Adults,Matrix SCM Ltd,Agency Staff,618.74,0.00,COMMERCIAL SUPPLIER 
 24-08-2022,Adults,Matrix SCM Ltd,Agency Staff,866.24,0.00,COMMERCIAL SUPPLIER 
 24-08-2022,Adults,Matrix SCM Ltd,Agency Staff,1175.04,0.00,COMMERCIAL SUPPLIER 
 24-08-2022,Adults,Matrix SCM Ltd,Agency Staff,1282.32,0.00,COMMERCIAL SUPPLIER 
 24-08-2022,Adults,Matrix SCM Ltd,Agency Staff,951.48,0.00,COMMERCIAL SUPPLIER 
 24-08-2022,Adults,Matrix SCM Ltd,Agency Staff,1282.34,0.00,COMMERCIAL SUPPLIER 
 24-08-2022,Adults,Matrix SCM Ltd,Agency Staff,847.36,0.00,COMMERCIAL SUPPLIER 
 24-08-2022,Adults,Matrix SCM Ltd,Agency Staff,1515.98,0.00,COMMERCIAL SUPPLIER 
 24-08-2022,Adults,Matrix SCM Ltd,Agency Staff,847.36,0.00,COMMERCIAL SUPPLIER 
 24-08-2022,Adults,Matrix SCM Ltd,Agency Staff,1473.12,0.00,COMMERCIAL SUPPLIER 
 24-08-2022,Adults,Matrix SCM Ltd,Agency Staff,561.73,0.00,COMMERCIAL SUPPLIER 
 24-08-2022,Adults,Matrix SCM Ltd,Agency Staff,1152.35,0.00,COMMERCIAL SUPPLIER 
 24-08-2022,Adults,Matrix SCM Ltd,Agency Staff,1207.46,0.00,COMMERCIAL SUPPLIER 
 24-08-2022,Adults,Matrix SCM Ltd,Agency Staff,1284.13,0.00,COMMERCIAL SUPPLIER 
 24-08-2022,Adults,Matrix SCM Ltd,Agency Staff,649.00,0.00,COMMERCIAL SUPPLIER 
 24-08-2022,Adults,Inna Care Ltd,Home Care - Private Contractors Payment,787.20,0.00,COMMERCIAL SUPPLIER 
 24-08-2022,Adults,Inna Care Ltd,Home Care - Private Contractors Payment,826.56,0.00,COMMERCIAL SUPPLIER 
 24-08-2022,Adults,Inna Care Ltd,Home Care - Private Contractors Payment,1082.40,0.00,COMMERCIAL SUPPLIER 
 24-08-2022,Adults,Inna Care Ltd,Home Care - Private Contractors Payment,551.04,0.00,COMMERCIAL SUPPLIER 
 24-08-2022,Adults,Inna Care Ltd,Home Care - Private Contractors Payment,1928.64,0.00,COMMERCIAL SUPPLIER 
 24-08-2022,Adults,Inna Care Ltd,Home Care - Private Contractors Payment,551.04,0.00,COMMERCIAL SUPPLIER 
 24-08-2022,Adults,Inna Care Ltd,Home Care - Private Contractors Payment,792.12,0.00,COMMERCIAL SUPPLIER 
 24-08-2022,Adults,Inna Care Ltd,Home Care - Private Contractors Payment,792.12,0.00,COMMERCIAL SUPPLIER 
 24-08-2022,Adults,Inna Care Ltd,Home Care - Private Contractors Payment,551.04,0.00,COMMERCIAL SUPPLIER 
 24-08-2022,Adults,Inna Care Ltd,Home Care - Private Contractors Payment,688.80,0.00,COMMERCIAL SUPPLIER 
 24-08-2022,Adults,Inna Care Ltd,Home Care - Private Contractors Payment,826.56,0.00,COMMERCIAL SUPPLIER 
 24-08-2022,Adults,Inna Care Ltd,Home Care - Private Contractors Payment,826.56,0.00,COMMERCIAL SUPPLIER 
 24-08-2022,Adults,Inna Care Ltd,Home Care - Private Contractors Payment,826.56,0.00,COMMERCIAL SUPPLIER 
 24-08-2022,Adults,Inna Care Ltd,Home Care - Private Contractors Payment,905.28,0.00,COMMERCIAL SUPPLIER 
 24-08-2022,Adults,Inna Care Ltd,Home Care - Private Contractors Payment,826.56,0.00,COMMERCIAL SUPPLIER 
 24-08-2022,Adults,Inna Care Ltd,Home Care - Private Contractors Payment,1062.72,0.00,COMMERCIAL SUPPLIER 
 24-08-2022,Adults,Inna Care Ltd,Home Care - Private Contractors Payment,826.56,0.00,COMMERCIAL SUPPLIER 
 24-08-2022,Adults,Inna Care Ltd,Home Care - Private Contractors Payment,1102.08,0.00,COMMERCIAL SUPPLIER 
 24-08-2022,Adults,Inna Care Ltd,Home Care - Private Contractors Payment,639.60,0.00,COMMERCIAL SUPPLIER 
 24-08-2022,Adults,Inna Care Ltd,Home Care - Private Contractors Payment,944.64,0.00,COMMERCIAL SUPPLIER 
 24-08-2022,Adults,Inna Care Ltd,Home Care - Private Contractors Payment,1102.08,0.00,COMMERCIAL SUPPLIER 
 24-08-2022,Adults,Inna Care Ltd,Home Care - Private Contractors Payment,551.04,0.00,COMMERCIAL SUPPLIER 
 24-08-2022,Adults,Inna Care Ltd,Home Care - Private Contractors Payment,2204.16,0.00,COMMERCIAL SUPPLIER 
 24-08-2022,Adults,Inna Care Ltd,Home Care - Private Contractors Payment,2204.16,0.00,COMMERCIAL SUPPLIER 
 24-08-2022,Adults,Inna Care Ltd,Home Care - Private Contractors Payment,826.56,0.00,COMMERCIAL SUPPLIER 
 24-08-2022,Adults,Inna Care Ltd,Home Care - Private Contractors Payment,1102.08,0.00,COMMERCIAL SUPPLIER 
 24-08-2022,Adults,Inna Care Ltd,Home Care - Private Contractors Payment,1102.08,0.00,COMMERCIAL SUPPLIER 
 24-08-2022,Adults,Inna Care Ltd,Home Care - Private Contractors Payment,629.76,0.00,COMMERCIAL SUPPLIER 
 24-08-2022,Adults,Inna Care Ltd,Home Care - Private Contractors Payment,629.76,0.00,COMMERCIAL SUPPLIER 
 25-08-2022,Adults,The Riverside Group,Private Contractors Payment - Other,4690.46,0.00, 
 25-08-2022,Adults,The Riverside Group,Private Contractors Payment - Other,14310.83,0.00, 
 25-08-2022,Adults,The Riverside Group,Private Contractors Payment - Other,4690.46,0.00, 
 25-08-2022,Adults,Prior Care Ltd_a,Home Care - Private Contractors Payment,1294.94,0.00,COMMERCIAL SUPPLIER 
 25-08-2022,Adults,Prior Care Ltd_a,Home Care - Private Contractors Payment,1162.76,0.00,COMMERCIAL SUPPLIER 
 25-08-2022,Adults,Prior Care Ltd_a,Home Care - Private Contractors Payment,787.53,0.00,COMMERCIAL SUPPLIER 
 25-08-2022,Adults,Prior Care Ltd_a,Home Care - Private Contractors Payment,1115.86,0.00,COMMERCIAL SUPPLIER 
 25-08-2022,Adults,Prior Care Ltd_a,Home Care - Private Contractors Payment,1116.51,0.00,COMMERCIAL SUPPLIER 
 25-08-2022,Adults,Prior Care Ltd_a,Home Care - Private Contractors Payment,1123.40,0.00,COMMERCIAL SUPPLIER 
 25-08-2022,Adults,Prior Care Ltd_a,Home Care - Private Contractors Payment,1102.08,0.00,COMMERCIAL SUPPLIER 
 25-08-2022,Adults,Prior Care Ltd_a,Home Care - Private Contractors Payment,1102.08,0.00,COMMERCIAL SUPPLIER 
 25-08-2022,Adults,Prior Care Ltd_a,Home Care - Private Contractors Payment,758.34,0.00,COMMERCIAL SUPPLIER 
 25-08-2022,Adults,Prior Care Ltd_a,Home Care - Private Contractors Payment,1449.10,0.00,COMMERCIAL SUPPLIER 
 25-08-2022,Adults,Prior Care Ltd_a,Home Care - Private Contractors Payment,1219.18,0.00,COMMERCIAL SUPPLIER 
 25-08-2022,Adults,Prior Care Ltd_a,Home Care - Private Contractors Payment,521.52,0.00,COMMERCIAL SUPPLIER 
 25-08-2022,Adults,Prior Care Ltd_a,Home Care - Private Contractors Payment,725.86,0.00,COMMERCIAL SUPPLIER 
 25-08-2022,Adults,Prior Care Ltd_a,Home Care - Private Contractors Payment,534.31,0.00,COMMERCIAL SUPPLIER 
 25-08-2022,Adults,Prior Care Ltd_a,Home Care - Private Contractors Payment,512.34,0.00,COMMERCIAL SUPPLIER 
 25-08-2022,Adults,Prior Care Ltd_a,Home Care - Private Contractors Payment,1337.26,0.00,COMMERCIAL SUPPLIER 
 25-08-2022,Adults,Prior Care Ltd_a,Home Care - Private Contractors Payment,943.33,0.00,COMMERCIAL SUPPLIER 
 25-08-2022,Adults,Prior Care Ltd_a,Home Care - Private Contractors Payment,551.04,0.00,COMMERCIAL SUPPLIER 
 25-08-2022,Adults,Prior Care Ltd_a,Home Care - Private Contractors Payment,522.18,0.00,COMMERCIAL SUPPLIER 
 25-08-2022,Adults,Prior Care Ltd_a,Home Care - Private Contractors Payment,671.42,0.00,COMMERCIAL SUPPLIER 
 25-08-2022,Adults,Prior Care Ltd_a,Home Care - Private Contractors Payment,501.84,0.00,COMMERCIAL SUPPLIER 
 25-08-2022,Adults,Prior Care Ltd_a,Home Care - Private Contractors Payment,1092.24,0.00,COMMERCIAL SUPPLIER 
 25-08-2022,Adults,Prior Care Ltd_a,Home Care - Private Contractors Payment,1102.08,0.00,COMMERCIAL SUPPLIER 
 25-08-2022,Adults,Prior Care Ltd_a,Home Care - Private Contractors Payment,822.95,0.00,COMMERCIAL SUPPLIER 
 25-08-2022,Adults,Prior Care Ltd_a,Home Care - Private Contractors Payment,1094.86,0.00,COMMERCIAL SUPPLIER 
 25-08-2022,Adults,Prior Care Ltd_a,Home Care - Private Contractors Payment,1095.52,0.00,COMMERCIAL SUPPLIER 
 25-08-2022,Adults,Prior Care Ltd_a,Home Care - Private Contractors Payment,1093.55,0.00,COMMERCIAL SUPPLIER 
 25-08-2022,Adults,Prior Care Ltd_a,Home Care - Private Contractors Payment,1103.39,0.00,COMMERCIAL SUPPLIER 
 25-08-2022,Adults,Prior Care Ltd_a,Home Care - Private Contractors Payment,787.20,0.00,COMMERCIAL SUPPLIER 
 25-08-2022,Adults,Prior Care Ltd_a,Home Care - Private Contractors Payment,846.24,0.00,COMMERCIAL SUPPLIER 
 25-08-2022,Adults,Prior Care Ltd_a,Home Care - Private Contractors Payment,521.52,0.00,COMMERCIAL SUPPLIER 
 25-08-2022,Adults,Prior Care Ltd_a,Home Care - Private Contractors Payment,1107.00,0.00,COMMERCIAL SUPPLIER 
 25-08-2022,Adults,Prior Care Ltd_a,Home Care - Private Contractors Payment,1092.24,0.00,COMMERCIAL SUPPLIER 
 25-08-2022,Adults,Prior Care Ltd_a,Home Care - Private Contractors Payment,1102.08,0.00,COMMERCIAL SUPPLIER 
 25-08-2022,Adults,Prior Care Ltd_a,Home Care - Private Contractors Payment,778.34,0.00,COMMERCIAL SUPPLIER 
 25-08-2022,Adults,Fountains Care Centre - Bondcare,Residential Placements - Private Contractors Payment,2780.00,0.00,COMMERCIAL SUPPLIER 
 25-08-2022,Adults,Fountains Care Centre - Bondcare,Nursing Homes - Private Contractors Payment,2324.57,0.00,COMMERCIAL SUPPLIER 
 25-08-2022,Adults,Fountains Care Centre - Bondcare,Nursing Homes - Private Contractors Payment,2712.00,0.00,COMMERCIAL SUPPLIER 
 25-08-2022,Adults,Fountains Care Centre - Bondcare,Residential Placements - Private Contractors Payment,2780.00,0.00,COMMERCIAL SUPPLIER 
 25-08-2022,Adults,Fountains Care Centre - Bondcare,Nursing Homes - Private Contractors Payment,2712.00,0.00,COMMERCIAL SUPPLIER 
 25-08-2022,Adults,Fountains Care Centre - Bondcare,Nursing Homes - Private Contractors Payment,2712.00,0.00,COMMERCIAL SUPPLIER 
 25-08-2022,Adults,Fountains Care Centre - Bondcare,Residential Placements - Private Contractors Payment,2480.00,0.00,COMMERCIAL SUPPLIER 
 25-08-2022,Adults,Fountains Care Centre - Bondcare,Residential Placements - Private Contractors Payment,2480.00,0.00,COMMERCIAL SUPPLIER 
 25-08-2022,Adults,Fountains Care Centre - Bondcare,Residential Placements - Private Contractors Payment,2314.24,0.00,COMMERCIAL SUPPLIER 
 25-08-2022,Adults,Fountains Care Centre - Bondcare,Residential Care Income,660.88,0.00,COMMERCIAL SUPPLIER 
 25-08-2022,Adults,Fountains Care Centre - Bondcare,Nursing Homes - Private Contractors Payment,1354.29,0.00,COMMERCIAL SUPPLIER 
 25-08-2022,Adults,Fountains Care Centre - Bondcare,Nursing Homes - Private Contractors Payment,2528.00,0.00,COMMERCIAL SUPPLIER 
 25-08-2022,Adults,Fountains Care Centre - Bondcare,Nursing Homes - Private Contractors Payment,2712.00,0.00,COMMERCIAL SUPPLIER 
 25-08-2022,Adults,Fountains Care Centre - Bondcare,Nursing Homes - Private Contractors Payment,3412.52,0.00,COMMERCIAL SUPPLIER 
 25-08-2022,Adults,Fountains Care Centre - Bondcare,Nursing Homes - Private Contractors Payment,2712.00,0.00,COMMERCIAL SUPPLIER 
 25-08-2022,Adults,Fountains Care Centre - Bondcare,Nursing Homes - Private Contractors Payment,2712.00,0.00,COMMERCIAL SUPPLIER 
 25-08-2022,Adults,Fountains Care Centre - Bondcare,Residential Placements - Private Contractors Payment,2780.00,0.00,COMMERCIAL SUPPLIER 
 25-08-2022,Adults,Fountains Care Centre - Bondcare,Nursing Homes - Private Contractors Payment,2712.00,0.00,COMMERCIAL SUPPLIER 
 25-08-2022,Adults,Fountains Care Centre - Bondcare,Nursing Homes - Private Contractors Payment,2712.00,0.00,COMMERCIAL SUPPLIER 
 25-08-2022,Adults,Fountains Care Centre - Bondcare,Nursing Homes - Private Contractors Payment,2712.00,0.00,COMMERCIAL SUPPLIER 
 25-08-2022,Adults,Fountains Care Centre - Bondcare,Residential Placements - Private Contractors Payment,2480.00,0.00,COMMERCIAL SUPPLIER 
 25-08-2022,Adults,Fountains Care Centre - Bondcare,Nursing Homes - Private Contractors Payment,2712.00,0.00,COMMERCIAL SUPPLIER 
 25-08-2022,Adults,Fountains Care Centre - Bondcare,Nursing Homes - Private Contractors Payment,2712.00,0.00,COMMERCIAL SUPPLIER 
 25-08-2022,Adults,Fountains Care Centre - Bondcare,Nursing Homes - Private Contractors Payment,2712.00,0.00,COMMERCIAL SUPPLIER 
 25-08-2022,Adults,Fountains Care Centre - Bondcare,Nursing Homes - Private Contractors Payment,2712.00,0.00,COMMERCIAL SUPPLIER 
 25-08-2022,Adults,Fountains Care Centre - Bondcare,Nursing Homes - Private Contractors Payment,2712.00,0.00,COMMERCIAL SUPPLIER 
 25-08-2022,Adults,Fountains Care Centre - Bondcare,Nursing Homes - Private Contractors Payment,2712.00,0.00,COMMERCIAL SUPPLIER 
 25-08-2022,Adults,Fountains Care Centre - Bondcare,Nursing Homes - Private Contractors Payment,2712.00,0.00,COMMERCIAL SUPPLIER 
 25-08-2022,Adults,Fountains Care Centre - Bondcare,Nursing Homes - Private Contractors Payment,557.14,0.00,COMMERCIAL SUPPLIER 
 25-08-2022,Adults,Fountains Care Centre - Bondcare,Nursing Homes - Private Contractors Payment,3900.00,0.00,COMMERCIAL SUPPLIER 
 25-08-2022,Adults,Black Swan International Ltd - Belamacanda,Residential Placements - Private Contractors Payment,2647.40,0.00,COMMERCIAL SUPPLIER 
 25-08-2022,Adults,Black Swan International Ltd - Belamacanda,Residential Placements - Private Contractors Payment,3625.80,0.00,COMMERCIAL SUPPLIER 
 25-08-2022,Adults,Black Swan International Ltd - Belamacanda,Residential Placements - Private Contractors Payment,3659.24,0.00,COMMERCIAL SUPPLIER 
 25-08-2022,Adults,Black Swan International Ltd - Belamacanda,Residential Placements - Private Contractors Payment,2596.48,0.00,COMMERCIAL SUPPLIER 
 25-08-2022,Adults,Leonard Cheshire Disability_a,Residential Placements - Private Contractors Payment,5868.96,0.00,COMMERCIAL SUPPLIER 
 25-08-2022,Adults,Leonard Cheshire Disability_a,Residential Placements - Private Contractors Payment,6042.60,0.00,COMMERCIAL SUPPLIER 
 25-08-2022,Adults,Voyage Ltd - Solar-Grange Liss,Nursing Homes - Private Contractors Payment,5118.20,0.00,COMMERCIAL SUPPLIER 
 25-08-2022,Adults,One Tree Estates Ltd t/a Ashbrook Nursing Home,Nursing Homes - Private Contractors Payment,2948.24,0.00,COMMERCIAL SUPPLIER 
 25-08-2022,Adults,One Tree Estates Ltd t/a Ashbrook Nursing Home,Nursing Homes - Private Contractors Payment,3485.00,0.00,COMMERCIAL SUPPLIER 
 25-08-2022,Adults,One Tree Estates Ltd t/a Ashbrook Nursing Home,Nursing Homes - Private Contractors Payment,3075.00,0.00,COMMERCIAL SUPPLIER 
 25-08-2022,Adults,One Tree Estates Ltd t/a Ashbrook Nursing Home,Nursing Homes - Private Contractors Payment,3400.00,0.00,COMMERCIAL SUPPLIER 
 25-08-2022,Adults,One Tree Estates Ltd t/a Ashbrook Nursing Home,Nursing Homes - Private Contractors Payment,5330.00,0.00,COMMERCIAL SUPPLIER 
 25-08-2022,Adults,One Tree Estates Ltd t/a Ashbrook Nursing Home,Nursing Homes - Private Contractors Payment,3200.00,0.00,COMMERCIAL SUPPLIER 
 25-08-2022,Adults,One Tree Estates Ltd t/a Ashbrook Nursing Home,Nursing Homes - Private Contractors Payment,3400.00,0.00,COMMERCIAL SUPPLIER 
 25-08-2022,Adults,One Tree Estates Ltd t/a Ashbrook Nursing Home,Nursing Homes - Private Contractors Payment,5200.00,0.00,COMMERCIAL SUPPLIER 
 25-08-2022,Adults,One Tree Estates Ltd t/a Ashbrook Nursing Home,Nursing Homes - Private Contractors Payment,2712.00,0.00,COMMERCIAL SUPPLIER 
 25-08-2022,Adults,One Tree Estates Ltd t/a Ashbrook Nursing Home,Nursing Homes - Private Contractors Payment,2712.00,0.00,COMMERCIAL SUPPLIER 
 25-08-2022,Adults,One Tree Estates Ltd t/a Ashbrook Nursing Home,Nursing Homes - Private Contractors Payment,3112.00,0.00,COMMERCIAL SUPPLIER 
 25-08-2022,Adults,One Tree Estates Ltd t/a Ashbrook Nursing Home,Nursing Homes - Private Contractors Payment,3200.00,0.00,COMMERCIAL SUPPLIER 
 25-08-2022,Adults,One Tree Estates Ltd t/a Ashbrook Nursing Home,Nursing Homes - Private Contractors Payment,2712.00,0.00,COMMERCIAL SUPPLIER 
 25-08-2022,Adults,One Tree Estates Ltd t/a Ashbrook Nursing Home,Nursing Homes - Private Contractors Payment,2712.00,0.00,COMMERCIAL SUPPLIER 
 25-08-2022,Adults,One Tree Estates Ltd t/a Ashbrook Nursing Home,Nursing Homes - Private Contractors Payment,3060.24,0.00,COMMERCIAL SUPPLIER 
 25-08-2022,Adults,One Tree Estates Ltd t/a Ashbrook Nursing Home,Nursing Homes - Private Contractors Payment,2528.00,0.00,COMMERCIAL SUPPLIER 
 25-08-2022,Adults,One Tree Estates Ltd t/a Ashbrook Nursing Home,Nursing Homes - Private Contractors Payment,3485.00,0.00,COMMERCIAL SUPPLIER 
 25-08-2022,Adults,One Tree Estates Ltd t/a Ashbrook Nursing Home,Nursing Homes - Private Contractors Payment,2367.86,0.00,COMMERCIAL SUPPLIER 
 25-08-2022,Adults,One Tree Estates Ltd t/a Ashbrook Nursing Home,Nursing Homes - Private Contractors Payment,3900.00,0.00,COMMERCIAL SUPPLIER 
 25-08-2022,Adults,One Tree Estates Ltd t/a Ashbrook Nursing Home,Nursing Homes - Private Contractors Payment,2712.00,0.00,COMMERCIAL SUPPLIER 
 25-08-2022,Adults,One Tree Estates Ltd t/a Ashbrook Nursing Home,Nursing Homes - Private Contractors Payment,12096.00,0.00,COMMERCIAL SUPPLIER 
 25-08-2022,Adults,One Tree Estates Ltd t/a Ashbrook Nursing Home,Nursing Homes - Private Contractors Payment,3075.00,0.00,COMMERCIAL SUPPLIER 
 25-08-2022,Adults,One Tree Estates Ltd t/a Ashbrook Nursing Home,Nursing Homes - Private Contractors Payment,1065.43,0.00,COMMERCIAL SUPPLIER 
 25-08-2022,Adults,One Tree Estates Ltd t/a Ashbrook Nursing Home,Nursing Homes - Private Contractors Payment,2712.00,0.00,COMMERCIAL SUPPLIER 
 25-08-2022,Adults,One Tree Estates Ltd t/a Ashbrook Nursing Home,Nursing Homes - Private Contractors Payment,3485.00,0.00,COMMERCIAL SUPPLIER 
 25-08-2022,Adults,One Tree Estates Ltd t/a Ashbrook Nursing Home,Nursing Homes - Private Contractors Payment,3900.00,0.00,COMMERCIAL SUPPLIER 
 25-08-2022,Adults,One Tree Estates Ltd t/a Ashbrook Nursing Home,Nursing Homes - Private Contractors Payment,2712.00,0.00,COMMERCIAL SUPPLIER 
 25-08-2022,Adults,One Tree Estates Ltd t/a Ashbrook Nursing Home,Nursing Homes - Private Contractors Payment,2712.00,0.00,COMMERCIAL SUPPLIER 
 25-08-2022,Adults,Highfield Care Homes Ltd t/a Romford Grange Care Home,Nursing Homes - Private Contractors Payment,2712.00,0.00,COMMERCIAL SUPPLIER 
 25-08-2022,Adults,Highfield Care Homes Ltd t/a Romford Grange Care Home,Residential Placements - Private Contractors Payment,2780.00,0.00,COMMERCIAL SUPPLIER 
 25-08-2022,Adults,Highfield Care Homes Ltd t/a Romford Grange Care Home,Nursing Homes - Private Contractors Payment,2712.00,0.00,COMMERCIAL SUPPLIER 
 25-08-2022,Adults,Highfield Care Homes Ltd t/a Romford Grange Care Home,Nursing Homes - Private Contractors Payment,1065.43,0.00,COMMERCIAL SUPPLIER 
 25-08-2022,Adults,Highfield Care Homes Ltd t/a Romford Grange Care Home,Nursing Homes - Private Contractors Payment,2712.00,0.00,COMMERCIAL SUPPLIER 
 25-08-2022,Adults,Highfield Care Homes Ltd t/a Romford Grange Care Home,Residential Placements - Private Contractors Payment,2530.96,0.00,COMMERCIAL SUPPLIER 
 25-08-2022,Adults,Highfield Care Homes Ltd t/a Romford Grange Care Home,Nursing Homes - Private Contractors Payment,2712.00,0.00,COMMERCIAL SUPPLIER 
 25-08-2022,Adults,Highfield Care Homes Ltd t/a Romford Grange Care Home,Nursing Homes - Private Contractors Payment,2528.00,0.00,COMMERCIAL SUPPLIER 
 25-08-2022,Adults,Highfield Care Homes Ltd t/a Romford Grange Care Home,Nursing Homes - Private Contractors Payment,2528.00,0.00,COMMERCIAL SUPPLIER 
 25-08-2022,Adults,Highfield Care Homes Ltd t/a Romford Grange Care Home,Nursing Homes - Private Contractors Payment,2528.00,0.00,COMMERCIAL SUPPLIER 
 25-08-2022,Adults,Highfield Care Homes Ltd t/a Romford Grange Care Home,Nursing Homes - Private Contractors Payment,2712.00,0.00,COMMERCIAL SUPPLIER 
 25-08-2022,Adults,Highfield Care Homes Ltd t/a Romford Grange Care Home,Residential Placements - Private Contractors Payment,2480.00,0.00,COMMERCIAL SUPPLIER 
 25-08-2022,Adults,Highfield Care Homes Ltd t/a Romford Grange Care Home,Nursing Homes - Private Contractors Payment,2712.00,0.00,COMMERCIAL SUPPLIER 
 25-08-2022,Adults,Highfield Care Homes Ltd t/a Romford Grange Care Home,Nursing Homes - Private Contractors Payment,2712.00,0.00,COMMERCIAL SUPPLIER 
 25-08-2022,Adults,Highfield Care Homes Ltd t/a Romford Grange Care Home,Nursing Homes - Private Contractors Payment,2472.84,0.00,COMMERCIAL SUPPLIER 
 25-08-2022,Adults,MNS Care Plc_a,Residential Placements - Private Contractors Payment,3568.76,0.00,COMMERCIAL SUPPLIER 
 25-08-2022,Adults,MNS Care Plc_a,Nursing Homes - Private Contractors Payment,2636.32,0.00,COMMERCIAL SUPPLIER 
 25-08-2022,Adults,MNS Care Plc_a,Nursing Homes - Private Contractors Payment,2528.00,0.00,COMMERCIAL SUPPLIER 
 25-08-2022,Adults,MNS Care Plc_a,Nursing Homes - Private Contractors Payment,2712.00,0.00,COMMERCIAL SUPPLIER 
 25-08-2022,Adults,Bupa Care Homes (HVC) - Havering Court,Nursing Homes - Private Contractors Payment,4831.08,0.00,COMMERCIAL SUPPLIER 
 25-08-2022,Adults,Bupa Care Homes (HVC) - Havering Court,Nursing Homes - Private Contractors Payment,5908.20,0.00,COMMERCIAL SUPPLIER 
 25-08-2022,Adults,Bupa Care Homes (HVC) - Havering Court,Nursing Homes - Private Contractors Payment,3465.72,0.00,COMMERCIAL SUPPLIER 
 25-08-2022,Adults,Bupa Care Homes (HVC) - Havering Court,Nursing Homes - Private Contractors Payment,3275.24,0.00,COMMERCIAL SUPPLIER 
 25-08-2022,Adults,Bupa Care Homes (HVC) - Havering Court,Nursing Homes - Private Contractors Payment,4150.84,0.00,COMMERCIAL SUPPLIER 
 25-08-2022,Adults,Bupa Care Homes (HVC) - Havering Court,Nursing Homes - Private Contractors Payment,4214.48,0.00,COMMERCIAL SUPPLIER 
 25-08-2022,Adults,Bupa Care Homes (HVC) - Havering Court,Nursing Homes - Private Contractors Payment,3804.28,0.00,COMMERCIAL SUPPLIER 
 25-08-2022,Adults,Bupa Care Homes (HVC) - Havering Court,Nursing Homes - Private Contractors Payment,3811.68,0.00,COMMERCIAL SUPPLIER 
 25-08-2022,Adults,Bupa Care Homes (HVC) - Havering Court,Nursing Homes - Private Contractors Payment,4658.08,0.00,COMMERCIAL SUPPLIER 
 25-08-2022,Adults,Bupa Care Homes (HVC) - Havering Court,Nursing Homes - Private Contractors Payment,3830.08,0.00,COMMERCIAL SUPPLIER 
 25-08-2022,Adults,Bupa Care Homes (HVC) - Havering Court,Nursing Homes - Private Contractors Payment,3493.20,0.00,COMMERCIAL SUPPLIER 
 25-08-2022,Adults,Bupa Care Homes (HVC) - Havering Court,Nursing Homes - Private Contractors Payment,2712.00,0.00,COMMERCIAL SUPPLIER 
 25-08-2022,Adults,2 Peel Way - Outlook Care,Supported Other Accommodation - Private Contractors Payment,3940.04,0.00,NON COMMERCIAL SUPPLIER 
 25-08-2022,Adults,2 Peel Way - Outlook Care,Supported Other Accommodation - Private Contractors Payment,2876.68,0.00,NON COMMERCIAL SUPPLIER 
 25-08-2022,Adults,2 Peel Way - Outlook Care,Supported Other Accommodation - Private Contractors Payment,2344.96,0.00,NON COMMERCIAL SUPPLIER 
 25-08-2022,Adults,2 Peel Way - Outlook Care,Supported Other Accommodation - Private Contractors Payment,1721.00,0.00,NON COMMERCIAL SUPPLIER 
 25-08-2022,Adults,2 Peel Way - Outlook Care,Supported Other Accommodation - Private Contractors Payment,963.92,0.00,NON COMMERCIAL SUPPLIER 
 25-08-2022,Adults,2 Peel Way - Outlook Care,Supported Other Accommodation - Private Contractors Payment,1687.28,0.00,NON COMMERCIAL SUPPLIER 
 25-08-2022,Adults,2 Peel Way - Outlook Care,Supported Other Accommodation - Private Contractors Payment,1349.88,0.00,NON COMMERCIAL SUPPLIER 
 25-08-2022,Adults,2 Peel Way - Outlook Care,Supported Other Accommodation - Private Contractors Payment,3053.92,0.00,NON COMMERCIAL SUPPLIER 
 25-08-2022,Adults,Outlook Care - 4 Peel Way,Supported Other Accommodation - Private Contractors Payment,1570.80,0.00,COMMERCIAL SUPPLIER 
 25-08-2022,Adults,Outlook Care - 4 Peel Way,Supported Other Accommodation - Private Contractors Payment,1796.08,0.00,COMMERCIAL SUPPLIER 
 25-08-2022,Adults,Outlook Care - 4 Peel Way,Supported Other Accommodation - Private Contractors Payment,2861.88,0.00,COMMERCIAL SUPPLIER 
 25-08-2022,Adults,Outlook Care - 4 Peel Way,Supported Other Accommodation - Private Contractors Payment,1719.80,0.00,COMMERCIAL SUPPLIER 
 25-08-2022,Adults,Outlook Care - 4 Peel Way,Supported Other Accommodation - Private Contractors Payment,917.60,0.00,COMMERCIAL SUPPLIER 
 25-08-2022,Adults,Outlook Care - 4 Peel Way,Supported Other Accommodation - Private Contractors Payment,1796.08,0.00,COMMERCIAL SUPPLIER 
 25-08-2022,Adults,Outlook Care - 4 Peel Way,Supported Other Accommodation - Private Contractors Payment,1035.08,0.00,COMMERCIAL SUPPLIER 
 25-08-2022,Adults,Outlook Care - 4 Peel Way,Supported Other Accommodation - Private Contractors Payment,3290.20,0.00,COMMERCIAL SUPPLIER 
 25-08-2022,Adults,Outlook Care - 4 Peel Way,Supported Other Accommodation - Private Contractors Payment,3494.00,0.00,COMMERCIAL SUPPLIER 
 25-08-2022,Adults,The Avenues Trust - 6 Peel Way,Residential Placements - Private Contractors Payment,5890.68,0.00,COMMERCIAL SUPPLIER 
 25-08-2022,Adults,The Avenues Trust - 6 Peel Way,Residential Placements - Private Contractors Payment,5890.68,0.00,COMMERCIAL SUPPLIER 
 25-08-2022,Adults,The Avenues Trust - 6 Peel Way,Residential Placements - Private Contractors Payment,5890.68,0.00,COMMERCIAL SUPPLIER 
 25-08-2022,Adults,The Avenues Trust - 6 Peel Way,Residential Placements - Private Contractors Payment,5890.68,0.00,COMMERCIAL SUPPLIER 
 25-08-2022,Adults,Voyage Ltd - Solar Care Melbreck,Nursing Homes - Private Contractors Payment,4058.20,0.00,COMMERCIAL SUPPLIER 
 25-08-2022,Adults,Fitzroy Support,Residential Placements - Private Contractors Payment,5320.40,0.00,COMMERCIAL SUPPLIER 
 25-08-2022,Adults,Peter House Care Ltd t/a Aldanat Care,Residential Placements - Private Contractors Payment,6243.84,0.00,COMMERCIAL SUPPLIER 
 25-08-2022,Adults,Dudbrook Hall Residential Home,Residential Placements - Private Contractors Payment,2780.00,0.00,COMMERCIAL SUPPLIER 
 25-08-2022,Adults,Essex Care Consortium Ltd_a,Residential Placements - Private Contractors Payment,4406.72,0.00,COMMERCIAL SUPPLIER 
 25-08-2022,Adults,Mundy House,Residential Placements - Private Contractors Payment,2559.40,0.00,COMMERCIAL SUPPLIER 
 25-08-2022,Adults,Mundy House,Residential Placements - Private Contractors Payment,2780.00,0.00,COMMERCIAL SUPPLIER 
 25-08-2022,Adults,Mundy House,Residential Placements - Private Contractors Payment,2579.84,0.00,COMMERCIAL SUPPLIER 
 25-08-2022,Adults,Lukka Care Homes Ltd - Ravenscourt,Nursing Homes - Private Contractors Payment,3330.84,0.00,COMMERCIAL SUPPLIER 
 25-08-2022,Adults,Lukka Care Homes Ltd - Ravenscourt,Nursing Homes - Private Contractors Payment,4150.84,0.00,COMMERCIAL SUPPLIER 
 25-08-2022,Adults,Lukka Care Homes Ltd - Ravenscourt,Nursing Homes - Private Contractors Payment,3800.00,0.00,COMMERCIAL SUPPLIER 
 25-08-2022,Adults,Lukka Care Homes Ltd - Ravenscourt,Nursing Homes - Private Contractors Payment,2528.00,0.00,COMMERCIAL SUPPLIER 
 25-08-2022,Adults,Lukka Care Homes Ltd - Ravenscourt,Nursing Homes - Private Contractors Payment,2948.24,0.00,COMMERCIAL SUPPLIER 
 25-08-2022,Adults,Lukka Care Homes Ltd - Ravenscourt,Nursing Homes - Private Contractors Payment,2712.00,0.00,COMMERCIAL SUPPLIER 
 25-08-2022,Adults,Lukka Care Homes Ltd - Ravenscourt,Nursing Homes - Private Contractors Payment,4000.00,0.00,COMMERCIAL SUPPLIER 
 25-08-2022,Adults,Lukka Care Homes Ltd - Ravenscourt,Nursing Homes - Private Contractors Payment,2948.24,0.00,COMMERCIAL SUPPLIER 
 25-08-2022,Adults,Lukka Care Homes Ltd - Ravenscourt,Nursing Homes - Private Contractors Payment,5018.40,0.00,COMMERCIAL SUPPLIER 
 25-08-2022,Adults,Lukka Care Homes Ltd - Ravenscourt,Nursing Homes - Private Contractors Payment,2712.00,0.00,COMMERCIAL SUPPLIER 
 25-08-2022,Adults,Lukka Care Homes Ltd - Ravenscourt,Nursing Homes - Private Contractors Payment,3377.72,0.00,COMMERCIAL SUPPLIER 
 25-08-2022,Adults,Lukka Care Homes Ltd - Ravenscourt,Nursing Homes - Private Contractors Payment,3900.00,0.00,COMMERCIAL SUPPLIER 
 25-08-2022,Adults,Lukka Care Homes Ltd - Ravenscourt,Nursing Homes - Private Contractors Payment,3900.00,0.00,COMMERCIAL SUPPLIER 
 25-08-2022,Adults,Lukka Care Homes Ltd - Ravenscourt,Nursing Homes - Private Contractors Payment,3049.60,0.00,COMMERCIAL SUPPLIER 
 25-08-2022,Adults,Barchester Healthcare Ltd - Park View Care Home,Nursing Homes - Private Contractors Payment,3888.68,0.00,COMMERCIAL SUPPLIER 
 25-08-2022,Adults,Barchester Healthcare Ltd - Park View Care Home,Nursing Homes - Private Contractors Payment,3831.04,0.00,COMMERCIAL SUPPLIER 
 25-08-2022,Adults,Barchester Healthcare Ltd - Park View Care Home,Residential Placements - Private Contractors Payment,2780.00,0.00,COMMERCIAL SUPPLIER 
 25-08-2022,Adults,Barchester Healthcare Ltd - Park View Care Home,Residential Placements - Private Contractors Payment,4879.92,0.00,COMMERCIAL SUPPLIER 
 25-08-2022,Adults,Barchester Healthcare Ltd - Park View Care Home,Nursing Homes - Private Contractors Payment,2948.24,0.00,COMMERCIAL SUPPLIER 
 25-08-2022,Adults,Barchester Healthcare Ltd - Park View Care Home,Nursing Homes - Private Contractors Payment,5545.32,0.00,COMMERCIAL SUPPLIER 
 25-08-2022,Adults,Barchester Healthcare Ltd - Park View Care Home,Nursing Homes - Private Contractors Payment,4192.08,0.00,COMMERCIAL SUPPLIER 
 25-08-2022,Adults,Barchester Healthcare Ltd - Park View Care Home,Nursing Homes - Private Contractors Payment,4192.08,0.00,COMMERCIAL SUPPLIER 
 25-08-2022,Adults,Barchester Healthcare Ltd - Park View Care Home,Nursing Homes - Private Contractors Payment,4458.36,0.00,COMMERCIAL SUPPLIER 
 25-08-2022,Adults,Barchester Healthcare Ltd - Park View Care Home,Nursing Homes - Private Contractors Payment,4150.84,0.00,COMMERCIAL SUPPLIER 
 25-08-2022,Adults,Barchester Healthcare Ltd - Park View Care Home,Nursing Homes - Private Contractors Payment,3900.00,0.00,COMMERCIAL SUPPLIER 
 25-08-2022,Adults,Barchester Healthcare Ltd - Park View Care Home,Nursing Homes - Private Contractors Payment,5000.00,0.00,COMMERCIAL SUPPLIER 
 25-08-2022,Adults,Barchester Healthcare Ltd - Park View Care Home,Nursing Homes - Private Contractors Payment,2948.24,0.00,COMMERCIAL SUPPLIER 
 25-08-2022,Adults,Westminster Health Care Ltd Derham House,Nursing Homes - Private Contractors Payment,3345.92,0.00,COMMERCIAL SUPPLIER 
 25-08-2022,Adults,Westminster Health Care Ltd Derham House,Nursing Homes - Private Contractors Payment,3960.92,0.00,COMMERCIAL SUPPLIER 
 25-08-2022,Adults,Westminster Health Care Ltd Derham House,Residential Placements - Private Contractors Payment,5645.72,0.00,COMMERCIAL SUPPLIER 
 25-08-2022,Adults,Westminster Health Care Ltd Derham House,Residential Placements - Private Contractors Payment,5739.64,0.00,COMMERCIAL SUPPLIER 
 25-08-2022,Adults,Westminster Health Care Ltd Derham House,Nursing Homes - Private Contractors Payment,2606.08,0.00,COMMERCIAL SUPPLIER 
 25-08-2022,Adults,Westminster Health Care Ltd Derham House,Nursing Homes - Private Contractors Payment,5438.24,0.00,COMMERCIAL SUPPLIER 
 25-08-2022,Adults,Westminster Health Care Ltd Derham House,Residential Placements - Private Contractors Payment,5813.80,0.00,COMMERCIAL SUPPLIER 
 25-08-2022,Adults,Westminster Health Care Ltd Derham House,Residential Placements - Private Contractors Payment,2780.00,0.00,COMMERCIAL SUPPLIER 
 25-08-2022,Adults,HC-One Oval Ltd - Chaseview,Nursing Homes - Private Contractors Payment,2681.40,0.00,COMMERCIAL SUPPLIER 
 25-08-2022,Adults,HC-One Oval Ltd - Chaseview,Nursing Homes - Private Contractors Payment,2516.76,0.00,COMMERCIAL SUPPLIER 
 25-08-2022,Adults,HC-One Oval Ltd - Chaseview,Nursing Homes - Private Contractors Payment,2636.32,0.00,COMMERCIAL SUPPLIER 
 25-08-2022,Adults,HC-One Oval Ltd - Chaseview,Nursing Homes - Private Contractors Payment,2616.00,0.00,COMMERCIAL SUPPLIER 
 25-08-2022,Adults,HC-One Oval Ltd - Chaseview,Residential Placements - Private Contractors Payment,2643.04,0.00,COMMERCIAL SUPPLIER 
 25-08-2022,Adults,HC-One Oval Ltd - Chaseview,Residential Placements - Private Contractors Payment,2780.00,0.00,COMMERCIAL SUPPLIER 
 25-08-2022,Adults,HC-One Oval Ltd - The Hornchurch Nursing Centre,Respite Care - Private Contractors Payment,2624.00,0.00,COMMERCIAL SUPPLIER 
 25-08-2022,Adults,HC-One Oval Ltd - The Hornchurch Nursing Centre,Respite Care - Private Contractors Payment,2624.00,0.00,COMMERCIAL SUPPLIER 
 25-08-2022,Adults,HC-One Oval Ltd - The Hornchurch Nursing Centre,Respite Care - Private Contractors Payment,1218.29,0.00,COMMERCIAL SUPPLIER 
 25-08-2022,Adults,HC-One Oval Ltd - The Hornchurch Nursing Centre,Nursing Homes - Private Contractors Payment,2528.00,0.00,COMMERCIAL SUPPLIER 
 25-08-2022,Adults,HC-One Oval Ltd - The Hornchurch Nursing Centre,Respite Care - Private Contractors Payment,1686.86,0.00,COMMERCIAL SUPPLIER 
 25-08-2022,Adults,HC-One Oval Ltd - The Hornchurch Nursing Centre,Nursing Homes - Private Contractors Payment,2712.00,0.00,COMMERCIAL SUPPLIER 
 25-08-2022,Adults,HC-One Oval Ltd - The Hornchurch Nursing Centre,Residential Placements - Private Contractors Payment,2780.00,0.00,COMMERCIAL SUPPLIER 
 25-08-2022,Adults,HC-One Oval Ltd - The Hornchurch Nursing Centre,Residential Placements - Private Contractors Payment,2780.00,0.00,COMMERCIAL SUPPLIER 
 25-08-2022,Adults,HC-One Oval Ltd - The Hornchurch Nursing Centre,Nursing Homes - Private Contractors Payment,2712.00,0.00,COMMERCIAL SUPPLIER 
 25-08-2022,Adults,HC-One Oval Ltd - The Hornchurch Nursing Centre,Nursing Homes - Private Contractors Payment,3412.52,0.00,COMMERCIAL SUPPLIER 
 25-08-2022,Adults,HC-One Oval Ltd - The Hornchurch Nursing Centre,Nursing Homes - Private Contractors Payment,2996.36,0.00,COMMERCIAL SUPPLIER 
 25-08-2022,Adults,HC-One Oval Ltd - The Hornchurch Nursing Centre,Nursing Homes - Private Contractors Payment,12768.00,0.00,COMMERCIAL SUPPLIER 
 25-08-2022,Adults,HC-One Oval Ltd - The Hornchurch Nursing Centre,Nursing Homes - Private Contractors Payment,2712.00,0.00,COMMERCIAL SUPPLIER 
 25-08-2022,Adults,HC-One Oval Ltd - The Hornchurch Nursing Centre,Nursing Homes - Private Contractors Payment,2712.00,0.00,COMMERCIAL SUPPLIER 
 25-08-2022,Adults,HC-One Oval Ltd - The Hornchurch Nursing Centre,Nursing Homes - Private Contractors Payment,2712.00,0.00,COMMERCIAL SUPPLIER 
 25-08-2022,Adults,HC-One Oval Ltd - The Hornchurch Nursing Centre,Residential Placements - Private Contractors Payment,3075.00,0.00,COMMERCIAL SUPPLIER 
 25-08-2022,Adults,HC-One Oval Ltd - The Hornchurch Nursing Centre,Nursing Homes - Private Contractors Payment,2712.00,0.00,COMMERCIAL SUPPLIER 
 25-08-2022,Adults,HC-One Oval Ltd - The Hornchurch Nursing Centre,Nursing Homes - Private Contractors Payment,2712.00,0.00,COMMERCIAL SUPPLIER 
 25-08-2022,Adults,HC-One Oval Ltd - The Hornchurch Nursing Centre,Nursing Homes - Private Contractors Payment,2712.00,0.00,COMMERCIAL SUPPLIER 
 25-08-2022,Adults,HC-One Oval Ltd - The Hornchurch Nursing Centre,Residential Placements - Private Contractors Payment,2780.00,0.00,COMMERCIAL SUPPLIER 
 25-08-2022,Adults,HC-One Oval Ltd - The Hornchurch Nursing Centre,Nursing Homes - Private Contractors Payment,2712.00,0.00,COMMERCIAL SUPPLIER 
 25-08-2022,Adults,HC-One Oval Ltd - The Hornchurch Nursing Centre,Nursing Homes - Private Contractors Payment,2528.00,0.00,COMMERCIAL SUPPLIER 
 25-08-2022,Adults,HC-One Oval Ltd - The Hornchurch Nursing Centre,Nursing Homes - Private Contractors Payment,2712.00,0.00,COMMERCIAL SUPPLIER 
 25-08-2022,Adults,HC-One Oval Ltd - The Hornchurch Nursing Centre,Residential Placements - Private Contractors Payment,1405.71,0.00,COMMERCIAL SUPPLIER 
 25-08-2022,Adults,HC-One Oval Ltd - The Hornchurch Nursing Centre,Residential Placements - Private Contractors Payment,2717.71,0.00,COMMERCIAL SUPPLIER 
 25-08-2022,Adults,HC-One Oval Ltd - The Hornchurch Nursing Centre,Residential Placements - Private Contractors Payment,2624.00,0.00,COMMERCIAL SUPPLIER 
 25-08-2022,Adults,HC-One Oval Ltd - The Hornchurch Nursing Centre,Residential Placements - Private Contractors Payment,2624.00,0.00,COMMERCIAL SUPPLIER 
 25-08-2022,Adults,HC-One Oval Ltd - The Hornchurch Nursing Centre,Residential Placements - Private Contractors Payment,2624.00,0.00,COMMERCIAL SUPPLIER 
 25-08-2022,Adults,HC-One Oval Ltd - The Hornchurch Nursing Centre,Residential Placements - Private Contractors Payment,2624.00,0.00,COMMERCIAL SUPPLIER 
 25-08-2022,Adults,HC-One Oval Ltd - The Hornchurch Nursing Centre,Residential Placements - Private Contractors Payment,2624.00,0.00,COMMERCIAL SUPPLIER 
 25-08-2022,Adults,HC-One Oval Ltd - The Hornchurch Nursing Centre,Residential Placements - Private Contractors Payment,2624.00,0.00,COMMERCIAL SUPPLIER 
 25-08-2022,Adults,HC-One Oval Ltd - The Hornchurch Nursing Centre,Nursing Homes - Private Contractors Payment,2528.00,0.00,COMMERCIAL SUPPLIER 
 25-08-2022,Adults,HC-One Oval Ltd - The Hornchurch Nursing Centre,Nursing Homes - Private Contractors Payment,2712.00,0.00,COMMERCIAL SUPPLIER 
 25-08-2022,Adults,HC-One Oval Ltd - The Hornchurch Nursing Centre,Nursing Homes - Private Contractors Payment,2712.00,0.00,COMMERCIAL SUPPLIER 
 25-08-2022,Adults,Bramerton Care Home - Community Homes of Intensive Care and Education Ltd,Residential Placements - Private Contractors Payment,7835.96,0.00,COMMERCIAL SUPPLIER 
 25-08-2022,Adults,Stable Family Home Trust BH24 3BN,Supported Other Accommodation - Private Contractors Payment,4067.32,0.00,COMMERCIAL SUPPLIER 
 25-08-2022,Adults,Beechcourt Care Centre - Bondcare,Nursing Homes - Private Contractors Payment,3900.00,0.00,COMMERCIAL SUPPLIER 
 25-08-2022,Adults,Beechcourt Care Centre - Bondcare,Nursing Homes - Private Contractors Payment,2712.00,0.00,COMMERCIAL SUPPLIER 
 25-08-2022,Adults,Beechcourt Care Centre - Bondcare,Nursing Homes - Private Contractors Payment,2712.00,0.00,COMMERCIAL SUPPLIER 
 25-08-2022,Adults,Beechcourt Care Centre - Bondcare,Nursing Homes - Private Contractors Payment,2712.00,0.00,COMMERCIAL SUPPLIER 
 25-08-2022,Adults,Beechcourt Care Centre - Bondcare,Nursing Homes - Private Contractors Payment,2712.00,0.00,COMMERCIAL SUPPLIER 
 25-08-2022,Adults,Beechcourt Care Centre - Bondcare,Nursing Homes - Private Contractors Payment,2528.00,0.00,COMMERCIAL SUPPLIER 
 25-08-2022,Adults,Beechcourt Care Centre - Bondcare,Nursing Homes - Private Contractors Payment,2712.00,0.00,COMMERCIAL SUPPLIER 
 25-08-2022,Adults,Beechcourt Care Centre - Bondcare,Nursing Homes - Private Contractors Payment,2712.00,0.00,COMMERCIAL SUPPLIER 
 25-08-2022,Adults,Beechcourt Care Centre - Bondcare,Nursing Homes - Private Contractors Payment,2712.00,0.00,COMMERCIAL SUPPLIER 
 25-08-2022,Adults,Beechcourt Care Centre - Bondcare,Nursing Homes - Private Contractors Payment,2528.00,0.00,COMMERCIAL SUPPLIER 
 25-08-2022,Adults,Beechcourt Care Centre - Bondcare,Nursing Homes - Private Contractors Payment,2712.00,0.00,COMMERCIAL SUPPLIER 
 25-08-2022,Adults,Beechcourt Care Centre - Bondcare,Nursing Homes - Private Contractors Payment,2712.00,0.00,COMMERCIAL SUPPLIER 
 25-08-2022,Adults,Beechcourt Care Centre - Bondcare,Nursing Homes - Private Contractors Payment,2712.00,0.00,COMMERCIAL SUPPLIER 
 25-08-2022,Adults,Beechcourt Care Centre - Bondcare,Nursing Homes - Private Contractors Payment,2712.00,0.00,COMMERCIAL SUPPLIER 
 25-08-2022,Adults,Beechcourt Care Centre - Bondcare,Nursing Homes - Private Contractors Payment,2712.00,0.00,COMMERCIAL SUPPLIER 
 25-08-2022,Adults,Beechcourt Care Centre - Bondcare,Nursing Homes - Private Contractors Payment,2528.00,0.00,COMMERCIAL SUPPLIER 
 25-08-2022,Adults,Beechcourt Care Centre - Bondcare,Nursing Homes - Private Contractors Payment,2712.00,0.00,COMMERCIAL SUPPLIER 
 25-08-2022,Adults,Beechcourt Care Centre - Bondcare,Residential Placements - Private Contractors Payment,2674.04,0.00,COMMERCIAL SUPPLIER 
 25-08-2022,Adults,Beechcourt Care Centre - Bondcare,Nursing Homes - Private Contractors Payment,2528.00,0.00,COMMERCIAL SUPPLIER 
 25-08-2022,Adults,Beechcourt Care Centre - Bondcare,Nursing Homes - Private Contractors Payment,1646.57,0.00,COMMERCIAL SUPPLIER 
 25-08-2022,Adults,Beechcourt Care Centre - Bondcare,Nursing Homes - Private Contractors Payment,2712.00,0.00,COMMERCIAL SUPPLIER 
 25-08-2022,Adults,Beechcourt Care Centre - Bondcare,Nursing Homes - Private Contractors Payment,2712.00,0.00,COMMERCIAL SUPPLIER 
 25-08-2022,Adults,Beechcourt Care Centre - Bondcare,Nursing Homes - Private Contractors Payment,2528.00,0.00,COMMERCIAL SUPPLIER 
 25-08-2022,Adults,Beechcourt Care Centre - Bondcare,Nursing Homes - Private Contractors Payment,2712.00,0.00,COMMERCIAL SUPPLIER 
 25-08-2022,Adults,Beechcourt Care Centre - Bondcare,Nursing Homes - Private Contractors Payment,2712.00,0.00,COMMERCIAL SUPPLIER 
 25-08-2022,Adults,Beechcourt Care Centre - Bondcare,Nursing Homes - Private Contractors Payment,2712.00,0.00,COMMERCIAL SUPPLIER 
 25-08-2022,Adults,Beechcourt Care Centre - Bondcare,Nursing Homes - Private Contractors Payment,822.86,0.00,COMMERCIAL SUPPLIER 
 25-08-2022,Adults,Beechcourt Care Centre - Bondcare,Nursing Homes - Private Contractors Payment,2528.00,0.00,COMMERCIAL SUPPLIER 
 25-08-2022,Adults,Beechcourt Care Centre - Bondcare,Residential Placements - Private Contractors Payment,2480.00,0.00,COMMERCIAL SUPPLIER 
 25-08-2022,Adults,Bondcare (London) Ltd ,Nursing Homes - Private Contractors Payment,12432.00,0.00,COMMERCIAL SUPPLIER 
 25-08-2022,Adults,Bondcare (London) Ltd ,Nursing Homes - Private Contractors Payment,12432.00,0.00,COMMERCIAL SUPPLIER 
 25-08-2022,Adults,Bondcare (London) Ltd ,Nursing Homes - Private Contractors Payment,12432.00,0.00,COMMERCIAL SUPPLIER 
 25-08-2022,Adults,Bondcare (London) Ltd ,Nursing Homes - Private Contractors Payment,12432.00,0.00,COMMERCIAL SUPPLIER 
 25-08-2022,Adults,Bondcare (London) Ltd ,Nursing Homes - Private Contractors Payment,11100.00,0.00,COMMERCIAL SUPPLIER 
 25-08-2022,Adults,Bondcare (London) Ltd ,Nursing Homes - Private Contractors Payment,12432.00,0.00,COMMERCIAL SUPPLIER 
 25-08-2022,Adults,Bondcare (London) Ltd ,Nursing Homes - Private Contractors Payment,12432.00,0.00,COMMERCIAL SUPPLIER 
 25-08-2022,Adults,Bondcare (London) Ltd ,Nursing Homes - Private Contractors Payment,2712.00,0.00,COMMERCIAL SUPPLIER 
 25-08-2022,Adults,Bondcare (London) Ltd ,Nursing Homes - Private Contractors Payment,2712.00,0.00,COMMERCIAL SUPPLIER 
 25-08-2022,Adults,Bondcare (London) Ltd ,Nursing Homes - Private Contractors Payment,3393.16,0.00,COMMERCIAL SUPPLIER 
 25-08-2022,Adults,Brandon House,Residential Placements - Private Contractors Payment,779.04,0.00,COMMERCIAL SUPPLIER 
 25-08-2022,Adults,Alexander Court Care Centre - Bondcare,Residential Placements - Private Contractors Payment,2780.00,0.00,COMMERCIAL SUPPLIER 
 25-08-2022,Adults,Alexander Court Care Centre - Bondcare,Nursing Homes - Private Contractors Payment,3732.44,0.00,COMMERCIAL SUPPLIER 
 25-08-2022,Adults,Alexander Court Care Centre - Bondcare,Nursing Homes - Private Contractors Payment,2712.00,0.00,COMMERCIAL SUPPLIER 
 25-08-2022,Adults,Alexander Court Care Centre - Bondcare,Nursing Homes - Private Contractors Payment,2627.64,0.00,COMMERCIAL SUPPLIER 
 25-08-2022,Adults,Alexander Court Care Centre - Bondcare,Nursing Homes - Private Contractors Payment,2528.00,0.00,COMMERCIAL SUPPLIER 
 25-08-2022,Adults,Alexander Court Care Centre - Bondcare,Nursing Homes - Private Contractors Payment,2712.00,0.00,COMMERCIAL SUPPLIER 
 25-08-2022,Adults,Emerson Court_a,Respite Care - Private Contractors Payment,1390.00,0.00,COMMERCIAL SUPPLIER 
 25-08-2022,Adults,Emerson Court_a,Residential Placements - Private Contractors Payment,2836.68,0.00,COMMERCIAL SUPPLIER 
 25-08-2022,Adults,Emerson Court_a,Residential Placements - Private Contractors Payment,2780.00,0.00,COMMERCIAL SUPPLIER 
 25-08-2022,Adults,Emerson Court_a,Residential Placements - Private Contractors Payment,2780.00,0.00,COMMERCIAL SUPPLIER 
 25-08-2022,Adults,DMP Healthcare (Heatherbrook) Ltd,Nursing Homes - Private Contractors Payment,2712.00,0.00,NON COMMERCIAL SUPPLIER 
 25-08-2022,Adults,DMP Healthcare (Heatherbrook) Ltd,Nursing Homes - Private Contractors Payment,2712.00,0.00,NON COMMERCIAL SUPPLIER 
 25-08-2022,Adults,DMP Healthcare (Heatherbrook) Ltd,Nursing Homes - Private Contractors Payment,2722.48,0.00,NON COMMERCIAL SUPPLIER 
 25-08-2022,Adults,DMP Healthcare (Heatherbrook) Ltd,Nursing Homes - Private Contractors Payment,2346.00,0.00,NON COMMERCIAL SUPPLIER 
 25-08-2022,Adults,DMP Healthcare (Heatherbrook) Ltd,Nursing Homes - Private Contractors Payment,2856.00,0.00,NON COMMERCIAL SUPPLIER 
 25-08-2022,Adults,DMP Healthcare (Heatherbrook) Ltd,Nursing Homes - Private Contractors Payment,1020.00,0.00,NON COMMERCIAL SUPPLIER 
 25-08-2022,Adults,DMP Healthcare (Heatherbrook) Ltd,Nursing Homes - Private Contractors Payment,1836.00,0.00,NON COMMERCIAL SUPPLIER 
 25-08-2022,Adults,DMP Healthcare (Heatherbrook) Ltd,Nursing Homes - Private Contractors Payment,2034.00,0.00,NON COMMERCIAL SUPPLIER 
 25-08-2022,Adults,DMP Healthcare (Heatherbrook) Ltd,Nursing Homes - Private Contractors Payment,2856.00,0.00,NON COMMERCIAL SUPPLIER 
 25-08-2022,Adults,DMP Healthcare (Heatherbrook) Ltd,Respite Care - Private Contractors Payment,1356.00,0.00,NON COMMERCIAL SUPPLIER 
 25-08-2022,Adults,DMP Healthcare (Heatherbrook) Ltd,Nursing Homes - Private Contractors Payment,2712.00,0.00,NON COMMERCIAL SUPPLIER 
 25-08-2022,Adults,DMP Healthcare (Heatherbrook) Ltd,Nursing Homes - Private Contractors Payment,1549.71,0.00,NON COMMERCIAL SUPPLIER 
 25-08-2022,Adults,DMP Healthcare (Heatherbrook) Ltd,Nursing Homes - Private Contractors Payment,678.00,0.00,NON COMMERCIAL SUPPLIER 
 25-08-2022,Adults,DMP Healthcare (Heatherbrook) Ltd,Nursing Homes - Private Contractors Payment,2712.00,0.00,NON COMMERCIAL SUPPLIER 
 25-08-2022,Adults,DMP Healthcare (Heatherbrook) Ltd,Nursing Homes - Private Contractors Payment,2712.00,0.00,NON COMMERCIAL SUPPLIER 
 25-08-2022,Adults,DMP Healthcare (Heatherbrook) Ltd,Nursing Homes - Private Contractors Payment,2528.00,0.00,NON COMMERCIAL SUPPLIER 
 25-08-2022,Adults,DMP Healthcare (Heatherbrook) Ltd,Nursing Homes - Private Contractors Payment,2712.00,0.00,NON COMMERCIAL SUPPLIER 
 25-08-2022,Adults,DMP Healthcare (Heatherbrook) Ltd,Residential Placements - Private Contractors Payment,2780.00,0.00,NON COMMERCIAL SUPPLIER 
 25-08-2022,Adults,DMP Healthcare (Heatherbrook) Ltd,Residential Placements - Private Contractors Payment,2780.00,0.00,NON COMMERCIAL SUPPLIER 
 25-08-2022,Adults,DMP Healthcare (Heatherbrook) Ltd,Nursing Homes - Private Contractors Payment,2712.00,0.00,NON COMMERCIAL SUPPLIER 
 25-08-2022,Adults,DMP Healthcare (Heatherbrook) Ltd,Nursing Homes - Private Contractors Payment,2712.00,0.00,NON COMMERCIAL SUPPLIER 
 25-08-2022,Adults,DMP Healthcare (Heatherbrook) Ltd,Respite Care - Private Contractors Payment,1065.43,0.00,NON COMMERCIAL SUPPLIER 
 25-08-2022,Adults,DMP Healthcare (Heatherbrook) Ltd,Nursing Homes - Private Contractors Payment,2421.43,0.00,NON COMMERCIAL SUPPLIER 
 25-08-2022,Adults,Sense_a,Residential Placements - Private Contractors Payment,8349.48,0.00,COMMERCIAL SUPPLIER 
 25-08-2022,Adults,Outlook Care - 1A Hulse Avenue,Residential Placements - Private Contractors Payment,5561.68,0.00,COMMERCIAL SUPPLIER 
 25-08-2022,Adults,Outlook Care - 1A Hulse Avenue,Residential Placements - Private Contractors Payment,5561.68,0.00,COMMERCIAL SUPPLIER 
 25-08-2022,Adults,Outlook Care - 1A Hulse Avenue,Residential Placements - Private Contractors Payment,8556.16,0.00,COMMERCIAL SUPPLIER 
 25-08-2022,Adults,Outlook Care - 1A Hulse Avenue,Residential Placements - Private Contractors Payment,5561.68,0.00,COMMERCIAL SUPPLIER 
 25-08-2022,Adults,St Elizabeth's Centre_a,Residential Placements - Private Contractors Payment,10051.12,0.00,COMMERCIAL SUPPLIER 
 25-08-2022,Adults,St Elizabeth's Centre_a,Nursing Homes - Private Contractors Payment,3814.96,0.00,COMMERCIAL SUPPLIER 
 25-08-2022,Adults,Oakley Carehomes Ltd t/a Abbey Care Home,Residential Placements - Private Contractors Payment,2480.00,0.00,COMMERCIAL SUPPLIER 
 25-08-2022,Adults,Masumin Ltd t/s Abbeleigh House,Residential Placements - Private Contractors Payment,2780.00,0.00,COMMERCIAL SUPPLIER 
 25-08-2022,Adults,Masumin Ltd t/s Abbeleigh House,Residential Placements - Private Contractors Payment,3011.04,0.00,COMMERCIAL SUPPLIER 
 25-08-2022,Adults,Masumin Ltd t/s Abbeleigh House,Residential Placements - Private Contractors Payment,2780.00,0.00,COMMERCIAL SUPPLIER 
 25-08-2022,Adults,Masumin Ltd t/s Abbeleigh House,Residential Placements - Private Contractors Payment,2780.00,0.00,COMMERCIAL SUPPLIER 
 25-08-2022,Adults,Masumin Ltd t/s Abbeleigh House,Residential Placements - Private Contractors Payment,3304.00,0.00,COMMERCIAL SUPPLIER 
 25-08-2022,Adults,Masumin Ltd t/s Abbeleigh House,Residential Placements - Private Contractors Payment,2780.00,0.00,COMMERCIAL SUPPLIER 
 25-08-2022,Adults,Masumin Ltd t/s Abbeleigh House,Residential Placements - Private Contractors Payment,2480.00,0.00,COMMERCIAL SUPPLIER 
 25-08-2022,Adults,Masumin Ltd t/s Abbeleigh House,Residential Placements - Private Contractors Payment,3400.00,0.00,COMMERCIAL SUPPLIER 
 25-08-2022,Adults,Masumin Ltd t/s Abbeleigh House,Residential Placements - Private Contractors Payment,2780.00,0.00,COMMERCIAL SUPPLIER 
 25-08-2022,Adults,Masumin Ltd t/s Abbeleigh House,Residential Placements - Private Contractors Payment,3013.52,0.00,COMMERCIAL SUPPLIER 
 25-08-2022,Adults,Masumin Ltd t/s Abbeleigh House,Residential Placements - Private Contractors Payment,2780.00,0.00,COMMERCIAL SUPPLIER 
 25-08-2022,Adults,Masumin Ltd t/s Abbeleigh House,Residential Placements - Private Contractors Payment,2780.00,0.00,COMMERCIAL SUPPLIER 
 25-08-2022,Adults,Masumin Ltd t/s Abbeleigh House,Residential Placements - Private Contractors Payment,2780.00,0.00,COMMERCIAL SUPPLIER 
 25-08-2022,Adults,Masumin Ltd t/s Abbeleigh House,Residential Placements - Private Contractors Payment,2780.00,0.00,COMMERCIAL SUPPLIER 
 25-08-2022,Adults,Masumin Ltd t/s Abbeleigh House,Residential Placements - Private Contractors Payment,2780.00,0.00,COMMERCIAL SUPPLIER 
 25-08-2022,Adults,Masumin Ltd t/s Abbeleigh House,Residential Placements - Private Contractors Payment,2780.00,0.00,COMMERCIAL SUPPLIER 
 25-08-2022,Adults,Masumin Ltd t/s Abbeleigh House,Residential Placements - Private Contractors Payment,2780.00,0.00,COMMERCIAL SUPPLIER 
 25-08-2022,Adults,EC Romford Holdings Ltd,Residential Placements - Private Contractors Payment,3804.80,0.00,COMMERCIAL SUPPLIER 
 25-08-2022,Adults,EC Romford Holdings Ltd,Residential Placements - Private Contractors Payment,2780.00,0.00,COMMERCIAL SUPPLIER 
 25-08-2022,Adults,Clover Cottage Ltd,Residential Placements - Private Contractors Payment,2780.00,0.00,COMMERCIAL SUPPLIER 
 25-08-2022,Adults,Clover Cottage Ltd,Residential Placements - Private Contractors Payment,2780.00,0.00,COMMERCIAL SUPPLIER 
 25-08-2022,Adults,Clover Cottage Ltd,Residential Placements - Private Contractors Payment,2780.00,0.00,COMMERCIAL SUPPLIER 
 25-08-2022,Adults,Clover Cottage Ltd,Residential Placements - Private Contractors Payment,2283.57,0.00,COMMERCIAL SUPPLIER 
 25-08-2022,Adults,Clover Cottage Ltd,Residential Placements - Private Contractors Payment,2480.00,0.00,COMMERCIAL SUPPLIER 
 25-08-2022,Adults,Clover Cottage Ltd,Residential Placements - Private Contractors Payment,2480.00,0.00,COMMERCIAL SUPPLIER 
 25-08-2022,Adults,Clover Cottage Ltd,Residential Placements - Private Contractors Payment,2480.00,0.00,COMMERCIAL SUPPLIER 
 25-08-2022,Adults,Clover Cottage Ltd,Residential Placements - Private Contractors Payment,2480.00,0.00,COMMERCIAL SUPPLIER 
 25-08-2022,Adults,Ebury Court_a,Residential Placements - Private Contractors Payment,4182.00,0.00,COMMERCIAL SUPPLIER 
 25-08-2022,Adults,Ebury Court_a,Residential Placements - Private Contractors Payment,4752.00,0.00,COMMERCIAL SUPPLIER 
 25-08-2022,Adults,Ebury Court_a,Residential Placements - Private Contractors Payment,2780.00,0.00,COMMERCIAL SUPPLIER 
 25-08-2022,Adults,Ebury Court_a,Residential Placements - Private Contractors Payment,4536.00,0.00,COMMERCIAL SUPPLIER 
 25-08-2022,Adults,Ebury Court_a,Residential Placements - Private Contractors Payment,2780.00,0.00,COMMERCIAL SUPPLIER 
 25-08-2022,Adults,Ebury Court_a,Residential Placements - Private Contractors Payment,4536.00,0.00,COMMERCIAL SUPPLIER 
 25-08-2022,Adults,Ebury Court_a,Residential Placements - Private Contractors Payment,4536.00,0.00,COMMERCIAL SUPPLIER 
 25-08-2022,Adults,Ebury Court_a,Residential Placements - Private Contractors Payment,2780.00,0.00,COMMERCIAL SUPPLIER 
 25-08-2022,Adults,May Residential Homes Ltd,Residential Placements - Private Contractors Payment,794.29,0.00,COMMERCIAL SUPPLIER 
 25-08-2022,Adults,May Residential Homes Ltd,Residential Placements - Private Contractors Payment,2780.00,0.00,COMMERCIAL SUPPLIER 
 25-08-2022,Adults,May Residential Homes Ltd,Residential Placements - Private Contractors Payment,3485.00,0.00,COMMERCIAL SUPPLIER 
 25-08-2022,Adults,May Residential Homes Ltd,Residential Placements - Private Contractors Payment,2780.00,0.00,COMMERCIAL SUPPLIER 
 25-08-2022,Adults,May Residential Homes Ltd,Residential Placements - Private Contractors Payment,3120.00,0.00,COMMERCIAL SUPPLIER 
 25-08-2022,Adults,May Residential Homes Ltd,Residential Placements - Private Contractors Payment,3709.68,0.00,COMMERCIAL SUPPLIER 
 25-08-2022,Adults,May Residential Homes Ltd,Residential Placements - Private Contractors Payment,2780.00,0.00,COMMERCIAL SUPPLIER 
 25-08-2022,Adults,May Residential Homes Ltd,Residential Placements - Private Contractors Payment,2780.00,0.00,COMMERCIAL SUPPLIER 
 25-08-2022,Adults,EC Romford Holdings Ltd,Residential Placements - Private Contractors Payment,2780.00,0.00,COMMERCIAL SUPPLIER 
 25-08-2022,Adults,EC Romford Holdings Ltd,Residential Placements - Private Contractors Payment,2780.00,0.00,COMMERCIAL SUPPLIER 
 25-08-2022,Adults,EC Romford Holdings Ltd,Residential Placements - Private Contractors Payment,3771.40,0.00,COMMERCIAL SUPPLIER 
 25-08-2022,Adults,Lodge Group Care UK Ltd,Supported Other Accommodation - Private Contractors Payment,8634.48,0.00,COMMERCIAL SUPPLIER 
 25-08-2022,Adults,Lodge Group Care UK Ltd,Supported Other Accommodation - Private Contractors Payment,8634.48,0.00,COMMERCIAL SUPPLIER 
 25-08-2022,Adults,Lodge Group Care UK Ltd,Supported Other Accommodation - Private Contractors Payment,8907.16,0.00,COMMERCIAL SUPPLIER 
 25-08-2022,Adults,Lodge Group Care UK Ltd,Supported Other Accommodation - Private Contractors Payment,8349.12,0.00,COMMERCIAL SUPPLIER 
 25-08-2022,Adults,Langley House,Residential Placements - Private Contractors Payment,2780.00,0.00,COMMERCIAL SUPPLIER 
 25-08-2022,Adults,Langley House,Residential Placements - Private Contractors Payment,2780.00,0.00,COMMERCIAL SUPPLIER 
 25-08-2022,Adults,Langley House,Residential Placements - Private Contractors Payment,2780.00,0.00,COMMERCIAL SUPPLIER 
 25-08-2022,Adults,Langley House,Residential Placements - Private Contractors Payment,1489.29,0.00,COMMERCIAL SUPPLIER 
 25-08-2022,Adults,Langley House,Residential Placements - Private Contractors Payment,2780.00,0.00,COMMERCIAL SUPPLIER 
 25-08-2022,Adults,Langley House,Residential Placements - Private Contractors Payment,2780.00,0.00,COMMERCIAL SUPPLIER 
 25-08-2022,Adults,Langley House,Residential Placements - Private Contractors Payment,2480.00,0.00,COMMERCIAL SUPPLIER 
 25-08-2022,Adults,Langley House,Residential Placements - Private Contractors Payment,2780.00,0.00,COMMERCIAL SUPPLIER 
 25-08-2022,Adults,Langley House,Residential Placements - Private Contractors Payment,2780.00,0.00,COMMERCIAL SUPPLIER 
 25-08-2022,Adults,Langley House,Residential Placements - Private Contractors Payment,2480.00,0.00,COMMERCIAL SUPPLIER 
 25-08-2022,Adults,Langley House,Residential Placements - Private Contractors Payment,2480.00,0.00,COMMERCIAL SUPPLIER 
 25-08-2022,Adults,Langley House,Residential Placements - Private Contractors Payment,2780.00,0.00,COMMERCIAL SUPPLIER 
 25-08-2022,Adults,Langley House,Residential Placements - Private Contractors Payment,2780.00,0.00,COMMERCIAL SUPPLIER 
 25-08-2022,Adults,Langley House,Residential Placements - Private Contractors Payment,595.71,0.00,COMMERCIAL SUPPLIER 
 25-08-2022,Adults,Langley House,Residential Placements - Private Contractors Payment,2780.00,0.00,COMMERCIAL SUPPLIER 
 25-08-2022,Adults,Langley House,Residential Placements - Private Contractors Payment,2780.00,0.00,COMMERCIAL SUPPLIER 
 25-08-2022,Adults,Little Gaynes,Respite Care - Private Contractors Payment,620.00,0.00,COMMERCIAL SUPPLIER 
 25-08-2022,Adults,Little Gaynes,Residential Placements - Private Contractors Payment,2780.00,0.00,COMMERCIAL SUPPLIER 
 25-08-2022,Adults,Little Gaynes,Residential Placements - Private Contractors Payment,3429.24,0.00,COMMERCIAL SUPPLIER 
 25-08-2022,Adults,Little Gaynes,Residential Placements - Private Contractors Payment,3520.00,0.00,COMMERCIAL SUPPLIER 
 25-08-2022,Adults,Little Gaynes,Residential Placements - Private Contractors Payment,1131.43,0.00,COMMERCIAL SUPPLIER 
 25-08-2022,Adults,Moreland House_a,Nursing Homes - Private Contractors Payment,2324.57,0.00,COMMERCIAL SUPPLIER 
 25-08-2022,Adults,Moreland House_a,Nursing Homes - Private Contractors Payment,2712.00,0.00,COMMERCIAL SUPPLIER 
 25-08-2022,Adults,Moreland House_a,Nursing Homes - Private Contractors Payment,2712.00,0.00,COMMERCIAL SUPPLIER 
 25-08-2022,Adults,Moreland House_a,Nursing Homes - Private Contractors Payment,2712.00,0.00,COMMERCIAL SUPPLIER 
 25-08-2022,Adults,Moreland House_a,Nursing Homes - Private Contractors Payment,678.00,0.00,COMMERCIAL SUPPLIER 
 25-08-2022,Adults,Moreland House_a,Nursing Homes - Private Contractors Payment,2712.00,0.00,COMMERCIAL SUPPLIER 
 25-08-2022,Adults,Moreland House_a,Nursing Homes - Private Contractors Payment,2712.00,0.00,COMMERCIAL SUPPLIER 
 25-08-2022,Adults,Moreland House_a,Nursing Homes - Private Contractors Payment,2712.00,0.00,COMMERCIAL SUPPLIER 
 25-08-2022,Adults,Moreland House_a,Nursing Homes - Private Contractors Payment,2712.00,0.00,COMMERCIAL SUPPLIER 
 25-08-2022,Adults,Moreland House_a,Nursing Homes - Private Contractors Payment,1890.00,0.00,COMMERCIAL SUPPLIER 
 25-08-2022,Adults,Moreland House_a,Nursing Homes - Private Contractors Payment,2306.24,0.00,COMMERCIAL SUPPLIER 
 25-08-2022,Adults,Moreland House_a,Nursing Homes - Private Contractors Payment,4914.00,0.00,COMMERCIAL SUPPLIER 
 25-08-2022,Adults,Moreland House_a,Nursing Homes - Private Contractors Payment,3780.00,0.00,COMMERCIAL SUPPLIER 
 25-08-2022,Adults,Moreland House_a,Nursing Homes - Private Contractors Payment,2712.00,0.00,COMMERCIAL SUPPLIER 
 25-08-2022,Adults,Moreland House_a,Nursing Homes - Private Contractors Payment,3053.84,0.00,COMMERCIAL SUPPLIER 
 25-08-2022,Adults,Moreland House_a,Nursing Homes - Private Contractors Payment,2712.00,0.00,COMMERCIAL SUPPLIER 
 25-08-2022,Adults,Moreland House_a,Nursing Homes - Private Contractors Payment,2712.00,0.00,COMMERCIAL SUPPLIER 
 25-08-2022,Adults,Ladyville Lodge_a,Residential Placements - Private Contractors Payment,4000.00,0.00,COMMERCIAL SUPPLIER 
 25-08-2022,Adults,Ladyville Lodge_a,Residential Placements - Private Contractors Payment,2780.00,0.00,COMMERCIAL SUPPLIER 
 25-08-2022,Adults,Ladyville Lodge_a,Residential Placements - Private Contractors Payment,2780.00,0.00,COMMERCIAL SUPPLIER 
 25-08-2022,Adults,Ladyville Lodge_a,Nursing Homes - Private Contractors Payment,2525.92,0.00,COMMERCIAL SUPPLIER 
 25-08-2022,Adults,Ladyville Lodge_a,Nursing Homes - Private Contractors Payment,3690.00,0.00,COMMERCIAL SUPPLIER 
 25-08-2022,Adults,Ladyville Lodge_a,Nursing Homes - Private Contractors Payment,774.86,0.00,COMMERCIAL SUPPLIER 
 25-08-2022,Adults,Ladyville Lodge_a,Nursing Homes - Private Contractors Payment,2712.00,0.00,COMMERCIAL SUPPLIER 
 25-08-2022,Adults,Ladyville Lodge_a,Residential Placements - Private Contractors Payment,1571.43,0.00,COMMERCIAL SUPPLIER 
 25-08-2022,Adults,Ladyville Lodge_a,Residential Placements - Private Contractors Payment,4431.20,0.00,COMMERCIAL SUPPLIER 
 25-08-2022,Adults,Ladyville Lodge_a,Residential Placements - Private Contractors Payment,3690.00,0.00,COMMERCIAL SUPPLIER 
 25-08-2022,Adults,Ladyville Lodge_a,Nursing Homes - Private Contractors Payment,3740.84,0.00,COMMERCIAL SUPPLIER 
 25-08-2022,Adults,Ladyville Lodge_a,Nursing Homes - Private Contractors Payment,2528.00,0.00,COMMERCIAL SUPPLIER 
 25-08-2022,Adults,Nightingale Residential Care Home Ltd,Residential Placements - Private Contractors Payment,2780.00,0.00,COMMERCIAL SUPPLIER 
 25-08-2022,Adults,Nightingale Residential Care Home Ltd,Residential Placements - Private Contractors Payment,2780.00,0.00,COMMERCIAL SUPPLIER 
 25-08-2022,Adults,Nightingale Residential Care Home Ltd,Respite Care - Private Contractors Payment,695.00,0.00,COMMERCIAL SUPPLIER 
 25-08-2022,Adults,Nightingale Residential Care Home Ltd,Residential Placements - Private Contractors Payment,2780.00,0.00,COMMERCIAL SUPPLIER 
 25-08-2022,Adults,Nightingale Residential Care Home Ltd,Residential Placements - Private Contractors Payment,2780.00,0.00,COMMERCIAL SUPPLIER 
 25-08-2022,Adults,Nightingale Residential Care Home Ltd,Residential Placements - Private Contractors Payment,2780.00,0.00,COMMERCIAL SUPPLIER 
 25-08-2022,Adults,Nightingale Residential Care Home Ltd,Residential Placements - Private Contractors Payment,2780.00,0.00,COMMERCIAL SUPPLIER 
 25-08-2022,Adults,Nightingale Residential Care Home Ltd,Residential Placements - Private Contractors Payment,2780.00,0.00,COMMERCIAL SUPPLIER 
 25-08-2022,Adults,Nightingale Residential Care Home Ltd,Residential Placements - Private Contractors Payment,2780.00,0.00,COMMERCIAL SUPPLIER 
 25-08-2022,Adults,Nightingale Residential Care Home Ltd,Residential Placements - Private Contractors Payment,2780.00,0.00,COMMERCIAL SUPPLIER 
 25-08-2022,Adults,Nightingale Residential Care Home Ltd,Residential Placements - Private Contractors Payment,2780.00,0.00,COMMERCIAL SUPPLIER 
 25-08-2022,Adults,Nightingale Residential Care Home Ltd,Residential Placements - Private Contractors Payment,2665.00,0.00,COMMERCIAL SUPPLIER 
 25-08-2022,Adults,Oaks Residential Home,Residential Placements - Private Contractors Payment,4600.00,0.00,COMMERCIAL SUPPLIER 
 25-08-2022,Adults,Oaks Residential Home,Residential Placements - Private Contractors Payment,2780.00,0.00,COMMERCIAL SUPPLIER 
 25-08-2022,Adults,Oaks Residential Home,Residential Placements - Private Contractors Payment,2480.00,0.00,COMMERCIAL SUPPLIER 
 25-08-2022,Adults,Oaks Residential Home,Residential Placements - Private Contractors Payment,3972.92,0.00,COMMERCIAL SUPPLIER 
 25-08-2022,Adults,Oaks Residential Home,Residential Placements - Private Contractors Payment,4600.00,0.00,COMMERCIAL SUPPLIER 
 25-08-2022,Adults,Oaks Residential Home,Residential Placements - Private Contractors Payment,2780.00,0.00,COMMERCIAL SUPPLIER 
 25-08-2022,Adults,Oaks Residential Home,Residential Placements - Private Contractors Payment,2780.00,0.00,COMMERCIAL SUPPLIER 
 25-08-2022,Adults,Oaks Residential Home,Residential Placements - Private Contractors Payment,2780.00,0.00,COMMERCIAL SUPPLIER 
 25-08-2022,Adults,Oaks Residential Home,Residential Placements - Private Contractors Payment,2780.00,0.00,COMMERCIAL SUPPLIER 
 25-08-2022,Adults,Parkside_a,Residential Placements - Private Contractors Payment,2780.00,0.00,COMMERCIAL SUPPLIER 
 25-08-2022,Adults,Priory Supporting Care Ltd,Residential Placements - Private Contractors Payment,2780.00,0.00,COMMERCIAL SUPPLIER 
 25-08-2022,Adults,Priory Supporting Care Ltd,Respite Care - Private Contractors Payment,1500.00,0.00,COMMERCIAL SUPPLIER 
 25-08-2022,Adults,Priory Supporting Care Ltd,Residential Placements - Private Contractors Payment,2780.00,0.00,COMMERCIAL SUPPLIER 
 25-08-2022,Adults,Priory Supporting Care Ltd,Residential Placements - Private Contractors Payment,2780.00,0.00,COMMERCIAL SUPPLIER 
 25-08-2022,Adults,Priory Supporting Care Ltd,Residential Placements - Private Contractors Payment,3075.00,0.00,COMMERCIAL SUPPLIER 
 25-08-2022,Adults,Priory Supporting Care Ltd,Residential Placements - Private Contractors Payment,2559.40,0.00,COMMERCIAL SUPPLIER 
 25-08-2022,Adults,Priory Supporting Care Ltd,Residential Placements - Private Contractors Payment,2780.00,0.00,COMMERCIAL SUPPLIER 
 25-08-2022,Adults,Priory Supporting Care Ltd,Residential Placements - Private Contractors Payment,3400.00,0.00,COMMERCIAL SUPPLIER 
 25-08-2022,Adults,Priory Supporting Care Ltd,Residential Placements - Private Contractors Payment,1942.86,0.00,COMMERCIAL SUPPLIER 
 25-08-2022,Adults,Priory Supporting Care Ltd,Residential Placements - Private Contractors Payment,2780.00,0.00,COMMERCIAL SUPPLIER 
 25-08-2022,Adults,Priory Supporting Care Ltd,Residential Placements - Private Contractors Payment,2780.00,0.00,COMMERCIAL SUPPLIER 
 25-08-2022,Adults,Ash Grove Residential Care Home,Residential Placements - Private Contractors Payment,2480.00,0.00,COMMERCIAL SUPPLIER 
 25-08-2022,Adults,Ash Grove Residential Care Home,Residential Placements - Private Contractors Payment,2480.00,0.00,COMMERCIAL SUPPLIER 
 25-08-2022,Adults,Ash Grove Residential Care Home,Residential Placements - Private Contractors Payment,2780.00,0.00,COMMERCIAL SUPPLIER 
 25-08-2022,Adults,Ash Grove Residential Care Home,Residential Placements - Private Contractors Payment,2780.00,0.00,COMMERCIAL SUPPLIER 
 25-08-2022,Adults,Ash Grove Residential Care Home,Residential Placements - Private Contractors Payment,2780.00,0.00,COMMERCIAL SUPPLIER 
 25-08-2022,Adults,Ash Grove Residential Care Home,Residential Placements - Private Contractors Payment,2780.00,0.00,COMMERCIAL SUPPLIER 
 25-08-2022,Adults,Ash Grove Residential Care Home,Residential Placements - Private Contractors Payment,2780.00,0.00,COMMERCIAL SUPPLIER 
 25-08-2022,Adults,Ash Grove Residential Care Home,Residential Placements - Private Contractors Payment,3800.00,0.00,COMMERCIAL SUPPLIER 
 25-08-2022,Adults,Ash Grove Residential Care Home,Residential Placements - Private Contractors Payment,2480.00,0.00,COMMERCIAL SUPPLIER 
 25-08-2022,Adults,Ash Grove Residential Care Home,Residential Placements - Private Contractors Payment,3200.00,0.00,COMMERCIAL SUPPLIER 
 25-08-2022,Adults,Ash Grove Residential Care Home,Residential Placements - Private Contractors Payment,3200.00,0.00,COMMERCIAL SUPPLIER 
 25-08-2022,Adults,Voyage Ltd - 89 Mawney Road,Residential Placements - Private Contractors Payment,5786.32,0.00,COMMERCIAL SUPPLIER 
 25-08-2022,Adults,Voyage Ltd - 89 Mawney Road,Residential Placements - Private Contractors Payment,5786.32,0.00,COMMERCIAL SUPPLIER 
 25-08-2022,Adults,Voyage Ltd - 89 Mawney Road,Residential Placements - Private Contractors Payment,5786.32,0.00,COMMERCIAL SUPPLIER 
 25-08-2022,Adults,Voyage Ltd - 89 Mawney Road,Residential Placements - Private Contractors Payment,5786.32,0.00,COMMERCIAL SUPPLIER 
 25-08-2022,Adults,Voyage Ltd - 89 Mawney Road,Residential Placements - Private Contractors Payment,5786.32,0.00,COMMERCIAL SUPPLIER 
 25-08-2022,Adults,GCH - Hillside Nursing Home,Nursing Homes - Private Contractors Payment,3895.00,0.00,COMMERCIAL SUPPLIER 
 25-08-2022,Adults,GCH - Hillside Nursing Home,Residential Placements - Private Contractors Payment,2780.00,0.00,COMMERCIAL SUPPLIER 
 25-08-2022,Adults,GCH - Hillside Nursing Home,Nursing Homes - Private Contractors Payment,3980.00,0.00,COMMERCIAL SUPPLIER 
 25-08-2022,Adults,GCH - Hillside Nursing Home,Residential Placements - Private Contractors Payment,5632.00,0.00,COMMERCIAL SUPPLIER 
 25-08-2022,Adults,GCH - Hillside Nursing Home,Residential Placements - Private Contractors Payment,9856.00,0.00,COMMERCIAL SUPPLIER 
 25-08-2022,Adults,GCH - Hillside Nursing Home,Residential Placements - Private Contractors Payment,3168.00,0.00,COMMERCIAL SUPPLIER 
 25-08-2022,Adults,GCH - Hillside Nursing Home,Nursing Homes - Private Contractors Payment,514.29,0.00,COMMERCIAL SUPPLIER 
 25-08-2022,Adults,GCH - Hillside Nursing Home,Nursing Homes - Private Contractors Payment,3600.00,0.00,COMMERCIAL SUPPLIER 
 25-08-2022,Adults,GCH - Hillside Nursing Home,Nursing Homes - Private Contractors Payment,3800.00,0.00,COMMERCIAL SUPPLIER 
 25-08-2022,Adults,GCH - Hillside Nursing Home,Nursing Homes - Private Contractors Payment,3690.00,0.00,COMMERCIAL SUPPLIER 
 25-08-2022,Adults,GCH - Hillside Nursing Home,Nursing Homes - Private Contractors Payment,14784.00,0.00,COMMERCIAL SUPPLIER 
 25-08-2022,Adults,GCH - Hillside Nursing Home,Residential Placements - Private Contractors Payment,2480.00,0.00,COMMERCIAL SUPPLIER 
 25-08-2022,Adults,GCH - Hillside Nursing Home,Nursing Homes - Private Contractors Payment,11400.00,0.00,COMMERCIAL SUPPLIER 
 25-08-2022,Adults,GCH - Hillside Nursing Home,Nursing Homes - Private Contractors Payment,3900.00,0.00,COMMERCIAL SUPPLIER 
 25-08-2022,Adults,GCH - Hillside Nursing Home,Nursing Homes - Private Contractors Payment,3900.00,0.00,COMMERCIAL SUPPLIER 
 25-08-2022,Adults,GCH - Hillside Nursing Home,Nursing Homes - Private Contractors Payment,2925.00,0.00,COMMERCIAL SUPPLIER 
 25-08-2022,Adults,GCH - Hillside Nursing Home,Nursing Homes - Private Contractors Payment,3900.00,0.00,COMMERCIAL SUPPLIER 
 25-08-2022,Adults,GCH - Hillside Nursing Home,Nursing Homes - Private Contractors Payment,1152.00,0.00,COMMERCIAL SUPPLIER 
 25-08-2022,Adults,GCH - Hillside Nursing Home,Nursing Homes - Private Contractors Payment,14976.00,0.00,COMMERCIAL SUPPLIER 
 25-08-2022,Adults,GCH - Hillside Nursing Home,Nursing Homes - Private Contractors Payment,3900.00,0.00,COMMERCIAL SUPPLIER 
 25-08-2022,Adults,GCH - Hillside Nursing Home,Nursing Homes - Private Contractors Payment,3900.00,0.00,COMMERCIAL SUPPLIER 
 25-08-2022,Adults,GCH - Hillside Nursing Home,Nursing Homes - Private Contractors Payment,3900.00,0.00,COMMERCIAL SUPPLIER 
 25-08-2022,Adults,GCH - Hillside Nursing Home,Nursing Homes - Private Contractors Payment,3900.00,0.00,COMMERCIAL SUPPLIER 
 25-08-2022,Adults,GCH - Hillside Nursing Home,Nursing Homes - Private Contractors Payment,8400.00,0.00,COMMERCIAL SUPPLIER 
 25-08-2022,Adults,GCH - Hillside Nursing Home,Nursing Homes - Private Contractors Payment,1200.00,0.00,COMMERCIAL SUPPLIER 
 25-08-2022,Adults,GCH - Hillside Nursing Home,Residential Placements - Private Contractors Payment,2780.00,0.00,COMMERCIAL SUPPLIER 
 25-08-2022,Adults,GCH - Hillside Nursing Home,Nursing Homes - Private Contractors Payment,3895.00,0.00,COMMERCIAL SUPPLIER 
 25-08-2022,Adults,GCH - Hillside Nursing Home,Nursing Homes - Private Contractors Payment,2712.00,0.00,COMMERCIAL SUPPLIER 
 25-08-2022,Adults,GCH - Hillside Nursing Home,Nursing Homes - Private Contractors Payment,2712.00,0.00,COMMERCIAL SUPPLIER 
 25-08-2022,Adults,GCH - Hillside Nursing Home,Nursing Homes - Private Contractors Payment,2712.00,0.00,COMMERCIAL SUPPLIER 
 25-08-2022,Adults,GCH - Hillside Nursing Home,Nursing Homes - Private Contractors Payment,2712.00,0.00,COMMERCIAL SUPPLIER 
 25-08-2022,Adults,GCH - Hillside Nursing Home,Nursing Homes - Private Contractors Payment,2712.00,0.00,COMMERCIAL SUPPLIER 
 25-08-2022,Adults,GCH - Hillside Nursing Home,Residential Placements - Private Contractors Payment,2780.00,0.00,COMMERCIAL SUPPLIER 
 25-08-2022,Adults,GCH - Hillside Nursing Home,Nursing Homes - Private Contractors Payment,3199.24,0.00,COMMERCIAL SUPPLIER 
 25-08-2022,Adults,GCH - Hillside Nursing Home,Residential Placements - Private Contractors Payment,1848.00,0.00,COMMERCIAL SUPPLIER 
 25-08-2022,Adults,GCH - Hillside Nursing Home,Residential Placements - Private Contractors Payment,2904.00,0.00,COMMERCIAL SUPPLIER 
 25-08-2022,Adults,GCH - Hillside Nursing Home,Residential Placements - Private Contractors Payment,3554.72,0.00,COMMERCIAL SUPPLIER 
 25-08-2022,Adults,GCH - Hillside Nursing Home,Residential Placements - Private Contractors Payment,7392.00,0.00,COMMERCIAL SUPPLIER 
 25-08-2022,Adults,GCH - Hillside Nursing Home,Nursing Homes - Private Contractors Payment,2712.00,0.00,COMMERCIAL SUPPLIER 
 25-08-2022,Adults,GCH - Hillside Nursing Home,Residential Placements - Private Contractors Payment,2780.00,0.00,COMMERCIAL SUPPLIER 
 25-08-2022,Adults,Outlook Care - 86 Veronica Close,Residential Placements - Private Contractors Payment,1565.56,0.00,COMMERCIAL SUPPLIER 
 25-08-2022,Adults,Outlook Care - 86 Veronica Close,Residential Placements - Private Contractors Payment,4514.36,0.00,COMMERCIAL SUPPLIER 
 25-08-2022,Adults,Outlook Care - 86 Veronica Close,Residential Placements - Private Contractors Payment,4514.36,0.00,COMMERCIAL SUPPLIER 
 25-08-2022,Adults,Outlook Care - 86 Veronica Close,Residential Placements - Private Contractors Payment,4514.36,0.00,COMMERCIAL SUPPLIER 
 25-08-2022,Adults,Outlook Care - 86 Veronica Close,Residential Placements - Private Contractors Payment,4514.36,0.00,COMMERCIAL SUPPLIER 
 25-08-2022,Adults,Outlook Care - 86 Veronica Close,Residential Placements - Private Contractors Payment,4514.36,0.00,COMMERCIAL SUPPLIER 
 25-08-2022,Adults,Outlook Care - 86 Veronica Close,Residential Placements - Private Contractors Payment,4514.36,0.00,COMMERCIAL SUPPLIER 
 25-08-2022,Adults,Outlook Care - 86 Veronica Close,Residential Placements - Private Contractors Payment,4514.36,0.00,COMMERCIAL SUPPLIER 
 25-08-2022,Adults,Outlook Care - 86 Veronica Close,Residential Placements - Private Contractors Payment,4514.36,0.00,COMMERCIAL SUPPLIER 
 25-08-2022,Adults,Outlook Care - 86 Veronica Close,Residential Placements - Private Contractors Payment,4514.36,0.00,COMMERCIAL SUPPLIER 
 25-08-2022,Adults,Outlook Care - 86 Veronica Close,Residential Placements - Private Contractors Payment,4514.36,0.00,COMMERCIAL SUPPLIER 
 25-08-2022,Adults,Lodge Lane Care Home Limited,Residential Placements - Private Contractors Payment,2780.00,0.00,COMMERCIAL SUPPLIER 
 25-08-2022,Adults,Lodge Lane Care Home Limited,Residential Placements - Private Contractors Payment,2780.00,0.00,COMMERCIAL SUPPLIER 
 25-08-2022,Adults,Lodge Lane Care Home Limited,Residential Placements - Private Contractors Payment,2780.00,0.00,COMMERCIAL SUPPLIER 
 25-08-2022,Adults,Lodge Lane Care Home Limited,Residential Placements - Private Contractors Payment,2780.00,0.00,COMMERCIAL SUPPLIER 
 25-08-2022,Adults,Lodge Lane Care Home Limited,Residential Placements - Private Contractors Payment,2780.00,0.00,COMMERCIAL SUPPLIER 
 25-08-2022,Adults,Lodge Lane Care Home Limited,Residential Placements - Private Contractors Payment,2780.00,0.00,COMMERCIAL SUPPLIER 
 25-08-2022,Adults,Lodge Lane Care Home Limited,Residential Placements - Private Contractors Payment,2780.00,0.00,COMMERCIAL SUPPLIER 
 25-08-2022,Adults,Lodge Lane Care Home Limited,Residential Placements - Private Contractors Payment,2283.57,0.00,COMMERCIAL SUPPLIER 
 25-08-2022,Adults,Lodge Lane Care Home Limited,Residential Placements - Private Contractors Payment,2780.00,0.00,COMMERCIAL SUPPLIER 
 25-08-2022,Adults,Lodge Lane Care Home Limited,Residential Placements - Private Contractors Payment,2780.00,0.00,COMMERCIAL SUPPLIER 
 25-08-2022,Adults,Lodge Lane Care Home Limited,Residential Placements - Private Contractors Payment,2780.00,0.00,COMMERCIAL SUPPLIER 
 25-08-2022,Adults,Lodge Lane Care Home Limited,Residential Placements - Private Contractors Payment,2780.00,0.00,COMMERCIAL SUPPLIER 
 25-08-2022,Adults,Lodge Lane Care Home Limited,Residential Placements - Private Contractors Payment,2780.00,0.00,COMMERCIAL SUPPLIER 
 25-08-2022,Adults,Lodge Lane Care Home Limited,Residential Placements - Private Contractors Payment,595.71,0.00,COMMERCIAL SUPPLIER 
 25-08-2022,Adults,Lodge Lane Care Home Limited,Residential Placements - Private Contractors Payment,2780.00,0.00,COMMERCIAL SUPPLIER 
 25-08-2022,Adults,Lodge Lane Care Home Limited,Residential Placements - Private Contractors Payment,2780.00,0.00,COMMERCIAL SUPPLIER 
 25-08-2022,Adults,Lodge Lane Care Home Limited,Residential Placements - Private Contractors Payment,2780.00,0.00,COMMERCIAL SUPPLIER 
 25-08-2022,Adults,Lodge Lane Care Home Limited,Residential Placements - Private Contractors Payment,2780.00,0.00,COMMERCIAL SUPPLIER 
 25-08-2022,Adults,Lodge Lane Care Home Limited,Residential Placements - Private Contractors Payment,2780.00,0.00,COMMERCIAL SUPPLIER 
 25-08-2022,Adults,Lodge Lane Care Home Limited,Residential Placements - Private Contractors Payment,2780.00,0.00,COMMERCIAL SUPPLIER 
 25-08-2022,Adults,Lodge Lane Care Home Limited,Residential Placements - Private Contractors Payment,2780.00,0.00,COMMERCIAL SUPPLIER 
 25-08-2022,Adults,Lodge Lane Care Home Limited,Residential Placements - Private Contractors Payment,1687.86,0.00,COMMERCIAL SUPPLIER 
 25-08-2022,Adults,Lodge Lane Care Home Limited,Residential Placements - Private Contractors Payment,2780.00,0.00,COMMERCIAL SUPPLIER 
 25-08-2022,Adults,Lodge Lane Care Home Limited,Residential Placements - Private Contractors Payment,2780.00,0.00,COMMERCIAL SUPPLIER 
 25-08-2022,Adults,Lodge Lane Care Home Limited,Residential Placements - Private Contractors Payment,2780.00,0.00,COMMERCIAL SUPPLIER 
 25-08-2022,Adults,Lodge Lane Care Home Limited,Residential Placements - Private Contractors Payment,2780.00,0.00,COMMERCIAL SUPPLIER 
 25-08-2022,Adults,Lodge Lane Care Home Limited,Residential Placements - Private Contractors Payment,2780.00,0.00,COMMERCIAL SUPPLIER 
 25-08-2022,Adults,Lodge Lane Care Home Limited,Residential Placements - Private Contractors Payment,2780.00,0.00,COMMERCIAL SUPPLIER 
 25-08-2022,Adults,Lodge Lane Care Home Limited,Residential Placements - Private Contractors Payment,2780.00,0.00,COMMERCIAL SUPPLIER 
 25-08-2022,Adults,Lodge Lane Care Home Limited,Residential Placements - Private Contractors Payment,2780.00,0.00,COMMERCIAL SUPPLIER 
 25-08-2022,Adults,Lodge Lane Care Home Limited,Residential Placements - Private Contractors Payment,2780.00,0.00,COMMERCIAL SUPPLIER 
 25-08-2022,Adults,Lodge Lane Care Home Limited,Residential Placements - Private Contractors Payment,2780.00,0.00,COMMERCIAL SUPPLIER 
 25-08-2022,Adults,Lodge Lane Care Home Limited,Respite Care - Private Contractors Payment,695.00,0.00,COMMERCIAL SUPPLIER 
 25-08-2022,Adults,Lodge Lane Care Home Limited,Residential Placements - Private Contractors Payment,2780.00,0.00,COMMERCIAL SUPPLIER 
 25-08-2022,Adults,Lodge Lane Care Home Limited,Residential Placements - Private Contractors Payment,2780.00,0.00,COMMERCIAL SUPPLIER 
 25-08-2022,Adults,Lodge Lane Care Home Limited,Respite Care - Private Contractors Payment,793.57,0.00,COMMERCIAL SUPPLIER 
 25-08-2022,Adults,Lodge Lane Care Home Limited,Respite Care - Private Contractors Payment,1191.43,0.00,COMMERCIAL SUPPLIER 
 25-08-2022,Adults,Lodge Lane Care Home Limited,Residential Placements - Private Contractors Payment,608.00,0.00,COMMERCIAL SUPPLIER 
 25-08-2022,Adults,Lodge Lane Care Home Limited,Residential Placements - Private Contractors Payment,1588.57,0.00,COMMERCIAL SUPPLIER 
 25-08-2022,Adults,Lodge Lane Care Home Limited,Residential Placements - Private Contractors Payment,1064.00,0.00,COMMERCIAL SUPPLIER 
 25-08-2022,Adults,Lodge Lane Care Home Limited,Residential Placements - Private Contractors Payment,2780.00,0.00,COMMERCIAL SUPPLIER 
 25-08-2022,Adults,Lodge Lane Care Home Limited,Residential Placements - Private Contractors Payment,2780.00,0.00,COMMERCIAL SUPPLIER 
 25-08-2022,Adults,Lodge Lane Care Home Limited,Residential Placements - Private Contractors Payment,2780.00,0.00,COMMERCIAL SUPPLIER 
 25-08-2022,Adults,Lodge Lane Care Home Limited,Residential Placements - Private Contractors Payment,2780.00,0.00,COMMERCIAL SUPPLIER 
 25-08-2022,Adults,Lodge Lane Care Home Limited,Residential Placements - Private Contractors Payment,2780.00,0.00,COMMERCIAL SUPPLIER 
 25-08-2022,Adults,Lodge Lane Care Home Limited,Residential Placements - Private Contractors Payment,2780.00,0.00,COMMERCIAL SUPPLIER 
 25-08-2022,Adults,Lodge Lane Care Home Limited,Residential Placements - Private Contractors Payment,2780.00,0.00,COMMERCIAL SUPPLIER 
 25-08-2022,Adults,Lodge Lane Care Home Limited,Residential Placements - Private Contractors Payment,2780.00,0.00,COMMERCIAL SUPPLIER 
 25-08-2022,Adults,Lodge Lane Care Home Limited,Residential Placements - Private Contractors Payment,2780.00,0.00,COMMERCIAL SUPPLIER 
 25-08-2022,Adults,Lodge Lane Care Home Limited,Residential Placements - Private Contractors Payment,2780.00,0.00,COMMERCIAL SUPPLIER 
 25-08-2022,Adults,Lodge Lane Care Home Limited,Residential Placements - Private Contractors Payment,2780.00,0.00,COMMERCIAL SUPPLIER 
 25-08-2022,Adults,Lodge Lane Care Home Limited,Residential Placements - Private Contractors Payment,2780.00,0.00,COMMERCIAL SUPPLIER 
 25-08-2022,Adults,Lodge Lane Care Home Limited,Residential Placements - Private Contractors Payment,2780.00,0.00,COMMERCIAL SUPPLIER 
 25-08-2022,Adults,Lodge Lane Care Home Limited,Residential Placements - Private Contractors Payment,2780.00,0.00,COMMERCIAL SUPPLIER 
 25-08-2022,Adults,Lodge Lane Care Home Limited,Residential Placements - Private Contractors Payment,2780.00,0.00,COMMERCIAL SUPPLIER 
 25-08-2022,Adults,Lodge Lane Care Home Limited,Residential Placements - Private Contractors Payment,2780.00,0.00,COMMERCIAL SUPPLIER 
 25-08-2022,Adults,Lodge Lane Care Home Limited,Residential Placements - Private Contractors Payment,2780.00,0.00,COMMERCIAL SUPPLIER 
 25-08-2022,Adults,Lodge Lane Care Home Limited,Residential Placements - Private Contractors Payment,2780.00,0.00,COMMERCIAL SUPPLIER 
 25-08-2022,Adults,Lodge Lane Care Home Limited,Residential Placements - Private Contractors Payment,2780.00,0.00,COMMERCIAL SUPPLIER 
 25-08-2022,Adults,Lodge Lane Care Home Limited,Residential Placements - Private Contractors Payment,2780.00,0.00,COMMERCIAL SUPPLIER 
 25-08-2022,Adults,Lodge Lane Care Home Limited,Residential Placements - Private Contractors Payment,2780.00,0.00,COMMERCIAL SUPPLIER 
 25-08-2022,Adults,Lodge Lane Care Home Limited,Residential Placements - Private Contractors Payment,2780.00,0.00,COMMERCIAL SUPPLIER 
 25-08-2022,Adults,Lodge Lane Care Home Limited,Residential Placements - Private Contractors Payment,2780.00,0.00,COMMERCIAL SUPPLIER 
 25-08-2022,Adults,Lodge Lane Care Home Limited,Residential Placements - Private Contractors Payment,2780.00,0.00,COMMERCIAL SUPPLIER 
 25-08-2022,Adults,Lodge Lane Care Home Limited,Residential Placements - Private Contractors Payment,2780.00,0.00,COMMERCIAL SUPPLIER 
 25-08-2022,Adults,Lodge Lane Care Home Limited,Residential Placements - Private Contractors Payment,2780.00,0.00,COMMERCIAL SUPPLIER 
 25-08-2022,Adults,Lodge Lane Care Home Limited,Residential Placements - Private Contractors Payment,2780.00,0.00,COMMERCIAL SUPPLIER 
 25-08-2022,Adults,Rose House_a,Residential Placements - Private Contractors Payment,6699.20,0.00,COMMERCIAL SUPPLIER 
 25-08-2022,Adults,Melody Lodge_a,Residential Placements - Private Contractors Payment,4692.20,0.00,COMMERCIAL SUPPLIER 
 25-08-2022,Adults,Outlook Care_a,Supported Other Accommodation - Private Contractors Payment,2253.44,0.00,COMMERCIAL SUPPLIER 
 25-08-2022,Adults,Abbottswood Lodge,Residential Placements - Private Contractors Payment,1763.76,0.00,COMMERCIAL SUPPLIER 
 25-08-2022,Adults,Autism Initiatives,Residential Placements - Private Contractors Payment,5565.64,0.00,COMMERCIAL SUPPLIER 
 25-08-2022,Adults,The Cottage Residential Care Home,Residential Placements - Private Contractors Payment,1040.28,0.00,COMMERCIAL SUPPLIER 
 25-08-2022,Adults,The Cottage Residential Care Home,Residential Placements - Private Contractors Payment,2966.96,0.00,COMMERCIAL SUPPLIER 
 25-08-2022,Adults,Ashgate House Ltd_a,Residential Placements - Private Contractors Payment,1932.96,0.00,COMMERCIAL SUPPLIER 
 25-08-2022,Adults,Ashgate House Ltd_a,Residential Placements - Private Contractors Payment,4765.00,0.00,COMMERCIAL SUPPLIER 
 25-08-2022,Adults,Ashgate House Ltd_a,Residential Placements - Private Contractors Payment,806.77,0.00,COMMERCIAL SUPPLIER 
 25-08-2022,Adults,Ashgate House Ltd_a,Residential Placements - Private Contractors Payment,4884.12,0.00,COMMERCIAL SUPPLIER 
 25-08-2022,Adults,Ashgate House Ltd_a,Residential Placements - Private Contractors Payment,3660.52,0.00,COMMERCIAL SUPPLIER 
 25-08-2022,Adults,Ashgate House Ltd_a,Residential Placements - Private Contractors Payment,4704.00,0.00,COMMERCIAL SUPPLIER 
 25-08-2022,Adults,Ashgate House Ltd_a,Residential Placements - Private Contractors Payment,1303.80,0.00,COMMERCIAL SUPPLIER 
 25-08-2022,Adults,Ashgate House Ltd_a,Residential Placements - Private Contractors Payment,3770.80,0.00,COMMERCIAL SUPPLIER 
 25-08-2022,Adults,Ashgate House Ltd_a,Residential Placements - Private Contractors Payment,3965.48,0.00,COMMERCIAL SUPPLIER 
 25-08-2022,Adults,Ashgate House Ltd_a,Residential Placements - Private Contractors Payment,746.16,0.00,COMMERCIAL SUPPLIER 
 25-08-2022,Adults,Voyage Ltd - Drakes Place,Residential Placements - Private Contractors Payment,4469.44,0.00,COMMERCIAL SUPPLIER 
 25-08-2022,Adults,Autism Wessex,Residential Placements - Private Contractors Payment,6106.48,0.00,COMMERCIAL SUPPLIER 
 25-08-2022,Adults,Crowstone Care Home Ltd - The Grange,Residential Placements - Private Contractors Payment,2078.44,0.00,COMMERCIAL SUPPLIER 
 25-08-2022,Adults,Acorn Village_a,Residential Placements - Private Contractors Payment,3462.88,0.00,COMMERCIAL SUPPLIER 
 25-08-2022,Adults,Acorn Village_a,Residential Placements - Private Contractors Payment,774.92,0.00,COMMERCIAL SUPPLIER 
 25-08-2022,Adults,Hilton House,Residential Placements - Private Contractors Payment,4284.08,0.00,COMMERCIAL SUPPLIER 
 25-08-2022,Adults,Churchill House_a,Residential Placements - Private Contractors Payment,4052.36,0.00,COMMERCIAL SUPPLIER 
 25-08-2022,Adults,Churchill House_a,Residential Placements - Private Contractors Payment,2960.92,0.00,COMMERCIAL SUPPLIER 
 25-08-2022,Adults,Churchill House_a,Residential Placements - Private Contractors Payment,4214.48,0.00,COMMERCIAL SUPPLIER 
 25-08-2022,Adults,Ashking House Ltd,Residential Placements - Private Contractors Payment,1616.84,0.00,COMMERCIAL SUPPLIER 
 25-08-2022,Adults,Ashking House Ltd,Residential Placements - Private Contractors Payment,6250.56,0.00,COMMERCIAL SUPPLIER 
 25-08-2022,Adults,Ashking House Ltd,Residential Placements - Private Contractors Payment,4109.76,0.00,COMMERCIAL SUPPLIER 
 25-08-2022,Adults,Community Care Mission 2000 Ltd,Residential Placements - Private Contractors Payment,10853.56,0.00,COMMERCIAL SUPPLIER 
 25-08-2022,Adults,Community Care Mission 2000 Ltd,Residential Placements - Private Contractors Payment,9239.96,0.00,COMMERCIAL SUPPLIER 
 25-08-2022,Adults,Genesis Residential Homes Ltd - Dothan House,Residential Placements - Private Contractors Payment,2780.00,0.00,COMMERCIAL SUPPLIER 
 25-08-2022,Adults,Genesis Residential Homes Ltd - Dothan House,Residential Placements - Private Contractors Payment,2780.00,0.00,COMMERCIAL SUPPLIER 
 25-08-2022,Adults,Genesis Residential Homes Ltd - Dothan House,Residential Placements - Private Contractors Payment,2780.00,0.00,COMMERCIAL SUPPLIER 
 25-08-2022,Adults,Genesis Residential Homes Ltd - Dothan House,Residential Placements - Private Contractors Payment,2780.00,0.00,COMMERCIAL SUPPLIER 
 25-08-2022,Adults,Genesis Residential Homes Ltd - Dothan House,Residential Placements - Private Contractors Payment,2780.00,0.00,COMMERCIAL SUPPLIER 
 25-08-2022,Adults,Genesis Residential Homes Ltd - Dothan House,Residential Placements - Private Contractors Payment,2482.14,0.00,COMMERCIAL SUPPLIER 
 25-08-2022,Adults,Genesis Residential Homes Ltd - Dothan House,Residential Placements - Private Contractors Payment,2480.00,0.00,COMMERCIAL SUPPLIER 
 25-08-2022,Adults,Genesis Residential Homes Ltd - Dothan House,Residential Placements - Private Contractors Payment,2780.00,0.00,COMMERCIAL SUPPLIER 
 25-08-2022,Adults,Genesis Residential Homes Ltd - Dothan House,Residential Placements - Private Contractors Payment,2780.00,0.00,COMMERCIAL SUPPLIER 
 25-08-2022,Adults,Genesis Residential Homes Ltd - Dothan House,Residential Placements - Private Contractors Payment,2780.00,0.00,COMMERCIAL SUPPLIER 
 25-08-2022,Adults,Genesis Residential Homes Ltd - Dothan House,Residential Placements - Private Contractors Payment,2780.00,0.00,COMMERCIAL SUPPLIER 
 25-08-2022,Adults,Genesis Residential Homes Ltd - Dothan House,Residential Placements - Private Contractors Payment,2780.00,0.00,COMMERCIAL SUPPLIER 
 25-08-2022,Adults,DMP Healthcare (Cherry Orchard) Ltd,Residential Placements - Private Contractors Payment,2300.12,0.00,COMMERCIAL SUPPLIER 
 25-08-2022,Adults,DMP Healthcare (Cherry Orchard) Ltd,Nursing Homes - Private Contractors Payment,3375.20,0.00,COMMERCIAL SUPPLIER 
 25-08-2022,Adults,DMP Healthcare (Cherry Orchard) Ltd,Nursing Homes - Private Contractors Payment,3049.28,0.00,COMMERCIAL SUPPLIER 
 25-08-2022,Adults,DMP Healthcare (Cherry Orchard) Ltd,Nursing Homes - Private Contractors Payment,3831.04,0.00,COMMERCIAL SUPPLIER 
 25-08-2022,Adults,DMP Healthcare (Cherry Orchard) Ltd,Nursing Homes - Private Contractors Payment,2614.50,0.00,COMMERCIAL SUPPLIER 
 25-08-2022,Adults,DMP Healthcare (Cherry Orchard) Ltd,Nursing Homes - Private Contractors Payment,3075.00,0.00,COMMERCIAL SUPPLIER 
 25-08-2022,Adults,DMP Healthcare (Cherry Orchard) Ltd,Nursing Homes - Private Contractors Payment,2972.40,0.00,COMMERCIAL SUPPLIER 
 25-08-2022,Adults,DMP Healthcare (Cherry Orchard) Ltd,Nursing Homes - Private Contractors Payment,4473.44,0.00,COMMERCIAL SUPPLIER 
 25-08-2022,Adults,DMP Healthcare (Cherry Orchard) Ltd,Nursing Homes - Private Contractors Payment,8568.00,0.00,COMMERCIAL SUPPLIER 
 25-08-2022,Adults,DMP Healthcare (Cherry Orchard) Ltd,Nursing Homes - Private Contractors Payment,3600.00,0.00,COMMERCIAL SUPPLIER 
 25-08-2022,Adults,DMP Healthcare (Cherry Orchard) Ltd,Nursing Homes - Private Contractors Payment,3518.96,0.00,COMMERCIAL SUPPLIER 
 25-08-2022,Adults,DMP Healthcare (Cherry Orchard) Ltd,Nursing Homes - Private Contractors Payment,2712.00,0.00,COMMERCIAL SUPPLIER 
 25-08-2022,Adults,DMP Healthcare (Cherry Orchard) Ltd,Nursing Homes - Private Contractors Payment,2715.84,0.00,COMMERCIAL SUPPLIER 
 25-08-2022,Adults,DMP Healthcare (Cherry Orchard) Ltd,Nursing Homes - Private Contractors Payment,1698.51,0.00,COMMERCIAL SUPPLIER 
 25-08-2022,Adults,Whiteheather Ltd,Residential Placements - Private Contractors Payment,9631.48,0.00,COMMERCIAL SUPPLIER 
 25-08-2022,Adults,Brook Care Home_a,Residential Placements - Private Contractors Payment,3073.60,0.00,COMMERCIAL SUPPLIER 
 25-08-2022,Adults,Castle Care UK Ltd,Residential Placements - Private Contractors Payment,5712.00,0.00,COMMERCIAL SUPPLIER 
 25-08-2022,Adults,Castle Care UK Ltd,Nursing Homes - Private Contractors Payment,2823.16,0.00,COMMERCIAL SUPPLIER 
 25-08-2022,Adults,Castle Care UK Ltd,Nursing Homes - Private Contractors Payment,2712.00,0.00,COMMERCIAL SUPPLIER 
 25-08-2022,Adults,Barleycroft Care Home Ltd,Nursing Homes - Private Contractors Payment,2712.00,0.00,COMMERCIAL SUPPLIER 
 25-08-2022,Adults,Barleycroft Care Home Ltd,Nursing Homes - Private Contractors Payment,2712.00,0.00,COMMERCIAL SUPPLIER 
 25-08-2022,Adults,Barleycroft Care Home Ltd,Nursing Homes - Private Contractors Payment,2712.00,0.00,COMMERCIAL SUPPLIER 
 25-08-2022,Adults,Barleycroft Care Home Ltd,Residential Placements - Private Contractors Payment,2780.00,0.00,COMMERCIAL SUPPLIER 
 25-08-2022,Adults,Barleycroft Care Home Ltd,Nursing Homes - Private Contractors Payment,2712.00,0.00,COMMERCIAL SUPPLIER 
 25-08-2022,Adults,Barleycroft Care Home Ltd,Nursing Homes - Private Contractors Payment,2712.00,0.00,COMMERCIAL SUPPLIER 
 25-08-2022,Adults,Barleycroft Care Home Ltd,Nursing Homes - Private Contractors Payment,2712.00,0.00,COMMERCIAL SUPPLIER 
 25-08-2022,Adults,Barleycroft Care Home Ltd,Nursing Homes - Private Contractors Payment,2780.00,0.00,COMMERCIAL SUPPLIER 
 25-08-2022,Adults,Barleycroft Care Home Ltd,Residential Placements - Private Contractors Payment,2780.00,0.00,COMMERCIAL SUPPLIER 
 25-08-2022,Adults,Barleycroft Care Home Ltd,Residential Placements - Private Contractors Payment,2780.00,0.00,COMMERCIAL SUPPLIER 
 25-08-2022,Adults,Barleycroft Care Home Ltd,Residential Placements - Private Contractors Payment,2624.00,0.00,COMMERCIAL SUPPLIER 
 25-08-2022,Adults,Barleycroft Care Home Ltd,Residential Placements - Private Contractors Payment,2780.00,0.00,COMMERCIAL SUPPLIER 
 25-08-2022,Adults,Barleycroft Care Home Ltd,Residential Placements - Private Contractors Payment,2780.00,0.00,COMMERCIAL SUPPLIER 
 25-08-2022,Adults,Barleycroft Care Home Ltd,Nursing Homes - Private Contractors Payment,2712.00,0.00,COMMERCIAL SUPPLIER 
 25-08-2022,Adults,Barleycroft Care Home Ltd,Nursing Homes - Private Contractors Payment,3900.00,0.00,COMMERCIAL SUPPLIER 
 25-08-2022,Adults,Barleycroft Care Home Ltd,Nursing Homes - Private Contractors Payment,3900.00,0.00,COMMERCIAL SUPPLIER 
 25-08-2022,Adults,Barleycroft Care Home Ltd,Residential Placements - Private Contractors Payment,2780.00,0.00,COMMERCIAL SUPPLIER 
 25-08-2022,Adults,Barleycroft Care Home Ltd,Residential Placements - Private Contractors Payment,2780.00,0.00,COMMERCIAL SUPPLIER 
 25-08-2022,Adults,Barleycroft Care Home Ltd,Nursing Homes - Private Contractors Payment,3060.24,0.00,COMMERCIAL SUPPLIER 
 25-08-2022,Adults,Barleycroft Care Home Ltd,Nursing Homes - Private Contractors Payment,2712.00,0.00,COMMERCIAL SUPPLIER 
 25-08-2022,Adults,Barleycroft Care Home Ltd,Nursing Homes - Private Contractors Payment,2712.00,0.00,COMMERCIAL SUPPLIER 
 25-08-2022,Adults,Barleycroft Care Home Ltd,Residential Placements - Private Contractors Payment,2780.00,0.00,COMMERCIAL SUPPLIER 
 25-08-2022,Adults,Barleycroft Care Home Ltd,Nursing Homes - Private Contractors Payment,2227.71,0.00,COMMERCIAL SUPPLIER 
 25-08-2022,Adults,Barleycroft Care Home Ltd,Nursing Homes - Private Contractors Payment,2615.14,0.00,COMMERCIAL SUPPLIER 
 25-08-2022,Adults,Barleycroft Care Home Ltd,Nursing Homes - Private Contractors Payment,2712.00,0.00,COMMERCIAL SUPPLIER 
 25-08-2022,Adults,Barleycroft Care Home Ltd,Nursing Homes - Private Contractors Payment,4320.00,0.00,COMMERCIAL SUPPLIER 
 25-08-2022,Adults,Barleycroft Care Home Ltd,Nursing Homes - Private Contractors Payment,2160.00,0.00,COMMERCIAL SUPPLIER 
 25-08-2022,Adults,Barleycroft Care Home Ltd,Nursing Homes - Private Contractors Payment,4560.00,0.00,COMMERCIAL SUPPLIER 
 25-08-2022,Adults,Barleycroft Care Home Ltd,Residential Placements - Private Contractors Payment,2780.00,0.00,COMMERCIAL SUPPLIER 
 25-08-2022,Adults,Barleycroft Care Home Ltd,Nursing Homes - Private Contractors Payment,2528.00,0.00,COMMERCIAL SUPPLIER 
 25-08-2022,Adults,Barleycroft Care Home Ltd,Residential Placements - Private Contractors Payment,2480.00,0.00,COMMERCIAL SUPPLIER 
 25-08-2022,Adults,Barleycroft Care Home Ltd,Nursing Homes - Private Contractors Payment,2528.00,0.00,COMMERCIAL SUPPLIER 
 25-08-2022,Adults,Barleycroft Care Home Ltd,Residential Placements - Private Contractors Payment,3736.00,0.00,COMMERCIAL SUPPLIER 
 25-08-2022,Adults,Barleycroft Care Home Ltd,Nursing Homes - Private Contractors Payment,2712.00,0.00,COMMERCIAL SUPPLIER 
 25-08-2022,Adults,Barleycroft Care Home Ltd,Residential Placements - Private Contractors Payment,2480.00,0.00,COMMERCIAL SUPPLIER 
 25-08-2022,Adults,Barleycroft Care Home Ltd,Residential Placements - Private Contractors Payment,2780.00,0.00,COMMERCIAL SUPPLIER 
 25-08-2022,Adults,Barleycroft Care Home Ltd,Residential Placements - Private Contractors Payment,595.71,0.00,COMMERCIAL SUPPLIER 
 25-08-2022,Adults,Barleycroft Care Home Ltd,Residential Placements - Private Contractors Payment,2780.00,0.00,COMMERCIAL SUPPLIER 
 25-08-2022,Adults,Barleycroft Care Home Ltd,Residential Placements - Private Contractors Payment,2482.14,0.00,COMMERCIAL SUPPLIER 
